Body,Body name,Service label,Service divison label,Expenditure category,Detailed expenses type,Detailed expense code,Date paid,Transaction number,Net amount,Capital or revenue,Supplier name 
http://statistics.data.gov.uk/doc/local-authority/00DA,East - North East                    ,East - North East,Construction Services,Supplies and Services,Other Materials,205,11-Jul-2012,1207-00001,670.40,R,A Andrews & Sons (Marbles & Tiles)
http://statistics.data.gov.uk/doc/local-authority/00DA,Leeds City Council,City Development,Highways,Capital,Construction,3,11-Jul-2012,1207-00002,1431.90,C,A D D Loop Cutting Services Ltd
http://statistics.data.gov.uk/doc/local-authority/00DA,Leeds City Council,Adult Social Care,Roseville Enterprises,Supplies and Services,Operational Furniture And Equipment,203,27-Jul-2012,1207-00003,952.00,R,A D G Engineering Ltd
http://statistics.data.gov.uk/doc/local-authority/00DA,East - North East                    ,East - North East,Construction Services,Supplies and Services,Other Hired And Contracted Services,265,11-Jul-2012,1207-00004,1585.00,R,A D Simpson Construction Ltd
http://statistics.data.gov.uk/doc/local-authority/00DA,East - North East                    ,East - North East,Construction Services,Supplies and Services,Other Hired And Contracted Services,265,10-Jul-2012,1207-00005,3754.37,R,A D Simpson Construction Ltd
http://statistics.data.gov.uk/doc/local-authority/00DA,Leeds City Council,Childrens Services,Learning Skills & Universal,Third Party Payments,Services Rendered By Voluntary Sector,505,06-Jul-2012,1207-00006,898.70,R,REDACTED PERSONAL DATA
http://statistics.data.gov.uk/doc/local-authority/00DA,Leeds City Council,Childrens Services,Learning Skills & Universal,Third Party Payments,Services Rendered By Voluntary Sector,505,26-Jul-2012,1207-00007,4486.62,R,REDACTED PERSONAL DATA
http://statistics.data.gov.uk/doc/local-authority/00DA,Leeds City Council,City Development,Highways,Capital,Construction,3,23-Jul-2012,1207-00008,51903.81,C,A E Yates Ltd
http://statistics.data.gov.uk/doc/local-authority/00DA,Leeds City Council,Childrens Services,Safeguarding Targeted & Specialist,Third Party Payments,Adoptions - Allowances,560,19-Jul-2012,1207-00009,500.00,R,REDACTED PERSONAL DATA
http://statistics.data.gov.uk/doc/local-authority/00DA,Leeds City Council,Childrens Services,Learning Skills & Universal,Third Party Payments,Services Rendered By Voluntary Sector,505,26-Jul-2012,1207-00010,721.50,R,REDACTED PERSONAL DATA
http://statistics.data.gov.uk/doc/local-authority/00DA,Leeds City Council,Adult Social Care,Services For Older People Under 65 P/Dis,Transfer Payments,Direct Payments,626,04-Jul-2012,1207-00011,429.98,R,REDACTED PERSONAL DATA
http://statistics.data.gov.uk/doc/local-authority/00DA,Leeds City Council,Childrens Services,Learning Skills & Universal,Third Party Payments,Services Rendered By Voluntary Sector,505,26-Jul-2012,1207-00012,810.30,R,REDACTED PERSONAL DATA
http://statistics.data.gov.uk/doc/local-authority/00DA,Leeds City Council,Central & Corporate Functions,Commercial Services Trading Services,Supplies and Services,Operational Materials,205,12-Jul-2012,1207-00013,449.00,R,A J H  Pump Supply & Repair Ltd
http://statistics.data.gov.uk/doc/local-authority/00DA,Leeds City Council,Central & Corporate Functions,Commercial Services Trading Services,Supplies and Services,Operational Materials,205,12-Jul-2012,1207-00014,1415.00,R,A J H  Pump Supply & Repair Ltd
http://statistics.data.gov.uk/doc/local-authority/00DA,Leeds City Council,City Development,Libraries  Arts & Heritage,Supplies and Services,Art Galleries Total Stores,003,19-Jul-2012,1207-00015,545.48,R,A J Promotions
http://statistics.data.gov.uk/doc/local-authority/00DA,Leeds City Council,City Development,Libraries  Arts & Heritage,Supplies and Services,Art Galleries Total Stores,003,06-Jul-2012,1207-00016,792.00,R,A J Promotions
http://statistics.data.gov.uk/doc/local-authority/00DA,Leeds City Council,City Development,Libraries  Arts & Heritage,Supplies and Services,Art Galleries Total Stores,003,23-Jul-2012,1207-00017,1365.58,R,A J Promotions
http://statistics.data.gov.uk/doc/local-authority/00DA,Leeds City Council,City Development,Recreation,Supplies and Services,Resaleable Materials,204,27-Jul-2012,1207-00018,778.91,R,A J Promotions
http://statistics.data.gov.uk/doc/local-authority/00DA,Leeds City Council,City Development,Recreation,Supplies and Services,Resaleable Materials,204,06-Jul-2012,1207-00019,833.54,R,A J Promotions
http://statistics.data.gov.uk/doc/local-authority/00DA,Leeds City Council,Childrens Services,Learning Skills & Universal,Third Party Payments,Services Rendered By Voluntary Sector,505,26-Jul-2012,1207-00020,943.50,R,REDACTED PERSONAL DATA
http://statistics.data.gov.uk/doc/local-authority/00DA,Leeds City Council,Childrens Services,Safeguarding Targeted & Specialist,Third Party Payments,General External Residential Placements,507,19-Jul-2012,1207-00021,13000.00,R,A Lowrie Care Service Limited
http://statistics.data.gov.uk/doc/local-authority/00DA,Leeds City Council,Childrens Services,Safeguarding Targeted & Specialist,Third Party Payments,General External Residential Placements,507,26-Jul-2012,1207-00022,14000.00,R,A Lowrie Care Service Limited
http://statistics.data.gov.uk/doc/local-authority/00DA,Leeds City Council,City Development,Recreation,Supplies and Services,Other Hired And Contracted Services,265,11-Jul-2012,1207-00023,1449.60,R,A Nicholls
http://statistics.data.gov.uk/doc/local-authority/00DA,Leeds City Council,City Development,Libraries  Arts & Heritage,Supplies and Services,Operational Materials,205,12-Jul-2012,1207-00024,1295.00,R,A Photographic Memory Ltd
http://statistics.data.gov.uk/doc/local-authority/00DA,Leeds City Council,Adult Social Care,Services For Older People Under 65 P/Dis,Transfer Payments,Direct Payments,626,04-Jul-2012,1207-00025,1026.92,R,REDACTED PERSONAL DATA
http://statistics.data.gov.uk/doc/local-authority/00DA,Leeds City Council,Childrens Services,Learning Skills & Universal,Third Party Payments,Services Rendered By Voluntary Sector,505,26-Jul-2012,1207-00026,1443.00,R,REDACTED PERSONAL DATA
http://statistics.data.gov.uk/doc/local-authority/00DA,Leeds City Council,Childrens Services,Safeguarding Targeted & Specialist,Third Party Payments,Section 17,551,02-Jul-2012,1207-00027,500.00,R,REDACTED PERSONAL DATA
http://statistics.data.gov.uk/doc/local-authority/00DA,Leeds City Council,Adult Social Care,Services For Older People Under 65 P/Dis,Transfer Payments,Direct Payments,626,04-Jul-2012,1207-00028,1384.16,R,REDACTED PERSONAL DATA
http://statistics.data.gov.uk/doc/local-authority/00DA,Leeds City Council,Adult Social Care,Services For Older People - 65 And Over,Transfer Payments,Direct Payments,626,04-Jul-2012,1207-00029,1171.00,R,REDACTED PERSONAL DATA
http://statistics.data.gov.uk/doc/local-authority/00DA,Leeds City Council as Accountable Body,Social Services Pooled Budgets,Leeds Community Equip Store Pooled Budgt,Supplies and Services,Other Equipment,203,18-Jul-2012,1207-00030,459.00,R,Aat (Gb) Ltd
http://statistics.data.gov.uk/doc/local-authority/00DA,Leeds City Council as Accountable Body,Social Services Pooled Budgets,Leeds Community Equip Store Pooled Budgt,Supplies and Services,Other Equipment,203,18-Jul-2012,1207-00031,589.00,R,Aat (Gb) Ltd
http://statistics.data.gov.uk/doc/local-authority/00DA,Leeds City Council,Central & Corporate Functions,Information Technology,Supplies and Services,Computer Software & Equipment,214,13-Jul-2012,1207-00032,4500.00,R,Abbey Grange C Of E Academy Trust
http://statistics.data.gov.uk/doc/local-authority/00DA,Leeds City Council,Adult Social Care,Services For Older People - 65 And Over,Third Party Payments,Residential Care Dementia,571,04-Jul-2012,1207-00033,1151.92,R,Abbey Lea Residential Care Home
http://statistics.data.gov.uk/doc/local-authority/00DA,Leeds City Council,Childrens Services,Safeguarding Targeted & Specialist,Third Party Payments,Supported Lodgings,555,13-Jul-2012,1207-00034,520.00,R,Abbey Taxis (Boston) Ltd
http://statistics.data.gov.uk/doc/local-authority/00DA,Leeds City Council,Adult Social Care,Services For Adults Under 65 Mental/Dis,Third Party Payments,Residential,580,04-Jul-2012,1207-00035,1147.40,R,Abbeydale Care Home
http://statistics.data.gov.uk/doc/local-authority/00DA,Leeds City Council,Adult Social Care,Services For Older People - 65 And Over,Third Party Payments,Residential,580,04-Jul-2012,1207-00036,1059.56,R,Abbeydale Residential Home
http://statistics.data.gov.uk/doc/local-authority/00DA,Leeds City Council,Childrens Services,Learning Skills & Universal,Third Party Payments,Services Rendered By Other Organisations,511,26-Jul-2012,1207-00037,12210.00,R,Abc Daycare
http://statistics.data.gov.uk/doc/local-authority/00DA,Leeds City Council,City Development,Libraries  Arts & Heritage,Supplies and Services,Operational Furniture And Equipment,203,19-Jul-2012,1207-00038,449.25,R,Abc Inflatables Limited
http://statistics.data.gov.uk/doc/local-authority/00DA,Leeds City Council,City Development,Libraries  Arts & Heritage,Supplies and Services,Operational Furniture And Equipment,203,19-Jul-2012,1207-00039,1826.25,R,Abc Inflatables Limited
http://statistics.data.gov.uk/doc/local-authority/00DA,Leeds City Council,Childrens Services,Learning Skills & Universal,Third Party Payments,Services Rendered By Other Organisations,511,06-Jul-2012,1207-00040,640.82,R,Abc Nursery At Lufc
http://statistics.data.gov.uk/doc/local-authority/00DA,Leeds City Council,Childrens Services,Learning Skills & Universal,Third Party Payments,Services Rendered By Other Organisations,511,26-Jul-2012,1207-00041,3396.60,R,Abc Nursery At Lufc
http://statistics.data.gov.uk/doc/local-authority/00DA,Aire Valley Homes Leeds  ,Aire Valley Homes Leeds,Aire Valley Homes Leeds,Supplies and Services,Advertising,211,24-Jul-2012,1207-00042,450.00,R,Abc Promotional Gifts Ltd
http://statistics.data.gov.uk/doc/local-authority/00DA,West - North West                    ,West - North West,Regeneration/Customer Research,Employees,Advertising Expenses,080,24-Jul-2012,1207-00043,514.80,R,Abc Promotional Gifts Ltd
http://statistics.data.gov.uk/doc/local-authority/00DA,West - North West                    ,West - North West,Regeneration/Customer Research,Supplies and Services,Stationery & External Printing,210,20-Jul-2012,1207-00044,425.40,R,Abc Promotional Gifts Ltd
http://statistics.data.gov.uk/doc/local-authority/00DA,West - North West                    ,West - North West,Regeneration/Customer Research,Supplies and Services,Stationery & External Printing,210,23-Jul-2012,1207-00045,543.70,R,Abc Promotional Gifts Ltd
http://statistics.data.gov.uk/doc/local-authority/00DA,West - North West                    ,West - North West,Regeneration/Customer Research,Supplies and Services,Stationery & External Printing,210,03-Jul-2012,1207-00046,833.00,R,Abc Promotional Gifts Ltd
http://statistics.data.gov.uk/doc/local-authority/00DA,West - North West                    ,West - North West,Regeneration/Customer Research,Supplies and Services,Stationery & External Printing,210,03-Jul-2012,1207-00047,1070.00,R,Abc Promotional Gifts Ltd
http://statistics.data.gov.uk/doc/local-authority/00DA,West - North West                    ,West - North West,Regeneration/Customer Research,Supplies and Services,Stationery & External Printing,210,23-Jul-2012,1207-00048,2032.19,R,Abc Promotional Gifts Ltd
http://statistics.data.gov.uk/doc/local-authority/00DA,Leeds City Council,Adult Social Care,Services For Older People - 65 And Over,Third Party Payments,Nursing Home,570,04-Jul-2012,1207-00049,13606.76,R,Aberford Hall
http://statistics.data.gov.uk/doc/local-authority/00DA,Leeds City Council,Adult Social Care,Services For Older People - 65 And Over,Third Party Payments,Residential,580,04-Jul-2012,1207-00050,8204.09,R,Aberford Hall
http://statistics.data.gov.uk/doc/local-authority/00DA,Leeds City Council,Adult Social Care,Services For Older People Under 65 P/Dis,Transfer Payments,Personalised Budgets,627,04-Jul-2012,1207-00051,1144.87,R,REDACTED PERSONAL DATA
http://statistics.data.gov.uk/doc/local-authority/00DA,Leeds City Council,Adult Social Care,Services For Older People Under 65 P/Dis,Transfer Payments,Personalised Budgets,627,04-Jul-2012,1207-00052,2714.33,R,REDACTED PERSONAL DATA
http://statistics.data.gov.uk/doc/local-authority/00DA,Leeds City Council,Environment & Neighbourhoods,Environmental Health,Capital,Construction,3,09-Jul-2012,1207-00053,476.29,C,Able Bathing & Building Contractors Ltd
http://statistics.data.gov.uk/doc/local-authority/00DA,Leeds City Council,Environment & Neighbourhoods,Environmental Health,Capital,Construction,3,30-Jul-2012,1207-00054,939.20,C,Able Bathing & Building Contractors Ltd
http://statistics.data.gov.uk/doc/local-authority/00DA,Leeds City Council,Environment & Neighbourhoods,Environmental Health,Capital,Construction,3,02-Jul-2012,1207-00055,1500.00,C,Able Bathing & Building Contractors Ltd
http://statistics.data.gov.uk/doc/local-authority/00DA,Leeds City Council,Environment & Neighbourhoods,Environmental Health,Capital,Construction,3,30-Jul-2012,1207-00056,1515.00,C,Able Bathing & Building Contractors Ltd
http://statistics.data.gov.uk/doc/local-authority/00DA,Leeds City Council,Environment & Neighbourhoods,Environmental Health,Capital,Construction,3,13-Jul-2012,1207-00057,2371.91,C,Able Bathing & Building Contractors Ltd
http://statistics.data.gov.uk/doc/local-authority/00DA,Leeds City Council,Environment & Neighbourhoods,Environmental Health,Capital,Construction,3,02-Jul-2012,1207-00058,2890.00,C,Able Bathing & Building Contractors Ltd
http://statistics.data.gov.uk/doc/local-authority/00DA,Leeds City Council,Environment & Neighbourhoods,Environmental Health,Capital,Construction,3,09-Jul-2012,1207-00059,2890.00,C,Able Bathing & Building Contractors Ltd
http://statistics.data.gov.uk/doc/local-authority/00DA,Leeds City Council,Environment & Neighbourhoods,Environmental Health,Capital,Construction,3,30-Jul-2012,1207-00060,3090.00,C,Able Bathing & Building Contractors Ltd
http://statistics.data.gov.uk/doc/local-authority/00DA,Leeds City Council,Environment & Neighbourhoods,Environmental Health,Capital,Construction,3,09-Jul-2012,1207-00061,3235.00,C,Able Bathing & Building Contractors Ltd
http://statistics.data.gov.uk/doc/local-authority/00DA,Leeds City Council,Environment & Neighbourhoods,Environmental Health,Capital,Construction,3,30-Jul-2012,1207-00062,4121.91,C,Able Bathing & Building Contractors Ltd
http://statistics.data.gov.uk/doc/local-authority/00DA,Leeds City Council,Environment & Neighbourhoods,Environmental Health,Capital,Construction,3,13-Jul-2012,1207-00063,4150.00,C,Able Bathing & Building Contractors Ltd
http://statistics.data.gov.uk/doc/local-authority/00DA,Leeds City Council,Environment & Neighbourhoods,Environmental Health,Capital,Construction,3,13-Jul-2012,1207-00064,4150.00,C,Able Bathing & Building Contractors Ltd
http://statistics.data.gov.uk/doc/local-authority/00DA,Leeds City Council,Environment & Neighbourhoods,Environmental Health,Capital,Construction,3,02-Jul-2012,1207-00065,4150.00,C,Able Bathing & Building Contractors Ltd
http://statistics.data.gov.uk/doc/local-authority/00DA,Leeds City Council,Environment & Neighbourhoods,Environmental Health,Capital,Construction,3,09-Jul-2012,1207-00066,4150.00,C,Able Bathing & Building Contractors Ltd
http://statistics.data.gov.uk/doc/local-authority/00DA,Leeds City Council,Environment & Neighbourhoods,Environmental Health,Capital,Construction,3,02-Jul-2012,1207-00067,4150.00,C,Able Bathing & Building Contractors Ltd
http://statistics.data.gov.uk/doc/local-authority/00DA,Leeds City Council,Environment & Neighbourhoods,Environmental Health,Capital,Construction,3,02-Jul-2012,1207-00068,4150.00,C,Able Bathing & Building Contractors Ltd
http://statistics.data.gov.uk/doc/local-authority/00DA,Leeds City Council,Environment & Neighbourhoods,Environmental Health,Capital,Construction,3,02-Jul-2012,1207-00069,4150.00,C,Able Bathing & Building Contractors Ltd
http://statistics.data.gov.uk/doc/local-authority/00DA,Leeds City Council,Environment & Neighbourhoods,Environmental Health,Capital,Construction,3,30-Jul-2012,1207-00070,4150.00,C,Able Bathing & Building Contractors Ltd
http://statistics.data.gov.uk/doc/local-authority/00DA,Leeds City Council,Environment & Neighbourhoods,Environmental Health,Capital,Construction,3,30-Jul-2012,1207-00071,4150.00,C,Able Bathing & Building Contractors Ltd
http://statistics.data.gov.uk/doc/local-authority/00DA,Leeds City Council,Environment & Neighbourhoods,Environmental Health,Capital,Construction,3,09-Jul-2012,1207-00072,4150.00,C,Able Bathing & Building Contractors Ltd
http://statistics.data.gov.uk/doc/local-authority/00DA,Leeds City Council,Environment & Neighbourhoods,Environmental Health,Capital,Construction,3,30-Jul-2012,1207-00073,4150.00,C,Able Bathing & Building Contractors Ltd
http://statistics.data.gov.uk/doc/local-authority/00DA,Leeds City Council,Environment & Neighbourhoods,Environmental Health,Capital,Construction,3,02-Jul-2012,1207-00074,4208.50,C,Able Bathing & Building Contractors Ltd
http://statistics.data.gov.uk/doc/local-authority/00DA,Leeds City Council,Environment & Neighbourhoods,Environmental Health,Capital,Construction,3,02-Jul-2012,1207-00075,4420.00,C,Able Bathing & Building Contractors Ltd
http://statistics.data.gov.uk/doc/local-authority/00DA,Leeds City Council,Environment & Neighbourhoods,Environmental Health,Capital,Construction,3,30-Jul-2012,1207-00076,4460.20,C,Able Bathing & Building Contractors Ltd
http://statistics.data.gov.uk/doc/local-authority/00DA,Leeds City Council,Environment & Neighbourhoods,Environmental Health,Capital,Construction,3,13-Jul-2012,1207-00077,5415.00,C,Able Bathing & Building Contractors Ltd
http://statistics.data.gov.uk/doc/local-authority/00DA,Leeds City Council,Environment & Neighbourhoods,Environmental Health,Capital,Construction,3,09-Jul-2012,1207-00078,8350.21,C,Able Bathing & Building Contractors Ltd
http://statistics.data.gov.uk/doc/local-authority/00DA,Leeds City Council,Childrens Services,Learning Skills & Universal,Employees,Agency Staff,008,09-Jul-2012,1207-00079,464.63,R,Academic Appointments Ltd
http://statistics.data.gov.uk/doc/local-authority/00DA,Leeds City Council,Childrens Services,Learning Skills & Universal,Employees,Agency Staff,008,26-Jul-2012,1207-00080,508.20,R,Academic Appointments Ltd
http://statistics.data.gov.uk/doc/local-authority/00DA,Leeds City Council,Childrens Services,Learning Skills & Universal,Employees,Agency Staff,008,19-Jul-2012,1207-00081,508.20,R,Academic Appointments Ltd
http://statistics.data.gov.uk/doc/local-authority/00DA,Leeds City Council,Childrens Services,Learning Skills & Universal,Employees,Agency Staff,008,31-Jul-2012,1207-00082,582.75,R,Academic Appointments Ltd
http://statistics.data.gov.uk/doc/local-authority/00DA,Leeds City Council,Childrens Services,Learning Skills & Universal,Employees,Agency Staff,008,10-Jul-2012,1207-00083,582.75,R,Academic Appointments Ltd
http://statistics.data.gov.uk/doc/local-authority/00DA,Leeds City Council,Childrens Services,Learning Skills & Universal,Third Party Payments,Services Rendered By Other Organisations,511,23-Jul-2012,1207-00084,4986.75,R,Academic Appointments Ltd
http://statistics.data.gov.uk/doc/local-authority/00DA,Leeds City Council,Childrens Services,Safeguarding Targeted & Specialist,Employees,Agency Staff,008,04-Jul-2012,1207-00085,1670.00,R,Academic Appointments Ltd
http://statistics.data.gov.uk/doc/local-authority/00DA,Leeds City Council,Childrens Services,Safeguarding Targeted & Specialist,Employees,Agency Staff,008,04-Jul-2012,1207-00086,4451.40,R,Academic Appointments Ltd
http://statistics.data.gov.uk/doc/local-authority/00DA,Leeds City Council,City Development,Recreation,Supplies and Services,Operational Materials,205,11-Jul-2012,1207-00087,469.00,R,Ace Engineers (Morley) Ltd
http://statistics.data.gov.uk/doc/local-authority/00DA,Leeds City Council,Central & Corporate Functions,Commercial Services Trading Services,Supplies and Services,Crockery  Cutlery & Utensils,221,06-Jul-2012,1207-00088,1184.00,R,Acme
http://statistics.data.gov.uk/doc/local-authority/00DA,Leeds City Council,Childrens Services,Learning Skills & Universal,Third Party Payments,Services Rendered By Other Organisations,511,26-Jul-2012,1207-00089,4405.72,R,Acorns Nursery
http://statistics.data.gov.uk/doc/local-authority/00DA,Leeds City Council,Adult Social Care,Services For Adults Under 65 Mental/Dis,Third Party Payments,Residential,580,04-Jul-2012,1207-00090,1718.12,R,Acre Green
http://statistics.data.gov.uk/doc/local-authority/00DA,Leeds City Council,Adult Social Care,Services For Older People - 65 And Over,Third Party Payments,Nursing Home,570,04-Jul-2012,1207-00091,3654.05,R,Acre Green
http://statistics.data.gov.uk/doc/local-authority/00DA,Leeds City Council,Adult Social Care,Services For Older People - 65 And Over,Third Party Payments,Nursing Care Dementia,574,04-Jul-2012,1207-00092,1824.68,R,Acre Green
http://statistics.data.gov.uk/doc/local-authority/00DA,Leeds City Council,Adult Social Care,Services For Older People - 65 And Over,Third Party Payments,Residential,580,04-Jul-2012,1207-00093,1879.10,R,Acre Green
http://statistics.data.gov.uk/doc/local-authority/00DA,Leeds City Council,Adult Social Care,Services For Older People Under 65 P/Dis,Third Party Payments,Nursing Home,570,04-Jul-2012,1207-00094,1634.68,R,Acre Green
http://statistics.data.gov.uk/doc/local-authority/00DA,Leeds City Council,Adult Social Care,Services For Older People Under 65 P/Dis,Third Party Payments,Residential,580,04-Jul-2012,1207-00095,1241.32,R,Acre Green
http://statistics.data.gov.uk/doc/local-authority/00DA,Leeds City Council,Childrens Services,Learning Skills & Universal,Third Party Payments,Services Rendered By Other Organisations,511,06-Jul-2012,1207-00096,887.26,R,Acre Wood Childrens Nursery
http://statistics.data.gov.uk/doc/local-authority/00DA,Leeds City Council,Childrens Services,Learning Skills & Universal,Third Party Payments,Services Rendered By Other Organisations,511,26-Jul-2012,1207-00097,4132.90,R,Acre Wood Childrens Nursery
http://statistics.data.gov.uk/doc/local-authority/00DA,Leeds City Council,Childrens Services,Learning Skills & Universal,Supplies and Services,Educational Visits,282,26-Jul-2012,1207-00098,1152.00,R,Acrecliffe Equestrian Centre
http://statistics.data.gov.uk/doc/local-authority/00DA,Leeds City Council,Adult Social Care,Services For Adults Under 65 Mental/Dis,Third Party Payments,Payments To Voluntary Organisations,561,13-Jul-2012,1207-00099,104749.00,R,Action For Blind People
http://statistics.data.gov.uk/doc/local-authority/00DA,Leeds City Council,Childrens Services,Safeguarding Targeted & Specialist,Third Party Payments,Independent Fostering Agencies,509,12-Jul-2012,1207-00100,4466.00,R,Action For Children
http://statistics.data.gov.uk/doc/local-authority/00DA,Leeds City Council,Childrens Services,Safeguarding Targeted & Specialist,Third Party Payments,Adoptions - Allowances,560,20-Jul-2012,1207-00101,644.00,R,Action For Children
http://statistics.data.gov.uk/doc/local-authority/00DA,Leeds City Council,Childrens Services,Safeguarding Targeted & Specialist,Third Party Payments,Adoptions - Allowances,560,06-Jul-2012,1207-00102,825.00,R,Action For Children
http://statistics.data.gov.uk/doc/local-authority/00DA,Leeds City Council,Childrens Services,Safeguarding Targeted & Specialist,Third Party Payments,Adoptions - Allowances,560,06-Jul-2012,1207-00103,825.00,R,Action For Children
http://statistics.data.gov.uk/doc/local-authority/00DA,Leeds City Council,Childrens Services,Safeguarding Targeted & Specialist,Third Party Payments,Adoptions - Allowances,560,09-Jul-2012,1207-00104,1194.00,R,Action For Children
http://statistics.data.gov.uk/doc/local-authority/00DA,Leeds City Council,Childrens Services,Learning Skills & Universal,Third Party Payments,Services Rendered By Other Organisations,511,26-Jul-2012,1207-00105,2744.36,R,Active Kids Day Nursery
http://statistics.data.gov.uk/doc/local-authority/00DA,Leeds City Council,City Development,Recreation,Supplies and Services,Bought In Professional Services,277,27-Jul-2012,1207-00106,5628.45,R,Ad Golf Management Ltd
http://statistics.data.gov.uk/doc/local-authority/00DA,Leeds City Council,City Development,Recreation,Supplies and Services,Bought In Professional Services,277,11-Jul-2012,1207-00107,6792.86,R,Ad Golf Management Ltd
http://statistics.data.gov.uk/doc/local-authority/00DA,Leeds City Council,Central & Corporate Functions,Support And Facilities Trading Services,Supplies and Services,Other Hired And Contracted Services,265,18-Jul-2012,1207-00108,633.90,R,Ad3 Envelope Printers Limited
http://statistics.data.gov.uk/doc/local-authority/00DA,Leeds City Council,Central & Corporate Functions,Support And Facilities Trading Services,Supplies and Services,Other Hired And Contracted Services,265,25-Jul-2012,1207-00109,2927.50,R,Ad3 Envelope Printers Limited
http://statistics.data.gov.uk/doc/local-authority/00DA,Leeds City Council,Adult Social Care,Services For Older People - 65 And Over,Transfer Payments,Personalised Budgets,627,04-Jul-2012,1207-00110,722.24,R,REDACTED PERSONAL DATA
http://statistics.data.gov.uk/doc/local-authority/00DA,Leeds City Council,Adult Social Care,Services For Older People Under 65 P/Dis,Transfer Payments,Personalised Budgets,627,04-Jul-2012,1207-00111,718.72,R,REDACTED PERSONAL DATA
http://statistics.data.gov.uk/doc/local-authority/00DA,Leeds City Council,Adult Social Care,Services For Older People Under 65 P/Dis,Transfer Payments,Direct Payments,626,04-Jul-2012,1207-00112,3212.08,R,REDACTED PERSONAL DATA
http://statistics.data.gov.uk/doc/local-authority/00DA,Leeds City Council,Adult Social Care,Services For Adults Under 65 Mental/Dis,Transfer Payments,Direct Payments,626,04-Jul-2012,1207-00113,444.40,R,REDACTED PERSONAL DATA
http://statistics.data.gov.uk/doc/local-authority/00DA,Leeds City Council,Adult Social Care,Services For Older People Under 65 P/Dis,Transfer Payments,Direct Payments,626,04-Jul-2012,1207-00114,877.20,R,REDACTED PERSONAL DATA
http://statistics.data.gov.uk/doc/local-authority/00DA,Leeds City Council,Adult Social Care,Services For Adults Under 65 Mental/Dis,Support Services,Legal Disbursements,411,11-Jul-2012,1207-00115,1562.50,R,Adam Fullwood
http://statistics.data.gov.uk/doc/local-authority/00DA,Leeds City Council as Accountable Body,Social Services Pooled Budgets,Jcs For People With Learning Disabilitie,Transfer Payments,Direct Payments,626,04-Jul-2012,1207-00116,942.64,R,REDACTED PERSONAL DATA
http://statistics.data.gov.uk/doc/local-authority/00DA,Leeds City Council,Childrens Services,Partnership Development & Leadership,Supplies and Services,Memberships,226,13-Jul-2012,1207-00117,3135.00,R,Adcs
http://statistics.data.gov.uk/doc/local-authority/00DA,Leeds City Council,City Development,Recreation,Supplies and Services,Other Hired And Contracted Services,265,27-Jul-2012,1207-00118,7098.00,R,Addlestone Moumouris Orme & Sixsmith
http://statistics.data.gov.uk/doc/local-authority/00DA,Leeds City Council,Childrens Services,Learning Skills & Universal,Third Party Payments,Services Rendered By Voluntary Sector,505,26-Jul-2012,1207-00119,4499.94,R,Adel Pre School
http://statistics.data.gov.uk/doc/local-authority/00DA,Leeds City Council,Childrens Services,Safeguarding Targeted & Specialist,Third Party Payments,Adoptions - Allowances,560,09-Jul-2012,1207-00120,750.00,R,Adoption Matters Northwest
http://statistics.data.gov.uk/doc/local-authority/00DA,Leeds City Council,Childrens Services,Safeguarding Targeted & Specialist,Third Party Payments,Adoptions - Allowances,560,11-Jul-2012,1207-00121,750.00,R,Adoption Matters Northwest
http://statistics.data.gov.uk/doc/local-authority/00DA,Leeds City Council,Childrens Services,Safeguarding Targeted & Specialist,Third Party Payments,Adoptions - Allowances,560,06-Jul-2012,1207-00122,8358.00,R,Adoption Matters Northwest
http://statistics.data.gov.uk/doc/local-authority/00DA,Leeds City Council,Childrens Services,Learning Skills & Universal,Premises,Premises Security Services,162,02-Jul-2012,1207-00123,1167.13,R,Adt Fire And Security
http://statistics.data.gov.uk/doc/local-authority/00DA,East - North East                    ,East - North East,Construction Services,Supplies and Services,Other Hired And Contracted Services,265,09-Jul-2012,1207-00124,-1140.00,R,Adult Placement Services
http://statistics.data.gov.uk/doc/local-authority/00DA,East - North East                    ,East - North East,Construction Services,Supplies and Services,Other Hired And Contracted Services,265,16-Jul-2012,1207-00125,-817.00,R,Adult Placement Services
http://statistics.data.gov.uk/doc/local-authority/00DA,East - North East                    ,East - North East,Construction Services,Supplies and Services,Other Hired And Contracted Services,265,12-Jul-2012,1207-00126,437.00,R,Adult Placement Services
http://statistics.data.gov.uk/doc/local-authority/00DA,East - North East                    ,East - North East,Construction Services,Supplies and Services,Other Hired And Contracted Services,265,12-Jul-2012,1207-00127,437.00,R,Adult Placement Services
http://statistics.data.gov.uk/doc/local-authority/00DA,East - North East                    ,East - North East,Construction Services,Supplies and Services,Other Hired And Contracted Services,265,12-Jul-2012,1207-00128,513.00,R,Adult Placement Services
http://statistics.data.gov.uk/doc/local-authority/00DA,East - North East                    ,East - North East,Construction Services,Supplies and Services,Other Hired And Contracted Services,265,12-Jul-2012,1207-00129,608.00,R,Adult Placement Services
http://statistics.data.gov.uk/doc/local-authority/00DA,East - North East                    ,East - North East,Construction Services,Supplies and Services,Other Hired And Contracted Services,265,12-Jul-2012,1207-00130,703.00,R,Adult Placement Services
http://statistics.data.gov.uk/doc/local-authority/00DA,East - North East                    ,East - North East,Construction Services,Supplies and Services,Other Hired And Contracted Services,265,12-Jul-2012,1207-00131,703.00,R,Adult Placement Services
http://statistics.data.gov.uk/doc/local-authority/00DA,East - North East                    ,East - North East,Construction Services,Supplies and Services,Other Hired And Contracted Services,265,12-Jul-2012,1207-00132,722.00,R,Adult Placement Services
http://statistics.data.gov.uk/doc/local-authority/00DA,East - North East                    ,East - North East,Construction Services,Supplies and Services,Other Hired And Contracted Services,265,12-Jul-2012,1207-00133,760.00,R,Adult Placement Services
http://statistics.data.gov.uk/doc/local-authority/00DA,East - North East                    ,East - North East,Construction Services,Supplies and Services,Other Hired And Contracted Services,265,12-Jul-2012,1207-00134,760.00,R,Adult Placement Services
http://statistics.data.gov.uk/doc/local-authority/00DA,East - North East                    ,East - North East,Construction Services,Supplies and Services,Other Hired And Contracted Services,265,12-Jul-2012,1207-00135,950.00,R,Adult Placement Services
http://statistics.data.gov.uk/doc/local-authority/00DA,East - North East                    ,East - North East,Construction Services,Supplies and Services,Other Hired And Contracted Services,265,09-Jul-2012,1207-00136,1140.00,R,Adult Placement Services
http://statistics.data.gov.uk/doc/local-authority/00DA,East - North East                    ,East - North East,Construction Services,Supplies and Services,Other Hired And Contracted Services,265,12-Jul-2012,1207-00137,1254.00,R,Adult Placement Services
http://statistics.data.gov.uk/doc/local-authority/00DA,East - North East                    ,East - North East,Housing Services,Premises,Grounds Maintenance (Closed Landfill),134,16-Jul-2012,1207-00138,456.00,R,Adult Placement Services
http://statistics.data.gov.uk/doc/local-authority/00DA,East - North East                    ,East - North East,Housing Services,Premises,Grounds Maintenance (Closed Landfill),134,16-Jul-2012,1207-00139,532.00,R,Adult Placement Services
http://statistics.data.gov.uk/doc/local-authority/00DA,Leeds City Council,Adult Social Care,Services For Adults Under 65 Mental/Dis,Third Party Payments,Nursing Home,570,05-Jul-2012,1207-00140,1554.60,R,Adult Supported Living Ltd
http://statistics.data.gov.uk/doc/local-authority/00DA,Leeds City Council,Childrens Services,Safeguarding Targeted & Specialist,Support Services,Legal Disbursements,411,10-Jul-2012,1207-00141,720.00,R,Advanced Child Care Assessments Ltd
http://statistics.data.gov.uk/doc/local-authority/00DA,Leeds City Council,Adult Social Care,Home Care Services,Supplies and Services,Computer Software & Equipment,214,26-Jul-2012,1207-00142,3162.19,R,Advanced Health And Care Ltd
http://statistics.data.gov.uk/doc/local-authority/00DA,Leeds City Council as Accountable Body,Social Services Pooled Budgets,Jcs For People With Learning Disabilitie,Third Party Payments,Home Care,568,13-Jul-2012,1207-00143,3237.29,R,Advantage Healthcare Nursing &
http://statistics.data.gov.uk/doc/local-authority/00DA,Leeds City Council as Accountable Body,Social Services Pooled Budgets,Jcs For People With Learning Disabilitie,Third Party Payments,Home Care,568,13-Jul-2012,1207-00144,3261.03,R,Advantage Healthcare Nursing &
http://statistics.data.gov.uk/doc/local-authority/00DA,Leeds City Council as Accountable Body,Social Services Pooled Budgets,Jcs For People With Learning Disabilitie,Third Party Payments,Residential,580,04-Jul-2012,1207-00145,20375.72,R,Advitam Ltd
http://statistics.data.gov.uk/doc/local-authority/00DA,Leeds City Council,Adult Social Care,Services For Adults Under 65 Mental/Dis,Third Party Payments,Payments To Voluntary Organisations,561,03-Jul-2012,1207-00146,23156.00,R,Advocacy For Mental Health And Dementia
http://statistics.data.gov.uk/doc/local-authority/00DA,Leeds City Council,Adult Social Care,Services For Adults Under 65 Mental/Dis,Third Party Payments,Home Care,568,24-Jul-2012,1207-00147,740.52,R,Affinity Trust
http://statistics.data.gov.uk/doc/local-authority/00DA,Leeds City Council,Adult Social Care,Services For Older People - 65 And Over,Third Party Payments,Home Care,568,12-Jul-2012,1207-00148,777.84,R,Affinity Trust
http://statistics.data.gov.uk/doc/local-authority/00DA,Leeds City Council,Adult Social Care,Services For Older People - 65 And Over,Third Party Payments,Home Care,568,12-Jul-2012,1207-00149,807.36,R,Affinity Trust
http://statistics.data.gov.uk/doc/local-authority/00DA,Leeds City Council,Adult Social Care,Services For Older People - 65 And Over,Third Party Payments,Home Care,568,17-Jul-2012,1207-00150,807.36,R,Affinity Trust
http://statistics.data.gov.uk/doc/local-authority/00DA,Leeds City Council,Adult Social Care,Services For Older People - 65 And Over,Third Party Payments,Home Care,568,12-Jul-2012,1207-00151,946.62,R,Affinity Trust
http://statistics.data.gov.uk/doc/local-authority/00DA,Leeds City Council,Adult Social Care,Services For Older People - 65 And Over,Third Party Payments,Home Care,568,12-Jul-2012,1207-00152,1551.30,R,Affinity Trust
http://statistics.data.gov.uk/doc/local-authority/00DA,Leeds City Council,Adult Social Care,Services For Older People - 65 And Over,Third Party Payments,Home Care,568,12-Jul-2012,1207-00153,1744.96,R,Affinity Trust
http://statistics.data.gov.uk/doc/local-authority/00DA,Leeds City Council,Adult Social Care,Services For Older People Under 65 P/Dis,Third Party Payments,Home Care,568,06-Jul-2012,1207-00154,526.68,R,Affinity Trust
http://statistics.data.gov.uk/doc/local-authority/00DA,Leeds City Council,Adult Social Care,Services For Older People Under 65 P/Dis,Third Party Payments,Home Care,568,17-Jul-2012,1207-00155,777.84,R,Affinity Trust
http://statistics.data.gov.uk/doc/local-authority/00DA,Leeds City Council,Adult Social Care,Services For Older People Under 65 P/Dis,Third Party Payments,Home Care,568,17-Jul-2012,1207-00156,946.62,R,Affinity Trust
http://statistics.data.gov.uk/doc/local-authority/00DA,Leeds City Council,Adult Social Care,Services For Older People Under 65 P/Dis,Third Party Payments,Home Care,568,17-Jul-2012,1207-00157,1778.18,R,Affinity Trust
http://statistics.data.gov.uk/doc/local-authority/00DA,Leeds City Council,Adult Social Care,Services For Older People Under 65 P/Dis,Third Party Payments,Home Care,568,17-Jul-2012,1207-00158,1900.11,R,Affinity Trust
http://statistics.data.gov.uk/doc/local-authority/00DA,Leeds City Council as Accountable Body,Social Services Pooled Budgets,Jcs For People With Learning Disabilitie,Third Party Payments,Day Centre,564,09-Jul-2012,1207-00159,469.28,R,Affinity Trust
http://statistics.data.gov.uk/doc/local-authority/00DA,Leeds City Council as Accountable Body,Social Services Pooled Budgets,Jcs For People With Learning Disabilitie,Third Party Payments,Day Centre,564,20-Jul-2012,1207-00160,601.92,R,Affinity Trust
http://statistics.data.gov.uk/doc/local-authority/00DA,Leeds City Council as Accountable Body,Social Services Pooled Budgets,Jcs For People With Learning Disabilitie,Third Party Payments,Day Centre,564,11-Jul-2012,1207-00161,790.02,R,Affinity Trust
http://statistics.data.gov.uk/doc/local-authority/00DA,Leeds City Council as Accountable Body,Social Services Pooled Budgets,Jcs For People With Learning Disabilitie,Third Party Payments,Day Centre,564,09-Jul-2012,1207-00162,1053.36,R,Affinity Trust
http://statistics.data.gov.uk/doc/local-authority/00DA,Leeds City Council as Accountable Body,Social Services Pooled Budgets,Jcs For People With Learning Disabilitie,Third Party Payments,Day Centre,564,09-Jul-2012,1207-00163,1717.04,R,Affinity Trust
http://statistics.data.gov.uk/doc/local-authority/00DA,Leeds City Council as Accountable Body,Social Services Pooled Budgets,Jcs For People With Learning Disabilitie,Third Party Payments,Day Centre,564,11-Jul-2012,1207-00164,1879.44,R,Affinity Trust
http://statistics.data.gov.uk/doc/local-authority/00DA,Leeds City Council as Accountable Body,Social Services Pooled Budgets,Jcs For People With Learning Disabilitie,Third Party Payments,Day Centre,564,24-Jul-2012,1207-00165,1944.40,R,Affinity Trust
http://statistics.data.gov.uk/doc/local-authority/00DA,Leeds City Council as Accountable Body,Social Services Pooled Budgets,Jcs For People With Learning Disabilitie,Third Party Payments,Day Centre,564,18-Jul-2012,1207-00166,2111.76,R,Affinity Trust
http://statistics.data.gov.uk/doc/local-authority/00DA,Leeds City Council as Accountable Body,Social Services Pooled Budgets,Jcs For People With Learning Disabilitie,Third Party Payments,Day Centre,564,31-Jul-2012,1207-00167,2333.00,R,Affinity Trust
http://statistics.data.gov.uk/doc/local-authority/00DA,Leeds City Council as Accountable Body,Social Services Pooled Budgets,Jcs For People With Learning Disabilitie,Third Party Payments,Day Centre,564,16-Jul-2012,1207-00168,2339.72,R,Affinity Trust
http://statistics.data.gov.uk/doc/local-authority/00DA,Leeds City Council as Accountable Body,Social Services Pooled Budgets,Jcs For People With Learning Disabilitie,Third Party Payments,Day Centre,564,09-Jul-2012,1207-00169,3102.12,R,Affinity Trust
http://statistics.data.gov.uk/doc/local-authority/00DA,Leeds City Council as Accountable Body,Social Services Pooled Budgets,Jcs For People With Learning Disabilitie,Third Party Payments,Day Centre,564,11-Jul-2012,1207-00170,3274.46,R,Affinity Trust
http://statistics.data.gov.uk/doc/local-authority/00DA,Leeds City Council as Accountable Body,Social Services Pooled Budgets,Jcs For People With Learning Disabilitie,Third Party Payments,Home Care,568,11-Jul-2012,1207-00171,451.44,R,Affinity Trust
http://statistics.data.gov.uk/doc/local-authority/00DA,Leeds City Council as Accountable Body,Social Services Pooled Budgets,Jcs For People With Learning Disabilitie,Third Party Payments,Home Care,568,30-Jul-2012,1207-00172,470.96,R,Affinity Trust
http://statistics.data.gov.uk/doc/local-authority/00DA,Leeds City Council as Accountable Body,Social Services Pooled Budgets,Jcs For People With Learning Disabilitie,Third Party Payments,Home Care,568,09-Jul-2012,1207-00173,703.92,R,Affinity Trust
http://statistics.data.gov.uk/doc/local-authority/00DA,Leeds City Council as Accountable Body,Social Services Pooled Budgets,Jcs For People With Learning Disabilitie,Third Party Payments,Home Care,568,09-Jul-2012,1207-00174,804.48,R,Affinity Trust
http://statistics.data.gov.uk/doc/local-authority/00DA,Leeds City Council as Accountable Body,Social Services Pooled Budgets,Jcs For People With Learning Disabilitie,Third Party Payments,Home Care,568,30-Jul-2012,1207-00175,806.00,R,Affinity Trust
http://statistics.data.gov.uk/doc/local-authority/00DA,Leeds City Council as Accountable Body,Social Services Pooled Budgets,Jcs For People With Learning Disabilitie,Third Party Payments,Home Care,568,30-Jul-2012,1207-00176,807.36,R,Affinity Trust
http://statistics.data.gov.uk/doc/local-authority/00DA,Leeds City Council as Accountable Body,Social Services Pooled Budgets,Jcs For People With Learning Disabilitie,Third Party Payments,Home Care,568,03-Jul-2012,1207-00177,964.67,R,Affinity Trust
http://statistics.data.gov.uk/doc/local-authority/00DA,Leeds City Council as Accountable Body,Social Services Pooled Budgets,Jcs For People With Learning Disabilitie,Third Party Payments,Home Care,568,04-Jul-2012,1207-00178,1035.44,R,Affinity Trust
http://statistics.data.gov.uk/doc/local-authority/00DA,Leeds City Council as Accountable Body,Social Services Pooled Budgets,Jcs For People With Learning Disabilitie,Third Party Payments,Home Care,568,03-Jul-2012,1207-00179,1035.44,R,Affinity Trust
http://statistics.data.gov.uk/doc/local-authority/00DA,Leeds City Council as Accountable Body,Social Services Pooled Budgets,Jcs For People With Learning Disabilitie,Third Party Payments,Home Care,568,30-Jul-2012,1207-00180,1076.48,R,Affinity Trust
http://statistics.data.gov.uk/doc/local-authority/00DA,Leeds City Council as Accountable Body,Social Services Pooled Budgets,Jcs For People With Learning Disabilitie,Third Party Payments,Home Care,568,03-Jul-2012,1207-00181,1294.30,R,Affinity Trust
http://statistics.data.gov.uk/doc/local-authority/00DA,Leeds City Council as Accountable Body,Social Services Pooled Budgets,Jcs For People With Learning Disabilitie,Third Party Payments,Home Care,568,03-Jul-2012,1207-00182,1294.30,R,Affinity Trust
http://statistics.data.gov.uk/doc/local-authority/00DA,Leeds City Council as Accountable Body,Social Services Pooled Budgets,Jcs For People With Learning Disabilitie,Third Party Payments,Home Care,568,30-Jul-2012,1207-00183,1319.88,R,Affinity Trust
http://statistics.data.gov.uk/doc/local-authority/00DA,Leeds City Council as Accountable Body,Social Services Pooled Budgets,Jcs For People With Learning Disabilitie,Third Party Payments,Home Care,568,16-Jul-2012,1207-00184,1594.56,R,Affinity Trust
http://statistics.data.gov.uk/doc/local-authority/00DA,Leeds City Council as Accountable Body,Social Services Pooled Budgets,Jcs For People With Learning Disabilitie,Third Party Payments,Home Care,568,16-Jul-2012,1207-00185,1594.56,R,Affinity Trust
http://statistics.data.gov.uk/doc/local-authority/00DA,Leeds City Council as Accountable Body,Social Services Pooled Budgets,Jcs For People With Learning Disabilitie,Third Party Payments,Home Care,568,09-Jul-2012,1207-00186,1826.84,R,Affinity Trust
http://statistics.data.gov.uk/doc/local-authority/00DA,Leeds City Council as Accountable Body,Social Services Pooled Budgets,Jcs For People With Learning Disabilitie,Third Party Payments,Home Care,568,26-Jul-2012,1207-00187,2044.72,R,Affinity Trust
http://statistics.data.gov.uk/doc/local-authority/00DA,Leeds City Council as Accountable Body,Social Services Pooled Budgets,Jcs For People With Learning Disabilitie,Third Party Payments,Home Care,568,16-Jul-2012,1207-00188,3848.08,R,Affinity Trust
http://statistics.data.gov.uk/doc/local-authority/00DA,Leeds City Council as Accountable Body,Social Services Pooled Budgets,Jcs For People With Learning Disabilitie,Third Party Payments,Home Care,568,10-Jul-2012,1207-00189,3848.08,R,Affinity Trust
http://statistics.data.gov.uk/doc/local-authority/00DA,Leeds City Council as Accountable Body,Social Services Pooled Budgets,Jcs For People With Learning Disabilitie,Third Party Payments,Home Care,568,24-Jul-2012,1207-00190,3848.08,R,Affinity Trust
http://statistics.data.gov.uk/doc/local-authority/00DA,Leeds City Council as Accountable Body,Social Services Pooled Budgets,Jcs For People With Learning Disabilitie,Third Party Payments,Home Care,568,24-Jul-2012,1207-00191,3848.08,R,Affinity Trust
http://statistics.data.gov.uk/doc/local-authority/00DA,Leeds City Council as Accountable Body,Social Services Pooled Budgets,Jcs For People With Learning Disabilitie,Third Party Payments,Home Care,568,26-Jul-2012,1207-00192,3877.60,R,Affinity Trust
http://statistics.data.gov.uk/doc/local-authority/00DA,Leeds City Council as Accountable Body,Social Services Pooled Budgets,Jcs For People With Learning Disabilitie,Third Party Payments,Home Care,568,09-Jul-2012,1207-00193,3933.20,R,Affinity Trust
http://statistics.data.gov.uk/doc/local-authority/00DA,Leeds City Council as Accountable Body,Social Services Pooled Budgets,Jcs For People With Learning Disabilitie,Third Party Payments,Home Care,568,18-Jul-2012,1207-00194,5050.00,R,Affinity Trust
http://statistics.data.gov.uk/doc/local-authority/00DA,Leeds City Council as Accountable Body,Social Services Pooled Budgets,Jcs For People With Learning Disabilitie,Third Party Payments,Home Care,568,26-Jul-2012,1207-00195,6193.32,R,Affinity Trust
http://statistics.data.gov.uk/doc/local-authority/00DA,Leeds City Council as Accountable Body,Social Services Pooled Budgets,Jcs For People With Learning Disabilitie,Third Party Payments,Home Care,568,24-Jul-2012,1207-00196,6193.32,R,Affinity Trust
http://statistics.data.gov.uk/doc/local-authority/00DA,Leeds City Council as Accountable Body,Social Services Pooled Budgets,Jcs For People With Learning Disabilitie,Third Party Payments,Residential,580,18-Jul-2012,1207-00197,703.92,R,Affinity Trust
http://statistics.data.gov.uk/doc/local-authority/00DA,Leeds City Council as Accountable Body,Social Services Pooled Budgets,Jcs For People With Learning Disabilitie,Third Party Payments,Residential,580,23-Jul-2012,1207-00198,703.92,R,Affinity Trust
http://statistics.data.gov.uk/doc/local-authority/00DA,Leeds City Council as Accountable Body,Social Services Pooled Budgets,Jcs For People With Learning Disabilitie,Third Party Payments,Residential,580,16-Jul-2012,1207-00199,1450.47,R,Affinity Trust
http://statistics.data.gov.uk/doc/local-authority/00DA,Leeds City Council as Accountable Body,Social Services Pooled Budgets,Jcs For People With Learning Disabilitie,Third Party Payments,Residential,580,20-Jul-2012,1207-00200,3589.25,R,Affinity Trust
http://statistics.data.gov.uk/doc/local-authority/00DA,Leeds City Council as Accountable Body,Social Services Pooled Budgets,Jcs For People With Learning Disabilitie,Third Party Payments,Residential,580,19-Jul-2012,1207-00201,4359.83,R,Affinity Trust
http://statistics.data.gov.uk/doc/local-authority/00DA,Leeds City Council as Accountable Body,Social Services Pooled Budgets,Jcs For People With Learning Disabilitie,Third Party Payments,Residential,580,18-Jul-2012,1207-00202,5752.56,R,Affinity Trust
http://statistics.data.gov.uk/doc/local-authority/00DA,Leeds City Council as Accountable Body,Social Services Pooled Budgets,Jcs For People With Learning Disabilitie,Third Party Payments,Residential,580,18-Jul-2012,1207-00203,10737.26,R,Affinity Trust
http://statistics.data.gov.uk/doc/local-authority/00DA,Leeds City Council as Accountable Body,Social Services Pooled Budgets,Jcs For People With Learning Disabilitie,Third Party Payments,Residential,580,18-Jul-2012,1207-00204,12256.76,R,Affinity Trust
http://statistics.data.gov.uk/doc/local-authority/00DA,Leeds City Council as Accountable Body,Social Services Pooled Budgets,Jcs For People With Learning Disabilitie,Third Party Payments,Residential,580,24-Jul-2012,1207-00205,17439.32,R,Affinity Trust
http://statistics.data.gov.uk/doc/local-authority/00DA,Leeds City Council as Accountable Body,Social Services Pooled Budgets,Jcs For People With Learning Disabilitie,Third Party Payments,Residential,580,27-Jul-2012,1207-00206,17439.32,R,Affinity Trust
http://statistics.data.gov.uk/doc/local-authority/00DA,Leeds City Council as Accountable Body,Social Services Pooled Budgets,Jcs For People With Learning Disabilitie,Third Party Payments,Residential,580,24-Jul-2012,1207-00207,21474.52,R,Affinity Trust
http://statistics.data.gov.uk/doc/local-authority/00DA,Leeds City Council as Accountable Body,Social Services Pooled Budgets,Jcs For People With Learning Disabilitie,Third Party Payments,Residential,580,27-Jul-2012,1207-00208,21474.52,R,Affinity Trust
http://statistics.data.gov.uk/doc/local-authority/00DA,Leeds City Council as Accountable Body,Social Services Pooled Budgets,Jcs For People With Learning Disabilitie,Third Party Payments,Residential,580,24-Jul-2012,1207-00209,23010.24,R,Affinity Trust
http://statistics.data.gov.uk/doc/local-authority/00DA,Leeds City Council as Accountable Body,Social Services Pooled Budgets,Jcs For People With Learning Disabilitie,Third Party Payments,Residential,580,26-Jul-2012,1207-00210,23010.24,R,Affinity Trust
http://statistics.data.gov.uk/doc/local-authority/00DA,Leeds City Council as Accountable Body,Social Services Pooled Budgets,Jcs For People With Learning Disabilitie,Third Party Payments,Residential,580,24-Jul-2012,1207-00211,24513.52,R,Affinity Trust
http://statistics.data.gov.uk/doc/local-authority/00DA,Leeds City Council as Accountable Body,Social Services Pooled Budgets,Jcs For People With Learning Disabilitie,Third Party Payments,Residential,580,26-Jul-2012,1207-00212,24513.52,R,Affinity Trust
http://statistics.data.gov.uk/doc/local-authority/00DA,Leeds City Council as Accountable Body,Social Services Pooled Budgets,Jcs For People With Learning Disabilitie,Third Party Payments,Residential,580,20-Jul-2012,1207-00213,38368.98,R,Affinity Trust
http://statistics.data.gov.uk/doc/local-authority/00DA,Leeds City Council as Accountable Body,Social Services Pooled Budgets,Jcs For People With Learning Disabilitie,Third Party Payments,Residential,580,20-Jul-2012,1207-00214,39453.18,R,Affinity Trust
http://statistics.data.gov.uk/doc/local-authority/00DA,East - North East                    ,East - North East,Business Improvement,Premises,Other,114,11-Jul-2012,1207-00215,1250.00,R,Afrikan People Forum
http://statistics.data.gov.uk/doc/local-authority/00DA,Leeds City Council,Childrens Services,Safeguarding Targeted & Specialist,Supplies and Services,Courses For Non-Employees,281,20-Jul-2012,1207-00216,20000.00,R,After Adoption
http://statistics.data.gov.uk/doc/local-authority/00DA,Leeds City Council,Environment & Neighbourhoods,Strategy & Commissioning,Third Party Payments,Supporting Ppl - Block Gross Chargeable,514,13-Jul-2012,1207-00217,3957.68,R,Age Uk Leeds
http://statistics.data.gov.uk/doc/local-authority/00DA,Leeds City Council,City Development,Highways,Capital,Construction,3,19-Jul-2012,1207-00218,744.00,C,Aggregate Industries Uk Ltd
http://statistics.data.gov.uk/doc/local-authority/00DA,Leeds City Council,Adult Social Care,Services For Older People - 65 And Over,Transfer Payments,Direct Payments,626,04-Jul-2012,1207-00219,1224.98,R,REDACTED PERSONAL DATA
http://statistics.data.gov.uk/doc/local-authority/00DA,Leeds City Council,Adult Social Care,Services For Older People - 65 And Over,Transfer Payments,Personalised Budgets,627,04-Jul-2012,1207-00220,604.80,R,REDACTED PERSONAL DATA
http://statistics.data.gov.uk/doc/local-authority/00DA,West - North West                    ,West - North West,Customer And Tenancy,Supplies and Services,Project Expenses,286,19-Jul-2012,1207-00221,1000.00,R,REDACTED PERSONAL DATA
http://statistics.data.gov.uk/doc/local-authority/00DA,Leeds City Council,Adult Social Care,Services For Older People Under 65 P/Dis,Third Party Payments,Residential,580,04-Jul-2012,1207-00222,5619.64,R,Agricola House
http://statistics.data.gov.uk/doc/local-authority/00DA,Leeds City Council as Accountable Body,Social Services Pooled Budgets,Leeds Community Equip Store Pooled Budgt,Supplies and Services,Other Equipment,203,31-Jul-2012,1207-00223,588.00,R,Aidapt Bathrooms Ltd
http://statistics.data.gov.uk/doc/local-authority/00DA,Leeds City Council as Accountable Body,Social Services Pooled Budgets,Leeds Community Equip Store Pooled Budgt,Supplies and Services,Other Equipment,203,13-Jul-2012,1207-00224,735.00,R,Aidapt Bathrooms Ltd
http://statistics.data.gov.uk/doc/local-authority/00DA,Leeds City Council as Accountable Body,Social Services Pooled Budgets,Leeds Community Equip Store Pooled Budgt,Supplies and Services,Other Equipment,203,20-Jul-2012,1207-00225,793.86,R,Aidapt Bathrooms Ltd
http://statistics.data.gov.uk/doc/local-authority/00DA,Leeds City Council as Accountable Body,Social Services Pooled Budgets,Leeds Community Equip Store Pooled Budgt,Supplies and Services,Other Equipment,203,27-Jul-2012,1207-00226,795.00,R,Aidapt Bathrooms Ltd
http://statistics.data.gov.uk/doc/local-authority/00DA,Leeds City Council as Accountable Body,Social Services Pooled Budgets,Leeds Community Equip Store Pooled Budgt,Supplies and Services,Other Equipment,203,11-Jul-2012,1207-00227,1185.00,R,Aidapt Bathrooms Ltd
http://statistics.data.gov.uk/doc/local-authority/00DA,Leeds City Council as Accountable Body,Social Services Pooled Budgets,Leeds Community Equip Store Pooled Budgt,Supplies and Services,Other Equipment,203,27-Jul-2012,1207-00228,1408.00,R,Aidapt Bathrooms Ltd
http://statistics.data.gov.uk/doc/local-authority/00DA,Leeds City Council as Accountable Body,Social Services Pooled Budgets,Leeds Community Equip Store Pooled Budgt,Supplies and Services,Other Equipment,203,31-Jul-2012,1207-00229,1432.10,R,Aidapt Bathrooms Ltd
http://statistics.data.gov.uk/doc/local-authority/00DA,Leeds City Council as Accountable Body,Social Services Pooled Budgets,Leeds Community Equip Store Pooled Budgt,Supplies and Services,Other Equipment,203,19-Jul-2012,1207-00230,2471.50,R,Aidapt Bathrooms Ltd
http://statistics.data.gov.uk/doc/local-authority/00DA,Leeds City Council as Accountable Body,Social Services Pooled Budgets,Jcs For People With Learning Disabilitie,Transfer Payments,Personal Budgets,627,04-Jul-2012,1207-00231,2839.32,R,REDACTED PERSONAL DATA
http://statistics.data.gov.uk/doc/local-authority/00DA,Leeds City Council,Central & Corporate Functions,Commercial Services Trading Services,Supplies and Services,Other Hired And Contracted Services,265,12-Jul-2012,1207-00232,814.50,R,Aire Body Care
http://statistics.data.gov.uk/doc/local-authority/00DA,Leeds City Council,Central & Corporate Functions,Commercial Services Trading Services,Supplies and Services,Other Hired And Contracted Services,265,02-Jul-2012,1207-00233,1511.62,R,Aire Body Care
http://statistics.data.gov.uk/doc/local-authority/00DA,Leeds City Council as Accountable Body,Social Services Pooled Budgets,Jcs For People With Learning Disabilitie,Third Party Payments,Residential,580,04-Jul-2012,1207-00234,7012.04,R,Aire House
http://statistics.data.gov.uk/doc/local-authority/00DA,West - North West                    ,West - North West,Customer And Tenancy,Premises,General Maintenance,104,13-Jul-2012,1207-00235,2700.00,R,Aire Valley Tree Services Ltd
http://statistics.data.gov.uk/doc/local-authority/00DA,West - North West                    ,West - North West,Customer And Tenancy,Premises,General Maintenance,104,13-Jul-2012,1207-00236,8050.00,R,Aire Valley Tree Services Ltd
http://statistics.data.gov.uk/doc/local-authority/00DA,Leeds City Council,Adult Social Care,Services For Adults Under 65 Mental/Dis,Third Party Payments,Residential,580,04-Jul-2012,1207-00237,862.52,R,Aire View Residential Home
http://statistics.data.gov.uk/doc/local-authority/00DA,Leeds City Council,Adult Social Care,Services For Older People - 65 And Over,Third Party Payments,Residential Care Dementia,571,04-Jul-2012,1207-00238,29258.50,R,Aire View Residential Home
http://statistics.data.gov.uk/doc/local-authority/00DA,Leeds City Council,Adult Social Care,Services For Older People - 65 And Over,Third Party Payments,Residential,580,04-Jul-2012,1207-00239,4109.78,R,Aire View Residential Home
http://statistics.data.gov.uk/doc/local-authority/00DA,Leeds City Council,Adult Social Care,Services For Older People - 65 And Over,Third Party Payments,Residential,580,04-Jul-2012,1207-00240,22861.15,R,Airedale (Goldsborough)
http://statistics.data.gov.uk/doc/local-authority/00DA,Leeds City Council,Environment & Neighbourhoods,Community Safety,Supplies and Services,Other Hired And Contracted Services,265,20-Jul-2012,1207-00241,4585.19,R,Airwave Solutions Ltd
http://statistics.data.gov.uk/doc/local-authority/00DA,Leeds City Council,Adult Social Care,Services For Older People - 65 And Over,Third Party Payments,Home Care,568,27-Jul-2012,1207-00242,704.00,R,Aj Social Care
http://statistics.data.gov.uk/doc/local-authority/00DA,Leeds City Council,Adult Social Care,Services For Older People - 65 And Over,Third Party Payments,Home Care,568,27-Jul-2012,1207-00243,2324.30,R,Aj Social Care
http://statistics.data.gov.uk/doc/local-authority/00DA,Leeds City Council,Adult Social Care,Services For Older People - 65 And Over,Third Party Payments,Home Care,568,27-Jul-2012,1207-00244,9429.50,R,Aj Social Care
http://statistics.data.gov.uk/doc/local-authority/00DA,Leeds City Council,Adult Social Care,Services For Older People Under 65 P/Dis,Third Party Payments,Home Care,568,27-Jul-2012,1207-00245,1075.20,R,Aj Social Care
http://statistics.data.gov.uk/doc/local-authority/00DA,Leeds City Council,Adult Social Care,Services For Older People Under 65 P/Dis,Third Party Payments,Home Care,568,27-Jul-2012,1207-00246,1580.80,R,Aj Social Care
http://statistics.data.gov.uk/doc/local-authority/00DA,East - North East                    ,East - North East,Construction Services,Supplies and Services,Other Materials,205,18-Jul-2012,1207-00247,455.13,R,Ajm Fixings & Power Tools Ltd
http://statistics.data.gov.uk/doc/local-authority/00DA,East - North East                    ,East - North East,Construction Services,Supplies and Services,Other Materials,205,11-Jul-2012,1207-00248,544.00,R,Ajm Fixings & Power Tools Ltd
http://statistics.data.gov.uk/doc/local-authority/00DA,East - North East                    ,East - North East,Construction Services,Supplies and Services,Other Materials,205,24-Jul-2012,1207-00249,629.43,R,Ajm Fixings & Power Tools Ltd
http://statistics.data.gov.uk/doc/local-authority/00DA,East - North East                    ,East - North East,Construction Services,Supplies and Services,Other Materials,205,02-Jul-2012,1207-00250,729.60,R,Ajm Fixings & Power Tools Ltd
http://statistics.data.gov.uk/doc/local-authority/00DA,East - North East                    ,East - North East,Construction Services,Supplies and Services,Other Materials,205,18-Jul-2012,1207-00251,1015.52,R,Ajm Fixings & Power Tools Ltd
http://statistics.data.gov.uk/doc/local-authority/00DA,East - North East                    ,East - North East,Construction Services,Supplies and Services,Other Materials,205,24-Jul-2012,1207-00252,1179.45,R,Ajm Fixings & Power Tools Ltd
http://statistics.data.gov.uk/doc/local-authority/00DA,East - North East                    ,East - North East,Construction Services,Supplies and Services,Other Materials,205,02-Jul-2012,1207-00253,1359.60,R,Ajm Fixings & Power Tools Ltd
http://statistics.data.gov.uk/doc/local-authority/00DA,East - North East                    ,East - North East,Construction Services,Supplies and Services,Other Materials,205,18-Jul-2012,1207-00254,2386.50,R,Ajm Fixings & Power Tools Ltd
http://statistics.data.gov.uk/doc/local-authority/00DA,East - North East                    ,East - North East,Construction Services,Supplies and Services,Other Materials,205,24-Jul-2012,1207-00255,2391.73,R,Ajm Fixings & Power Tools Ltd
http://statistics.data.gov.uk/doc/local-authority/00DA,East - North East                    ,East - North East,Construction Services,Supplies and Services,Other Materials,205,24-Jul-2012,1207-00256,2445.87,R,Ajm Fixings & Power Tools Ltd
http://statistics.data.gov.uk/doc/local-authority/00DA,East - North East                    ,East - North East,Construction Services,Supplies and Services,Other Materials,205,11-Jul-2012,1207-00257,2473.44,R,Ajm Fixings & Power Tools Ltd
http://statistics.data.gov.uk/doc/local-authority/00DA,East - North East                    ,East - North East,Construction Services,Supplies and Services,Other Materials,205,02-Jul-2012,1207-00258,2756.15,R,Ajm Fixings & Power Tools Ltd
http://statistics.data.gov.uk/doc/local-authority/00DA,Leeds City Council,Central & Corporate Functions,Commercial Services Trading Services,Supplies and Services,Other Hired And Contracted Services,265,03-Jul-2012,1207-00259,777.90,R,Akua Uk Ltd
http://statistics.data.gov.uk/doc/local-authority/00DA,Leeds City Council,Adult Social Care,Services For Older People Under 65 P/Dis,Transfer Payments,Direct Payments,626,04-Jul-2012,1207-00260,1729.00,R,REDACTED PERSONAL DATA
http://statistics.data.gov.uk/doc/local-authority/00DA,Leeds City Council,Environment & Neighbourhoods,Regeneration Management,Supplies and Services,Other Hired And Contracted Services,265,19-Jul-2012,1207-00261,2154.00,R,Alan Gardner Associates
http://statistics.data.gov.uk/doc/local-authority/00DA,Leeds City Council,Adult Social Care,Services For Older People Under 65 P/Dis,Transfer Payments,Personalised Budgets,627,04-Jul-2012,1207-00262,2040.08,R,REDACTED PERSONAL DATA
http://statistics.data.gov.uk/doc/local-authority/00DA,Leeds City Council,Adult Social Care,Services For Older People - 65 And Over,Transfer Payments,Direct Payments,626,04-Jul-2012,1207-00263,3741.14,R,REDACTED PERSONAL DATA
http://statistics.data.gov.uk/doc/local-authority/00DA,Leeds City Council,Adult Social Care,Services For Older People - 65 And Over,Transfer Payments,Personalised Budgets,627,04-Jul-2012,1207-00264,884.76,R,REDACTED PERSONAL DATA
http://statistics.data.gov.uk/doc/local-authority/00DA,Leeds City Council,City Development,Libraries  Arts & Heritage,Transport,Plant Hire - By Directorate,305,06-Jul-2012,1207-00265,1093.29,R,Albury Asset Rentals Ltd
http://statistics.data.gov.uk/doc/local-authority/00DA,Leeds City Council as Accountable Body,Social Services Pooled Budgets,Jcs For People With Learning Disabilitie,Transfer Payments,Direct Payments,626,04-Jul-2012,1207-00266,1107.92,R,REDACTED PERSONAL DATA
http://statistics.data.gov.uk/doc/local-authority/00DA,Leeds City Council,Adult Social Care,Services For Older People Under 65 P/Dis,Transfer Payments,Direct Payments,626,04-Jul-2012,1207-00267,751.36,R,REDACTED PERSONAL DATA
http://statistics.data.gov.uk/doc/local-authority/00DA,Leeds City Council,Adult Social Care,Services For Adults Under 65 Mental/Dis,Transfer Payments,Personalised Budgets,627,04-Jul-2012,1207-00268,640.00,R,REDACTED PERSONAL DATA
http://statistics.data.gov.uk/doc/local-authority/00DA,Leeds City Council,Adult Social Care,Services For Older People - 65 And Over,Third Party Payments,Residential Care Dementia,571,04-Jul-2012,1207-00269,7982.00,R,Alexander Residential Home
http://statistics.data.gov.uk/doc/local-authority/00DA,Leeds City Council,Adult Social Care,Services For Older People - 65 And Over,Third Party Payments,Residential,580,04-Jul-2012,1207-00270,13287.88,R,Alexander Residential Home
http://statistics.data.gov.uk/doc/local-authority/00DA,Leeds City Council as Accountable Body,Social Services Pooled Budgets,Jcs For People With Learning Disabilitie,Third Party Payments,Residential,580,04-Jul-2012,1207-00271,1202.92,R,Alexander Residential Home
http://statistics.data.gov.uk/doc/local-authority/00DA,Leeds City Council as Accountable Body,Social Services Pooled Budgets,Jcs For People With Learning Disabilitie,Transfer Payments,Personal Budgets,627,04-Jul-2012,1207-00272,419.60,R,REDACTED PERSONAL DATA
http://statistics.data.gov.uk/doc/local-authority/00DA,Leeds City Council,Adult Social Care,Services For Older People - 65 And Over,Third Party Payments,Residential Care Dementia,571,04-Jul-2012,1207-00273,1220.60,R,Alexandra Court
http://statistics.data.gov.uk/doc/local-authority/00DA,Leeds City Council,Adult Social Care,Services For Older People - 65 And Over,Third Party Payments,Residential,580,04-Jul-2012,1207-00274,10689.44,R,Alexandra Court
http://statistics.data.gov.uk/doc/local-authority/00DA,Leeds City Council,Adult Social Care,Services For Older People - 65 And Over,Transfer Payments,Direct Payments,626,04-Jul-2012,1207-00275,3019.24,R,REDACTED PERSONAL DATA
http://statistics.data.gov.uk/doc/local-authority/00DA,Leeds City Council,Environment & Neighbourhoods,Environmental Action (South),Supplies and Services,Bought In Professional Services,277,06-Jul-2012,1207-00276,423.70,R,Alfies Boarding Kennels
http://statistics.data.gov.uk/doc/local-authority/00DA,Leeds City Council,Environment & Neighbourhoods,Environmental Action (South),Supplies and Services,Bought In Professional Services,277,19-Jul-2012,1207-00277,700.00,R,Alfies Boarding Kennels
http://statistics.data.gov.uk/doc/local-authority/00DA,Leeds City Council,City Development,Asset Management Services,Capital,Construction,3,27-Jul-2012,1207-00278,693.46,C,Alfred Bagnall & Sons (Leeds) Ltd
http://statistics.data.gov.uk/doc/local-authority/00DA,Leeds City Council,City Development,Asset Management Services,Premises,Maintenance Of Buildings,101,18-Jul-2012,1207-00279,582.66,R,Alfred Bagnall & Sons (Leeds) Ltd
http://statistics.data.gov.uk/doc/local-authority/00DA,Leeds City Council,City Development,Economic Development,Premises,Maintenance Of Buildings,101,12-Jul-2012,1207-00280,2242.15,R,Alfred Bagnall & Sons (Leeds) Ltd
http://statistics.data.gov.uk/doc/local-authority/00DA,Leeds City Council,Adult Social Care,Services For Older People - 65 And Over,Transfer Payments,Direct Payments,626,04-Jul-2012,1207-00281,2809.92,R,REDACTED PERSONAL DATA
http://statistics.data.gov.uk/doc/local-authority/00DA,Leeds City Council as Accountable Body,Social Services Pooled Budgets,Jcs For People With Learning Disabilitie,Transfer Payments,Personal Budgets,627,04-Jul-2012,1207-00282,947.96,R,REDACTED PERSONAL DATA
http://statistics.data.gov.uk/doc/local-authority/00DA,Leeds City Council,City Development,Libraries  Arts & Heritage,Supplies and Services,Bought In Professional Services,277,19-Jul-2012,1207-00283,1787.05,R,Alison Glew
http://statistics.data.gov.uk/doc/local-authority/00DA,Leeds City Council,Adult Social Care,Services For Older People Under 65 P/Dis,Transfer Payments,Direct Payments,626,04-Jul-2012,1207-00284,2666.40,R,REDACTED PERSONAL DATA
http://statistics.data.gov.uk/doc/local-authority/00DA,Leeds City Council,Adult Social Care,Services For Adults Under 65 Mental/Dis,Transfer Payments,Direct Payments,626,04-Jul-2012,1207-00285,3020.04,R,REDACTED PERSONAL DATA
http://statistics.data.gov.uk/doc/local-authority/00DA,Leeds City Council,Adult Social Care,Services For Older People Under 65 P/Dis,Supplies and Services,Operational Furniture And Equipment,203,19-Jul-2012,1207-00286,428.64,R,Allcare Mobility
http://statistics.data.gov.uk/doc/local-authority/00DA,Leeds City Council,Adult Social Care,Services For Older People - 65 And Over,Third Party Payments,Residential,580,04-Jul-2012,1207-00287,1085.36,R,Allendale Residential Home
http://statistics.data.gov.uk/doc/local-authority/00DA,Leeds City Council as Accountable Body,Social Services Pooled Budgets,Jcs For People With Learning Disabilitie,Third Party Payments,Residential,580,04-Jul-2012,1207-00288,47218.72,R,Allerton Avenue
http://statistics.data.gov.uk/doc/local-authority/00DA,Leeds City Council,Central & Corporate Functions,Revenues,Supplies and Services,Bank Charges,263,04-Jul-2012,1207-00289,1071.35,R,Alliance & Leicester Commercial Bank
http://statistics.data.gov.uk/doc/local-authority/00DA,Leeds City Council,Childrens Services,Safeguarding Targeted & Specialist,Third Party Payments,General External Residential Placements,507,06-Jul-2012,1207-00290,14721.42,R,Alliance Care And Education
http://statistics.data.gov.uk/doc/local-authority/00DA,Leeds City Council,City Development,Highways,Supplies and Services,Other Hired And Contracted Services,265,23-Jul-2012,1207-00291,816.00,R,Allied Exploration & Geotechnics Ltd
http://statistics.data.gov.uk/doc/local-authority/00DA,Leeds City Council,Adult Social Care,Services For Older People Under 65 P/Dis,Third Party Payments,Home Care,568,24-Jul-2012,1207-00292,428.43,R,Allied Healthcare Group Ltd
http://statistics.data.gov.uk/doc/local-authority/00DA,Leeds City Council,Adult Social Care,Services For Older People Under 65 P/Dis,Third Party Payments,Home Care,568,20-Jul-2012,1207-00293,534.10,R,Allied Healthcare Group Ltd
http://statistics.data.gov.uk/doc/local-authority/00DA,Leeds City Council,Adult Social Care,Services For Older People Under 65 P/Dis,Third Party Payments,Home Care,568,24-Jul-2012,1207-00294,714.00,R,Allied Healthcare Group Ltd
http://statistics.data.gov.uk/doc/local-authority/00DA,Leeds City Council,Adult Social Care,Services For Older People Under 65 P/Dis,Third Party Payments,Home Care,568,24-Jul-2012,1207-00295,928.20,R,Allied Healthcare Group Ltd
http://statistics.data.gov.uk/doc/local-authority/00DA,Leeds City Council,Adult Social Care,Services For Older People Under 65 P/Dis,Third Party Payments,Home Care,568,24-Jul-2012,1207-00296,6398.77,R,Allied Healthcare Group Ltd
http://statistics.data.gov.uk/doc/local-authority/00DA,Leeds City Council as Accountable Body,Social Services Pooled Budgets,Jcs For People With Learning Disabilitie,Third Party Payments,Home Care,568,23-Jul-2012,1207-00297,427.30,R,Allied Healthcare Group Ltd
http://statistics.data.gov.uk/doc/local-authority/00DA,Leeds City Council as Accountable Body,Social Services Pooled Budgets,Jcs For People With Learning Disabilitie,Third Party Payments,Home Care,568,17-Jul-2012,1207-00298,503.38,R,Allied Healthcare Group Ltd
http://statistics.data.gov.uk/doc/local-authority/00DA,Leeds City Council as Accountable Body,Social Services Pooled Budgets,Jcs For People With Learning Disabilitie,Third Party Payments,Home Care,568,23-Jul-2012,1207-00299,514.08,R,Allied Healthcare Group Ltd
http://statistics.data.gov.uk/doc/local-authority/00DA,Leeds City Council as Accountable Body,Social Services Pooled Budgets,Jcs For People With Learning Disabilitie,Third Party Payments,Home Care,568,23-Jul-2012,1207-00300,523.91,R,Allied Healthcare Group Ltd
http://statistics.data.gov.uk/doc/local-authority/00DA,Leeds City Council as Accountable Body,Social Services Pooled Budgets,Jcs For People With Learning Disabilitie,Third Party Payments,Home Care,568,24-Jul-2012,1207-00301,1056.69,R,Allied Healthcare Group Ltd
http://statistics.data.gov.uk/doc/local-authority/00DA,Leeds City Council as Accountable Body,Social Services Pooled Budgets,Jcs For People With Learning Disabilitie,Third Party Payments,Home Care,568,24-Jul-2012,1207-00302,1226.92,R,Allied Healthcare Group Ltd
http://statistics.data.gov.uk/doc/local-authority/00DA,Leeds City Council as Accountable Body,Social Services Pooled Budgets,Jcs For People With Learning Disabilitie,Third Party Payments,Home Care,568,24-Jul-2012,1207-00303,1384.03,R,Allied Healthcare Group Ltd
http://statistics.data.gov.uk/doc/local-authority/00DA,Leeds City Council as Accountable Body,Social Services Pooled Budgets,Jcs For People With Learning Disabilitie,Third Party Payments,Home Care,568,24-Jul-2012,1207-00304,1389.51,R,Allied Healthcare Group Ltd
http://statistics.data.gov.uk/doc/local-authority/00DA,Leeds City Council as Accountable Body,Social Services Pooled Budgets,Jcs For People With Learning Disabilitie,Third Party Payments,Home Care,568,24-Jul-2012,1207-00305,1400.43,R,Allied Healthcare Group Ltd
http://statistics.data.gov.uk/doc/local-authority/00DA,Leeds City Council,Childrens Services,Learning Skills & Universal,Transport,Fuel (Non LCC Supplies),321,06-Jul-2012,1207-00306,2433.98,R,Allstar Business Solutions Ltd
http://statistics.data.gov.uk/doc/local-authority/00DA,Leeds City Council,Childrens Services,Safeguarding Targeted & Specialist,Support Services,Legal Disbursements,411,11-Jul-2012,1207-00307,455.00,R,Alpha Biolabs
http://statistics.data.gov.uk/doc/local-authority/00DA,Leeds City Council,Childrens Services,Safeguarding Targeted & Specialist,Support Services,Legal Disbursements,411,06-Jul-2012,1207-00308,455.00,R,Alpha Biolabs
http://statistics.data.gov.uk/doc/local-authority/00DA,Aire Valley Homes Leeds  ,Aire Valley Homes Leeds,Housing,Supplies and Services,Equipment And Materials,207,12-Jul-2012,1207-00309,478.00,R,Alpha Tools (Northern) Ltd
http://statistics.data.gov.uk/doc/local-authority/00DA,Leeds City Council,City Development,Recreation,Supplies and Services,Other Hired And Contracted Services,265,25-Jul-2012,1207-00310,550.00,R,Alpha White Lining Ltd
http://statistics.data.gov.uk/doc/local-authority/00DA,Leeds City Council,Central & Corporate Functions,Commercial Services Trading Services,Supplies and Services,Other Hired And Contracted Services,265,27-Jul-2012,1207-00311,6126.00,R,Alternative Windows (Leeds) Ltd
http://statistics.data.gov.uk/doc/local-authority/00DA,Leeds City Council,Central & Corporate Functions,Commercial Services Trading Services,Supplies and Services,Operational Materials,205,18-Jul-2012,1207-00312,464.16,R,Alvin Morris Ltd
http://statistics.data.gov.uk/doc/local-authority/00DA,Leeds City Council,Central & Corporate Functions,Commercial Services Trading Services,Supplies and Services,Operational Materials,205,06-Jul-2012,1207-00313,507.41,R,Alvin Morris Ltd
http://statistics.data.gov.uk/doc/local-authority/00DA,Leeds City Council,Environment & Neighbourhoods,Regeneration Management,Capital,Other Costs,7,11-Jul-2012,1207-00314,5785.65,C,REDACTED PERSONAL DATA
http://statistics.data.gov.uk/doc/local-authority/00DA,Leeds City Council,Adult Social Care,Services For Adults Under 65 Mental/Dis,Transfer Payments,Direct Payments,626,04-Jul-2012,1207-00315,2160.48,R,REDACTED PERSONAL DATA
http://statistics.data.gov.uk/doc/local-authority/00DA,Leeds City Council,Adult Social Care,Services For Adults Under 65 Mental/Dis,Transfer Payments,Personalised Budgets,627,10-Jul-2012,1207-00316,6080.70,R,REDACTED PERSONAL DATA
http://statistics.data.gov.uk/doc/local-authority/00DA,Leeds City Council,Adult Social Care,Services For Older People Under 65 P/Dis,Transfer Payments,Personalised Budgets,627,04-Jul-2012,1207-00317,1456.00,R,REDACTED PERSONAL DATA
http://statistics.data.gov.uk/doc/local-authority/00DA,Leeds City Council,Adult Social Care,Services For Older People Under 65 P/Dis,Transfer Payments,Direct Payments,626,04-Jul-2012,1207-00318,761.44,R,REDACTED PERSONAL DATA
http://statistics.data.gov.uk/doc/local-authority/00DA,Leeds City Council,Childrens Services,Learning Skills & Universal,Third Party Payments,Services Rendered By Other Organisations,511,06-Jul-2012,1207-00319,441.20,R,Amazing Grace Early Years Childcare
http://statistics.data.gov.uk/doc/local-authority/00DA,Leeds City Council,Childrens Services,Learning Skills & Universal,Third Party Payments,Services Rendered By Other Organisations,511,26-Jul-2012,1207-00320,3529.80,R,Amazing Grace Early Years Childcare
http://statistics.data.gov.uk/doc/local-authority/00DA,Leeds City Council,Childrens Services,Learning Skills & Universal Total,Supplies and Services,Computer Software and Equipment,214,19-Jun-2012,1207-00321,584.10,R,Amazon *mktplce Eu-Uk
http://statistics.data.gov.uk/doc/local-authority/00DA,Leeds City Council,City Development,Libraries  Arts & Heritage Total,Supplies and Services,Books and Audio - Visual Materials,206,14-Jun-2012,1207-00322,537.06,R,Amazon *mktplce Eu-Uk
http://statistics.data.gov.uk/doc/local-authority/00DA,Leeds City Council,Childrens Services,Safeguarding Targeted & Specialist,Third Party Payments,General External Residential Placements,507,13-Jul-2012,1207-00323,16020.00,R,Amberleigh Care Ltd
http://statistics.data.gov.uk/doc/local-authority/00DA,Leeds City Council,City Development,Libraries  Arts & Heritage,Supplies and Services,Operational Materials,205,20-Jul-2012,1207-00324,896.66,R,Ambius
http://statistics.data.gov.uk/doc/local-authority/00DA,Leeds City Council,Adult Social Care,Services For Older People - 65 And Over,Third Party Payments,Residential,580,04-Jul-2012,1207-00325,2150.44,R,Amelia House Care Home
http://statistics.data.gov.uk/doc/local-authority/00DA,Leeds City Council,Adult Social Care,Services For Older People - 65 And Over,Transfer Payments,Personalised Budgets,627,04-Jul-2012,1207-00326,810.80,R,REDACTED PERSONAL DATA
http://statistics.data.gov.uk/doc/local-authority/00DA,Leeds City Council,Childrens Services,Safeguarding Targeted & Specialist,Third Party Payments,General External Residential Placements,507,19-Jul-2012,1207-00327,664.85,R,Ampleforth Abbey Trust
http://statistics.data.gov.uk/doc/local-authority/00DA,Leeds City Council,City Development,Economic Development,Supplies and Services,City Centre Enhancement,295,20-Jul-2012,1207-00328,3300.00,R,Amr Security Services Ltd
http://statistics.data.gov.uk/doc/local-authority/00DA,Leeds City Council as Accountable Body,Social Services Pooled Budgets,Jcs For People With Learning Disabilitie,Transfer Payments,Personal Budgets,627,04-Jul-2012,1207-00329,878.96,R,REDACTED PERSONAL DATA
http://statistics.data.gov.uk/doc/local-authority/00DA,Leeds City Council as Accountable Body,Social Services Pooled Budgets,Jcs For People With Learning Disabilitie,Transfer Payments,Personal Budgets,627,04-Jul-2012,1207-00330,1316.40,R,REDACTED PERSONAL DATA
http://statistics.data.gov.uk/doc/local-authority/00DA,Leeds City Council,Adult Social Care,Services For Older People Under 65 P/Dis,Transfer Payments,Direct Payments,626,04-Jul-2012,1207-00331,1124.72,R,REDACTED PERSONAL DATA
http://statistics.data.gov.uk/doc/local-authority/00DA,Leeds City Council,Adult Social Care,Services For Older People - 65 And Over,Third Party Payments,Payments To Voluntary Organisations,561,13-Jul-2012,1207-00332,9167.48,R,Anchor Trust
http://statistics.data.gov.uk/doc/local-authority/00DA,Leeds City Council,Adult Social Care,Services For Older People - 65 And Over,Third Party Payments,Nursing Home,570,04-Jul-2012,1207-00333,24792.71,R,Anchor Trust
http://statistics.data.gov.uk/doc/local-authority/00DA,Leeds City Council,Adult Social Care,Services For Older People - 65 And Over,Third Party Payments,Residential Care Dementia,571,04-Jul-2012,1207-00334,433.24,R,Anchor Trust
http://statistics.data.gov.uk/doc/local-authority/00DA,Leeds City Council,Adult Social Care,Services For Older People - 65 And Over,Third Party Payments,Residential Care Dementia,571,04-Jul-2012,1207-00335,1650.04,R,Anchor Trust
http://statistics.data.gov.uk/doc/local-authority/00DA,Leeds City Council,Adult Social Care,Services For Older People - 65 And Over,Third Party Payments,Residential Care Dementia,571,04-Jul-2012,1207-00336,4681.60,R,Anchor Trust
http://statistics.data.gov.uk/doc/local-authority/00DA,Leeds City Council,Adult Social Care,Services For Older People - 65 And Over,Third Party Payments,Nursing Care Dementia,574,04-Jul-2012,1207-00337,1169.00,R,Anchor Trust
http://statistics.data.gov.uk/doc/local-authority/00DA,Leeds City Council,Adult Social Care,Services For Older People - 65 And Over,Third Party Payments,Nursing Care Dementia,574,04-Jul-2012,1207-00338,1652.60,R,Anchor Trust
http://statistics.data.gov.uk/doc/local-authority/00DA,Leeds City Council,Adult Social Care,Services For Older People - 65 And Over,Third Party Payments,Residential,580,04-Jul-2012,1207-00339,4869.84,R,Anchor Trust
http://statistics.data.gov.uk/doc/local-authority/00DA,Leeds City Council,Adult Social Care,Services For Older People - 65 And Over,Third Party Payments,Residential,580,04-Jul-2012,1207-00340,7398.72,R,Anchor Trust
http://statistics.data.gov.uk/doc/local-authority/00DA,Leeds City Council,Adult Social Care,Services For Older People - 65 And Over,Third Party Payments,Residential,580,04-Jul-2012,1207-00341,17891.15,R,Anchor Trust
http://statistics.data.gov.uk/doc/local-authority/00DA,Leeds City Council,Adult Social Care,Services For Older People Under 65 P/Dis,Third Party Payments,Residential,580,04-Jul-2012,1207-00342,2251.72,R,Anchor Trust
http://statistics.data.gov.uk/doc/local-authority/00DA,Leeds City Council,Environment & Neighbourhoods,Strategy & Commissioning,Third Party Payments,Supporting Ppl - Block Gross Chargeable,514,13-Jul-2012,1207-00343,468.48,R,Anchor Trust
http://statistics.data.gov.uk/doc/local-authority/00DA,Leeds City Council,Environment & Neighbourhoods,Strategy & Commissioning,Third Party Payments,Supporting Ppl - Block Gross Chargeable,514,13-Jul-2012,1207-00344,542.40,R,Anchor Trust
http://statistics.data.gov.uk/doc/local-authority/00DA,Leeds City Council,Environment & Neighbourhoods,Strategy & Commissioning,Third Party Payments,Supporting Ppl - Block Gross Chargeable,514,13-Jul-2012,1207-00345,4729.40,R,Anchor Trust
http://statistics.data.gov.uk/doc/local-authority/00DA,Leeds City Council,Adult Social Care,Services For Older People - 65 And Over,Third Party Payments,Residential Care Dementia,571,04-Jul-2012,1207-00346,5974.64,R,Anchor Trust Simon Marks Court
http://statistics.data.gov.uk/doc/local-authority/00DA,Leeds City Council,Adult Social Care,Services For Older People - 65 And Over,Third Party Payments,Residential,580,04-Jul-2012,1207-00347,14043.72,R,Anchor Trust Simon Marks Court
http://statistics.data.gov.uk/doc/local-authority/00DA,Leeds City Council,Adult Social Care,Services For Older People Under 65 P/Dis,Transfer Payments,Personalised Budgets,627,04-Jul-2012,1207-00348,603.60,R,REDACTED PERSONAL DATA
http://statistics.data.gov.uk/doc/local-authority/00DA,Leeds City Council,Adult Social Care,Services For Older People Under 65 P/Dis,Transfer Payments,Direct Payments,626,04-Jul-2012,1207-00349,5217.68,R,REDACTED PERSONAL DATA
http://statistics.data.gov.uk/doc/local-authority/00DA,Leeds City Council,Adult Social Care,Services For Adults Under 65 Mental/Dis,Transfer Payments,Personalised Budgets,627,04-Jul-2012,1207-00350,821.52,R,REDACTED PERSONAL DATA
http://statistics.data.gov.uk/doc/local-authority/00DA,Leeds City Council,City Development,Libraries  Arts & Heritage,Supplies and Services,Other Hired And Contracted Services,265,18-Jul-2012,1207-00351,440.00,R,Andrew Brooks
http://statistics.data.gov.uk/doc/local-authority/00DA,Leeds City Council as Accountable Body,Social Services Pooled Budgets,Jcs For People With Learning Disabilitie,Transfer Payments,Personal Budgets,627,04-Jul-2012,1207-00352,837.40,R,REDACTED PERSONAL DATA
http://statistics.data.gov.uk/doc/local-authority/00DA,Leeds City Council,Adult Social Care,Services For Older People Under 65 P/Dis,Transfer Payments,Direct Payments,626,04-Jul-2012,1207-00353,6742.38,R,REDACTED PERSONAL DATA
http://statistics.data.gov.uk/doc/local-authority/00DA,Leeds City Council,Environment & Neighbourhoods,Statutory Housing,Supplies and Services,Other Hired And Contracted Services,265,30-Jul-2012,1207-00354,750.00,R,Andrew Hickman
http://statistics.data.gov.uk/doc/local-authority/00DA,Leeds City Council,Adult Social Care,Services For Older People Under 65 P/Dis,Transfer Payments,Personalised Budgets,627,04-Jul-2012,1207-00355,1000.00,R,REDACTED PERSONAL DATA
http://statistics.data.gov.uk/doc/local-authority/00DA,Leeds City Council as Accountable Body,Social Services Pooled Budgets,Jcs For People With Learning Disabilitie,Transfer Payments,Direct Payments,626,04-Jul-2012,1207-00356,872.86,R,REDACTED PERSONAL DATA
http://statistics.data.gov.uk/doc/local-authority/00DA,Leeds City Council,Childrens Services,Safeguarding Targeted & Specialist,Support Services,Legal Disbursements,411,09-Jul-2012,1207-00357,459.10,R,Andrew Kenyon
http://statistics.data.gov.uk/doc/local-authority/00DA,Leeds City Council,Adult Social Care,Services For Older People Under 65 P/Dis,Transfer Payments,Personalised Budgets,627,04-Jul-2012,1207-00358,679.36,R,REDACTED PERSONAL DATA
http://statistics.data.gov.uk/doc/local-authority/00DA,Leeds City Council,Central & Corporate Functions,Commercial Services Trading Services,Supplies and Services,Other Hired And Contracted Services,265,13-Jul-2012,1207-00359,450.00,R,Andrew Mcnair
http://statistics.data.gov.uk/doc/local-authority/00DA,East - North East                    ,East - North East,Construction Services,Supplies and Services,Other Hired And Contracted Services,265,11-Jul-2012,1207-00360,559.35,R,Andrew Miller Builders
http://statistics.data.gov.uk/doc/local-authority/00DA,East - North East                    ,East - North East,Construction Services,Supplies and Services,Other Hired And Contracted Services,265,13-Jul-2012,1207-00361,880.30,R,Andrew Miller Builders
http://statistics.data.gov.uk/doc/local-authority/00DA,East - North East                    ,East - North East,Construction Services,Supplies and Services,Other Hired And Contracted Services,265,13-Jul-2012,1207-00362,961.51,R,Andrew Miller Builders
http://statistics.data.gov.uk/doc/local-authority/00DA,East - North East                    ,East - North East,Construction Services,Supplies and Services,Other Hired And Contracted Services,265,13-Jul-2012,1207-00363,4249.35,R,Andrew Miller Builders
http://statistics.data.gov.uk/doc/local-authority/00DA,Leeds City Council,Adult Social Care,Services For Older People Under 65 P/Dis,Transfer Payments,Direct Payments,626,04-Jul-2012,1207-00364,2021.52,R,REDACTED PERSONAL DATA
http://statistics.data.gov.uk/doc/local-authority/00DA,Leeds City Council as Accountable Body,Social Services Pooled Budgets,Jcs For People With Learning Disabilitie,Transfer Payments,Direct Payments,626,04-Jul-2012,1207-00365,866.12,R,REDACTED PERSONAL DATA
http://statistics.data.gov.uk/doc/local-authority/00DA,Leeds City Council,Adult Social Care,Services For Older People Under 65 P/Dis,Transfer Payments,Personalised Budgets,627,04-Jul-2012,1207-00366,5614.39,R,REDACTED PERSONAL DATA
http://statistics.data.gov.uk/doc/local-authority/00DA,Leeds City Council,City Development,Recreation,Support Services,Legal Disbursements,411,09-Jul-2012,1207-00367,600.00,R,Andrew Sugarman
http://statistics.data.gov.uk/doc/local-authority/00DA,Leeds City Council,City Development,Support Services,Support Services,Legal Disbursements,411,09-Jul-2012,1207-00368,600.00,R,Andrew Sugarman
http://statistics.data.gov.uk/doc/local-authority/00DA,Leeds City Council,Environment & Neighbourhoods,Environmental Action (South),Support Services,Legal Disbursements,411,09-Jul-2012,1207-00369,600.00,R,Andrew Sugarman
http://statistics.data.gov.uk/doc/local-authority/00DA,Leeds City Council,Childrens Services,Learning Skills & Universal,Supplies and Services,Bought In Professional Services,277,10-Jul-2012,1207-00370,600.00,R,REDACTED PERSONAL DATA
http://statistics.data.gov.uk/doc/local-authority/00DA,Leeds City Council as Accountable Body,Social Services Pooled Budgets,Jcs For People With Learning Disabilitie,Transfer Payments,Direct Payments,626,04-Jul-2012,1207-00371,433.60,R,REDACTED PERSONAL DATA
http://statistics.data.gov.uk/doc/local-authority/00DA,Leeds City Council as Accountable Body,Social Services Pooled Budgets,Jcs For People With Learning Disabilitie,Third Party Payments,Sheltered Accommodation,569,04-Jul-2012,1207-00372,687.48,R,REDACTED PERSONAL DATA
http://statistics.data.gov.uk/doc/local-authority/00DA,Leeds City Council,Childrens Services,Learning Skills & Universal,Third Party Payments,Services Rendered By Other Organisations,511,26-Jul-2012,1207-00373,721.49,R,REDACTED PERSONAL DATA
http://statistics.data.gov.uk/doc/local-authority/00DA,Leeds City Council,Environment & Neighbourhoods,Hra,Support Services,Legal Disbursements,411,05-Jul-2012,1207-00374,2500.00,R,REDACTED PERSONAL DATA
http://statistics.data.gov.uk/doc/local-authority/00DA,Leeds City Council,Adult Social Care,Services For Older People - 65 And Over,Third Party Payments,Home Care,568,09-Jul-2012,1207-00375,781.05,R,Angels Home Care Services
http://statistics.data.gov.uk/doc/local-authority/00DA,Leeds City Council,Adult Social Care,Services For Older People - 65 And Over,Third Party Payments,Home Care,568,12-Jul-2012,1207-00376,987.00,R,Angels Home Care Services
http://statistics.data.gov.uk/doc/local-authority/00DA,Leeds City Council,Adult Social Care,Services For Older People - 65 And Over,Third Party Payments,Home Care,568,06-Jul-2012,1207-00377,1060.50,R,Angels Home Care Services
http://statistics.data.gov.uk/doc/local-authority/00DA,Leeds City Council,Adult Social Care,Services For Older People - 65 And Over,Third Party Payments,Home Care,568,06-Jul-2012,1207-00378,1540.00,R,Angels Home Care Services
http://statistics.data.gov.uk/doc/local-authority/00DA,Leeds City Council,Childrens Services,Learning Skills & Universal,Premises,External Cleaning Services,130,09-Jul-2012,1207-00379,450.00,R,Angels Housekeeping Cic Ltd
http://statistics.data.gov.uk/doc/local-authority/00DA,Leeds City Council,Childrens Services,Learning Skills & Universal,Third Party Payments,Services Rendered By Other Organisations,511,06-Jul-2012,1207-00380,1870.57,R,Angels Nursery
http://statistics.data.gov.uk/doc/local-authority/00DA,Leeds City Council,Childrens Services,Learning Skills & Universal,Third Party Payments,Services Rendered By Other Organisations,511,26-Jul-2012,1207-00381,23376.60,R,Angels Nursery
http://statistics.data.gov.uk/doc/local-authority/00DA,Leeds City Council,Adult Social Care,Services For Older People Under 65 P/Dis,Transfer Payments,Direct Payments,626,04-Jul-2012,1207-00382,642.24,R,REDACTED PERSONAL DATA
http://statistics.data.gov.uk/doc/local-authority/00DA,Leeds City Council,City Development,Economic Development,Premises,Plant and Machinery,102,31-Jul-2012,1207-00383,1158.22,R,Ankef Ltd
http://statistics.data.gov.uk/doc/local-authority/00DA,Leeds City Council,Adult Social Care,Services For Older People Under 65 P/Dis,Transfer Payments,Direct Payments,626,04-Jul-2012,1207-00384,804.88,R,REDACTED PERSONAL DATA
http://statistics.data.gov.uk/doc/local-authority/00DA,Leeds City Council,Adult Social Care,Services For Older People Under 65 P/Dis,Transfer Payments,Direct Payments,626,04-Jul-2012,1207-00385,443.52,R,REDACTED PERSONAL DATA
http://statistics.data.gov.uk/doc/local-authority/00DA,Leeds City Council,Adult Social Care,Services For Older People - 65 And Over,Transfer Payments,Direct Payments,626,04-Jul-2012,1207-00386,643.32,R,REDACTED PERSONAL DATA
http://statistics.data.gov.uk/doc/local-authority/00DA,Leeds City Council,Adult Social Care,Services For Older People Under 65 P/Dis,Transfer Payments,Personalised Budgets,627,04-Jul-2012,1207-00387,517.56,R,REDACTED PERSONAL DATA
http://statistics.data.gov.uk/doc/local-authority/00DA,Leeds City Council,Adult Social Care,Services For Older People Under 65 P/Dis,Transfer Payments,Personalised Budgets,627,04-Jul-2012,1207-00388,620.44,R,REDACTED PERSONAL DATA
http://statistics.data.gov.uk/doc/local-authority/00DA,Leeds City Council,Adult Social Care,Services For Adults Under 65 Mental/Dis,Transfer Payments,Direct Payments,626,04-Jul-2012,1207-00389,702.40,R,REDACTED PERSONAL DATA
http://statistics.data.gov.uk/doc/local-authority/00DA,Leeds City Council,Childrens Services,Safeguarding Targeted & Specialist,Supplies and Services,Compensation Claims,200,23-Jul-2012,1207-00390,500.00,R,REDACTED PERSONAL DATA
http://statistics.data.gov.uk/doc/local-authority/00DA,Leeds City Council,Adult Social Care,Services For Older People - 65 And Over,Transfer Payments,Direct Payments,626,04-Jul-2012,1207-00391,2138.56,R,REDACTED PERSONAL DATA
http://statistics.data.gov.uk/doc/local-authority/00DA,Leeds City Council,Adult Social Care,Services For Older People Under 65 P/Dis,Transfer Payments,Personalised Budgets,627,04-Jul-2012,1207-00392,973.64,R,REDACTED PERSONAL DATA
http://statistics.data.gov.uk/doc/local-authority/00DA,Leeds City Council as Accountable Body,Social Services Pooled Budgets,Jcs For People With Learning Disabilitie,Transfer Payments,Direct Payments,626,04-Jul-2012,1207-00393,1598.00,R,REDACTED PERSONAL DATA
http://statistics.data.gov.uk/doc/local-authority/00DA,Leeds City Council,Adult Social Care,Services For Older People - 65 And Over,Transfer Payments,Personalised Budgets,627,04-Jul-2012,1207-00394,551.64,R,REDACTED PERSONAL DATA
http://statistics.data.gov.uk/doc/local-authority/00DA,Leeds City Council,Adult Social Care,Services For Older People - 65 And Over,Transfer Payments,Personalised Budgets,627,04-Jul-2012,1207-00395,2021.44,R,REDACTED PERSONAL DATA
http://statistics.data.gov.uk/doc/local-authority/00DA,Leeds City Council,Central & Corporate Functions,Human Resources,Employees,Training Costs,071,16-Jul-2012,1207-00396,1594.25,R,Anslow Communications Ltd
http://statistics.data.gov.uk/doc/local-authority/00DA,Leeds City Council,Central & Corporate Functions,Support And Facilities Trading Services,Supplies and Services,Operational Materials,205,27-Jul-2012,1207-00397,469.00,R,Antalis Mcnaughton Limited
http://statistics.data.gov.uk/doc/local-authority/00DA,Leeds City Council,Central & Corporate Functions,Support And Facilities Trading Services,Supplies and Services,Operational Materials,205,13-Jul-2012,1207-00398,469.00,R,Antalis Mcnaughton Limited
http://statistics.data.gov.uk/doc/local-authority/00DA,Leeds City Council,Central & Corporate Functions,Support And Facilities Trading Services,Supplies and Services,Operational Materials,205,13-Jul-2012,1207-00399,469.00,R,Antalis Mcnaughton Limited
http://statistics.data.gov.uk/doc/local-authority/00DA,Leeds City Council,Adult Social Care,Services For Older People Under 65 P/Dis,Transfer Payments,Direct Payments,626,04-Jul-2012,1207-00400,547.20,R,REDACTED PERSONAL DATA
http://statistics.data.gov.uk/doc/local-authority/00DA,Leeds City Council as Accountable Body,Social Services Pooled Budgets,Jcs For People With Learning Disabilitie,Transfer Payments,Personal Budgets,627,04-Jul-2012,1207-00401,890.00,R,REDACTED PERSONAL DATA
http://statistics.data.gov.uk/doc/local-authority/00DA,Leeds City Council,Adult Social Care,Services For Older People - 65 And Over,Transfer Payments,Direct Payments,626,04-Jul-2012,1207-00402,930.20,R,REDACTED PERSONAL DATA
http://statistics.data.gov.uk/doc/local-authority/00DA,Leeds City Council,Adult Social Care,Services For Older People Under 65 P/Dis,Transfer Payments,Personalised Budgets,627,04-Jul-2012,1207-00403,585.00,R,REDACTED PERSONAL DATA
http://statistics.data.gov.uk/doc/local-authority/00DA,Leeds City Council,City Development,Asset Management Services,Supplies and Services,Operational Materials,205,06-Jul-2012,1207-00404,1109.25,R,Anton Industrial Services Ltd
http://statistics.data.gov.uk/doc/local-authority/00DA,Leeds City Council,City Development,Libraries  Arts & Heritage,Supplies and Services,Other Hired And Contracted Services,265,11-Jul-2012,1207-00405,730.00,R,Anything Audio Ltd
http://statistics.data.gov.uk/doc/local-authority/00DA,Leeds City Council,Central & Corporate Functions,Commercial Services Trading Services,Supplies and Services,Food & Drink,231,27-Jul-2012,1207-00406,1083.29,R,Apetito Ltd
http://statistics.data.gov.uk/doc/local-authority/00DA,Leeds City Council,Central & Corporate Functions,Commercial Services Trading Services,Supplies and Services,Food & Drink,231,26-Jul-2012,1207-00407,1241.20,R,Apetito Ltd
http://statistics.data.gov.uk/doc/local-authority/00DA,Leeds City Council,Central & Corporate Functions,Commercial Services Trading Services,Supplies and Services,Food & Drink,231,13-Jul-2012,1207-00408,1488.77,R,Apetito Ltd
http://statistics.data.gov.uk/doc/local-authority/00DA,Leeds City Council,Central & Corporate Functions,Commercial Services Trading Services,Supplies and Services,Food & Drink,231,27-Jul-2012,1207-00409,1516.36,R,Apetito Ltd
http://statistics.data.gov.uk/doc/local-authority/00DA,Leeds City Council,Central & Corporate Functions,Commercial Services Trading Services,Supplies and Services,Food & Drink,231,30-Jul-2012,1207-00410,1672.25,R,Apetito Ltd
http://statistics.data.gov.uk/doc/local-authority/00DA,Leeds City Council,Central & Corporate Functions,Commercial Services Trading Services,Transport,External  Hire- ( Fleet Management),313,24-Jul-2012,1207-00411,26073.00,R,Apetito Ltd
http://statistics.data.gov.uk/doc/local-authority/00DA,Leeds City Council as Accountable Body,Social Services Pooled Budgets,Jcs For People With Learning Disabilitie,Third Party Payments,Residential,580,04-Jul-2012,1207-00412,10631.36,R,Applewalk Homes
http://statistics.data.gov.uk/doc/local-authority/00DA,Leeds City Council,Environment & Neighbourhoods,South South East,Capital,Construction,3,03-Jul-2012,1207-00413,36291.90,C,Aqua Interiors T/A V & T Plumbing
http://statistics.data.gov.uk/doc/local-authority/00DA,Leeds City Council as Accountable Body,Social Services Pooled Budgets,Jcs For People With Learning Disabilitie,Third Party Payments,Home Care,568,27-Jul-2012,1207-00414,448.50,R,Arabella Health Staffing Ltd
http://statistics.data.gov.uk/doc/local-authority/00DA,Leeds City Council as Accountable Body,Social Services Pooled Budgets,Jcs For People With Learning Disabilitie,Third Party Payments,Home Care,568,19-Jul-2012,1207-00415,448.50,R,Arabella Health Staffing Ltd
http://statistics.data.gov.uk/doc/local-authority/00DA,Leeds City Council as Accountable Body,Social Services Pooled Budgets,Jcs For People With Learning Disabilitie,Third Party Payments,Home Care,568,20-Jul-2012,1207-00416,455.59,R,Arabella Health Staffing Ltd
http://statistics.data.gov.uk/doc/local-authority/00DA,Leeds City Council as Accountable Body,Social Services Pooled Budgets,Jcs For People With Learning Disabilitie,Third Party Payments,Home Care,568,19-Jul-2012,1207-00417,578.35,R,Arabella Health Staffing Ltd
http://statistics.data.gov.uk/doc/local-authority/00DA,Leeds City Council as Accountable Body,Social Services Pooled Budgets,Jcs For People With Learning Disabilitie,Third Party Payments,Home Care,568,12-Jul-2012,1207-00418,593.32,R,Arabella Health Staffing Ltd
http://statistics.data.gov.uk/doc/local-authority/00DA,Leeds City Council as Accountable Body,Social Services Pooled Budgets,Jcs For People With Learning Disabilitie,Third Party Payments,Home Care,568,20-Jul-2012,1207-00419,709.56,R,Arabella Health Staffing Ltd
http://statistics.data.gov.uk/doc/local-authority/00DA,Leeds City Council as Accountable Body,Social Services Pooled Budgets,Jcs For People With Learning Disabilitie,Third Party Payments,Home Care,568,19-Jul-2012,1207-00420,759.69,R,Arabella Health Staffing Ltd
http://statistics.data.gov.uk/doc/local-authority/00DA,Leeds City Council as Accountable Body,Social Services Pooled Budgets,Jcs For People With Learning Disabilitie,Third Party Payments,Home Care,568,20-Jul-2012,1207-00421,764.27,R,Arabella Health Staffing Ltd
http://statistics.data.gov.uk/doc/local-authority/00DA,Leeds City Council as Accountable Body,Social Services Pooled Budgets,Jcs For People With Learning Disabilitie,Third Party Payments,Home Care,568,19-Jul-2012,1207-00422,791.40,R,Arabella Health Staffing Ltd
http://statistics.data.gov.uk/doc/local-authority/00DA,Leeds City Council as Accountable Body,Social Services Pooled Budgets,Jcs For People With Learning Disabilitie,Third Party Payments,Home Care,568,19-Jul-2012,1207-00423,892.42,R,Arabella Health Staffing Ltd
http://statistics.data.gov.uk/doc/local-authority/00DA,Leeds City Council as Accountable Body,Social Services Pooled Budgets,Jcs For People With Learning Disabilitie,Third Party Payments,Home Care,568,19-Jul-2012,1207-00424,911.32,R,Arabella Health Staffing Ltd
http://statistics.data.gov.uk/doc/local-authority/00DA,Leeds City Council as Accountable Body,Social Services Pooled Budgets,Jcs For People With Learning Disabilitie,Third Party Payments,Home Care,568,20-Jul-2012,1207-00425,926.30,R,Arabella Health Staffing Ltd
http://statistics.data.gov.uk/doc/local-authority/00DA,Leeds City Council as Accountable Body,Social Services Pooled Budgets,Jcs For People With Learning Disabilitie,Third Party Payments,Home Care,568,19-Jul-2012,1207-00426,1034.58,R,Arabella Health Staffing Ltd
http://statistics.data.gov.uk/doc/local-authority/00DA,Leeds City Council as Accountable Body,Social Services Pooled Budgets,Jcs For People With Learning Disabilitie,Third Party Payments,Home Care,568,19-Jul-2012,1207-00427,1112.94,R,Arabella Health Staffing Ltd
http://statistics.data.gov.uk/doc/local-authority/00DA,Leeds City Council as Accountable Body,Social Services Pooled Budgets,Jcs For People With Learning Disabilitie,Third Party Payments,Home Care,568,19-Jul-2012,1207-00428,1401.40,R,Arabella Health Staffing Ltd
http://statistics.data.gov.uk/doc/local-authority/00DA,Leeds City Council as Accountable Body,Social Services Pooled Budgets,Jcs For People With Learning Disabilitie,Third Party Payments,Home Care,568,19-Jul-2012,1207-00429,1428.71,R,Arabella Health Staffing Ltd
http://statistics.data.gov.uk/doc/local-authority/00DA,Leeds City Council,Adult Social Care,Services For Older People Under 65 P/Dis,Transfer Payments,Personalised Budgets,627,04-Jul-2012,1207-00430,490.16,R,REDACTED PERSONAL DATA
http://statistics.data.gov.uk/doc/local-authority/00DA,Leeds City Council,Central & Corporate Functions,Commercial Services Trading Services,Supplies and Services,Other Hired And Contracted Services,265,18-Jul-2012,1207-00431,422.98,R,Archbold Carshop Ltd
http://statistics.data.gov.uk/doc/local-authority/00DA,Leeds City Council,Central & Corporate Functions,Commercial Services Trading Services,Supplies and Services,Other Hired And Contracted Services,265,25-Jul-2012,1207-00432,549.65,R,Archbold Carshop Ltd
http://statistics.data.gov.uk/doc/local-authority/00DA,Leeds City Council,Central & Corporate Functions,Commercial Services Trading Services,Supplies and Services,Other Hired And Contracted Services,265,25-Jul-2012,1207-00433,563.88,R,Archbold Carshop Ltd
http://statistics.data.gov.uk/doc/local-authority/00DA,Leeds City Council,Central & Corporate Functions,Commercial Services Trading Services,Supplies and Services,Other Hired And Contracted Services,265,18-Jul-2012,1207-00434,647.03,R,Archbold Carshop Ltd
http://statistics.data.gov.uk/doc/local-authority/00DA,Leeds City Council,Central & Corporate Functions,Commercial Services Trading Services,Supplies and Services,Other Hired And Contracted Services,265,02-Jul-2012,1207-00435,1162.65,R,Archbold Carshop Ltd
http://statistics.data.gov.uk/doc/local-authority/00DA,Leeds City Council,Central & Corporate Functions,Commercial Services Trading Services,Supplies and Services,Other Hired And Contracted Services,265,20-Jul-2012,1207-00436,1329.68,R,Archbold Carshop Ltd
http://statistics.data.gov.uk/doc/local-authority/00DA,Leeds City Council,Central & Corporate Functions,Commercial Services Trading Services,Supplies and Services,Other Hired And Contracted Services,265,20-Jul-2012,1207-00437,1421.76,R,Archbold Carshop Ltd
http://statistics.data.gov.uk/doc/local-authority/00DA,Leeds City Council,Central & Corporate Functions,Commercial Services Trading Services,Supplies and Services,Other Hired And Contracted Services,265,06-Jul-2012,1207-00438,3177.23,R,Archbold Carshop Ltd
http://statistics.data.gov.uk/doc/local-authority/00DA,Leeds City Council,City Development,Libraries  Arts & Heritage,Supplies and Services,Art Galleries Total Stores,003,18-Jul-2012,1207-00439,3063.30,R,Arco England Ltd
http://statistics.data.gov.uk/doc/local-authority/00DA,Leeds City Council,City Development,Libraries  Arts & Heritage,Supplies and Services,Clothing & Uniforms,241,31-Jul-2012,1207-00440,581.71,R,Arco Ltd
http://statistics.data.gov.uk/doc/local-authority/00DA,Leeds City Council,Environment & Neighbourhoods,Environmental Action (City Centre),Supplies and Services,Operational Furniture And Equipment,203,19-Jul-2012,1207-00441,861.56,R,Arco Ltd
http://statistics.data.gov.uk/doc/local-authority/00DA,Leeds City Council,Environment & Neighbourhoods,Environmental Action (City Centre),Supplies and Services,Clothing & Uniforms,241,19-Jul-2012,1207-00442,775.54,R,Arco Ltd
http://statistics.data.gov.uk/doc/local-authority/00DA,Leeds City Council,Environment & Neighbourhoods,Environmental Action (West North West),Supplies and Services,Clothing & Uniforms,241,30-Jul-2012,1207-00443,428.13,R,Arco Ltd
http://statistics.data.gov.uk/doc/local-authority/00DA,Leeds City Council,Environment & Neighbourhoods,Environmental Action (West North West),Supplies and Services,Clothing & Uniforms,241,31-Jul-2012,1207-00444,547.43,R,Arco Ltd
http://statistics.data.gov.uk/doc/local-authority/00DA,Leeds City Council,Environment & Neighbourhoods,Environmental Action (West North West),Supplies and Services,Clothing & Uniforms,241,20-Jul-2012,1207-00445,576.12,R,Arco Ltd
http://statistics.data.gov.uk/doc/local-authority/00DA,Leeds City Council,Environment & Neighbourhoods,Streetscene Environmental Services,Supplies and Services,Clothing & Uniforms,241,02-Jul-2012,1207-00446,1130.00,R,Arco Ltd
http://statistics.data.gov.uk/doc/local-authority/00DA,Leeds City Council,Environment & Neighbourhoods,Streetscene Environmental Services,Supplies and Services,Clothing & Uniforms,241,02-Jul-2012,1207-00447,1380.00,R,Arco Ltd
http://statistics.data.gov.uk/doc/local-authority/00DA,Leeds City Council,Environment & Neighbourhoods,Streetscene Environmental Services,Supplies and Services,Clothing & Uniforms,241,30-Jul-2012,1207-00448,1840.00,R,Arco Ltd
http://statistics.data.gov.uk/doc/local-authority/00DA,Leeds City Council,Environment & Neighbourhoods,Streetscene Environmental Services,Supplies and Services,Clothing & Uniforms,241,02-Jul-2012,1207-00449,3390.00,R,Arco Ltd
http://statistics.data.gov.uk/doc/local-authority/00DA,West - North West                    ,West - North West,Customer And Tenancy,Premises,General Maintenance,104,30-Jul-2012,1207-00450,-3185.59,R,Arco Ltd
http://statistics.data.gov.uk/doc/local-authority/00DA,West - North West                    ,West - North West,Customer And Tenancy,Supplies and Services,Clothing & Uniforms,241,19-Jul-2012,1207-00451,512.82,R,Arco Ltd
http://statistics.data.gov.uk/doc/local-authority/00DA,West - North West                    ,West - North West,Property And Maintenance,Supplies and Services,Clothing & Uniforms,241,20-Jul-2012,1207-00452,491.31,R,Arco Ltd
http://statistics.data.gov.uk/doc/local-authority/00DA,Leeds City Council,City Development,Recreation,Premises,Cleaning Maintenance & Toiletries,127,06-Jul-2012,1207-00453,1299.32,R,Arden Winch And Company Limited
http://statistics.data.gov.uk/doc/local-authority/00DA,West - North West                    ,West - North West,Regeneration/Customer Research,Supplies and Services,Information Technology (Computers),214,19-Jul-2012,1207-00454,3975.00,R,Arena Partnership Limited
http://statistics.data.gov.uk/doc/local-authority/00DA,Leeds City Council,City Development,Recreation Total,Supplies and Services,Printing,215,14-Jun-2012,1207-00455,780.00,R,Ark Associates
http://statistics.data.gov.uk/doc/local-authority/00DA,Leeds City Council,Adult Social Care,Services For Older People - 65 And Over,Third Party Payments,Home Care,568,17-Jul-2012,1207-00456,669.16,R,Ark Home Healthcare Ltd
http://statistics.data.gov.uk/doc/local-authority/00DA,Leeds City Council,Adult Social Care,Services For Older People - 65 And Over,Third Party Payments,Home Care,568,27-Jul-2012,1207-00457,3317.87,R,Ark Home Healthcare Ltd
http://statistics.data.gov.uk/doc/local-authority/00DA,Leeds City Council,Adult Social Care,Services For Older People - 65 And Over,Third Party Payments,Home Care,568,27-Jul-2012,1207-00458,6053.66,R,Ark Home Healthcare Ltd
http://statistics.data.gov.uk/doc/local-authority/00DA,Leeds City Council,Adult Social Care,Services For Older People - 65 And Over,Third Party Payments,Home Care,568,27-Jul-2012,1207-00459,6825.77,R,Ark Home Healthcare Ltd
http://statistics.data.gov.uk/doc/local-authority/00DA,Leeds City Council,Adult Social Care,Services For Older People - 65 And Over,Third Party Payments,Home Care,568,27-Jul-2012,1207-00460,9155.38,R,Ark Home Healthcare Ltd
http://statistics.data.gov.uk/doc/local-authority/00DA,Leeds City Council,Adult Social Care,Services For Older People - 65 And Over,Third Party Payments,Home Care,568,27-Jul-2012,1207-00461,9922.93,R,Ark Home Healthcare Ltd
http://statistics.data.gov.uk/doc/local-authority/00DA,Leeds City Council,Adult Social Care,Services For Older People - 65 And Over,Third Party Payments,Home Care,568,27-Jul-2012,1207-00462,10011.15,R,Ark Home Healthcare Ltd
http://statistics.data.gov.uk/doc/local-authority/00DA,Leeds City Council,Adult Social Care,Services For Older People - 65 And Over,Third Party Payments,Home Care,568,27-Jul-2012,1207-00463,14443.89,R,Ark Home Healthcare Ltd
http://statistics.data.gov.uk/doc/local-authority/00DA,Leeds City Council,Adult Social Care,Services For Older People - 65 And Over,Third Party Payments,Home Care,568,27-Jul-2012,1207-00464,20557.78,R,Ark Home Healthcare Ltd
http://statistics.data.gov.uk/doc/local-authority/00DA,Leeds City Council,Adult Social Care,Services For Older People Under 65 P/Dis,Third Party Payments,Home Care,568,27-Jul-2012,1207-00465,1301.63,R,Ark Home Healthcare Ltd
http://statistics.data.gov.uk/doc/local-authority/00DA,Leeds City Council,Adult Social Care,Services For Older People Under 65 P/Dis,Third Party Payments,Home Care,568,27-Jul-2012,1207-00466,1324.96,R,Ark Home Healthcare Ltd
http://statistics.data.gov.uk/doc/local-authority/00DA,Leeds City Council,Adult Social Care,Services For Older People Under 65 P/Dis,Third Party Payments,Home Care,568,27-Jul-2012,1207-00467,2233.19,R,Ark Home Healthcare Ltd
http://statistics.data.gov.uk/doc/local-authority/00DA,Leeds City Council,Adult Social Care,Services For Older People Under 65 P/Dis,Third Party Payments,Home Care,568,27-Jul-2012,1207-00468,2588.70,R,Ark Home Healthcare Ltd
http://statistics.data.gov.uk/doc/local-authority/00DA,Leeds City Council,Adult Social Care,Services For Older People Under 65 P/Dis,Third Party Payments,Home Care,568,27-Jul-2012,1207-00469,3263.99,R,Ark Home Healthcare Ltd
http://statistics.data.gov.uk/doc/local-authority/00DA,Leeds City Council,Adult Social Care,Other Adult Services,Third Party Payments,Residential - Drugs & Alcohol,583,04-Jul-2012,1207-00470,1730.00,R,Ark House Treatment Centre
http://statistics.data.gov.uk/doc/local-authority/00DA,Leeds City Council,City Development,Highways,Transport,Plant Hire - By Directorate,305,12-Jul-2012,1207-00471,683.32,R,Armcon Limited
http://statistics.data.gov.uk/doc/local-authority/00DA,Leeds City Council,Adult Social Care,Services For Older People Under 65 P/Dis,Transfer Payments,Direct Payments,626,04-Jul-2012,1207-00472,1045.20,R,REDACTED PERSONAL DATA
http://statistics.data.gov.uk/doc/local-authority/00DA,Leeds City Council,Central & Corporate Functions,Executive Support,Supplies and Services,'Well Being' Large Grants Projects,230,27-Jul-2012,1207-00473,2500.00,R,Armley Juniors
http://statistics.data.gov.uk/doc/local-authority/00DA,Leeds City Council,Strategic Accounts,Miscellaneous,Supplies and Services,Non-Recurring Grants,227,12-Jul-2012,1207-00474,500.00,R,Armley Park Bowling Club
http://statistics.data.gov.uk/doc/local-authority/00DA,East - North East                    ,East - North East,Construction Services,Supplies and Services,Other Materials,205,20-Jul-2012,1207-00475,786.74,R,Arnold Laver & Co Ltd
http://statistics.data.gov.uk/doc/local-authority/00DA,East - North East                    ,East - North East,Construction Services,Supplies and Services,Other Materials,205,02-Jul-2012,1207-00476,859.66,R,Arnold Laver & Co Ltd
http://statistics.data.gov.uk/doc/local-authority/00DA,East - North East                    ,East - North East,Construction Services,Supplies and Services,Other Materials,205,11-Jul-2012,1207-00477,893.72,R,Arnold Laver & Co Ltd
http://statistics.data.gov.uk/doc/local-authority/00DA,Leeds City Council,Adult Social Care,Services For Older People - 65 And Over,Third Party Payments,Nursing Home,570,05-Jul-2012,1207-00478,1327.44,R,Arrigadeen Nursing Home
http://statistics.data.gov.uk/doc/local-authority/00DA,Leeds City Council,Adult Social Care,Services For Older People - 65 And Over,Transfer Payments,Personalised Budgets,627,04-Jul-2012,1207-00479,604.80,R,REDACTED PERSONAL DATA
http://statistics.data.gov.uk/doc/local-authority/00DA,Leeds City Council,Adult Social Care,Services For Adults Under 65 Learn/Dis,Supplies and Services,Non-Recurring Grants,227,16-Jul-2012,1207-00480,7845.06,R,Articulate Advocacy
http://statistics.data.gov.uk/doc/local-authority/00DA,Leeds City Council,Adult Social Care,Social Services Support Services,Third Party Payments,Payments To Voluntary Organisations,561,11-Jul-2012,1207-00481,15629.21,R,Articulate Advocacy
http://statistics.data.gov.uk/doc/local-authority/00DA,Leeds City Council as Accountable Body,Social Services Pooled Budgets,Jcs For People With Learning Disabilitie,Third Party Payments,Other Agency Services,561,09-Jul-2012,1207-00482,2082.49,R,Articulate Advocacy
http://statistics.data.gov.uk/doc/local-authority/00DA,Leeds City Council as Accountable Body,Social Services Pooled Budgets,Jcs For People With Learning Disabilitie,Third Party Payments,Other Agency Services,561,27-Jul-2012,1207-00483,3400.08,R,Articulate Advocacy
http://statistics.data.gov.uk/doc/local-authority/00DA,Leeds City Council,Strategic Accounts,Miscellaneous,Supplies and Services,Non-Recurring Grants,227,19-Jul-2012,1207-00484,600.00,R,Arts Trinity Ltd
http://statistics.data.gov.uk/doc/local-authority/00DA,Leeds City Council,City Development,Recreation,Supplies and Services,Resaleable Materials,204,26-Jul-2012,1207-00485,584.90,R,Asa Awards Scheme
http://statistics.data.gov.uk/doc/local-authority/00DA,Leeds City Council,Central & Corporate Functions,Commercial Services Trading Services,Supplies and Services,Other Hired And Contracted Services,265,27-Jul-2012,1207-00486,450.00,R,Asbestos Sample Analysis Limited
http://statistics.data.gov.uk/doc/local-authority/00DA,Leeds City Council,Central & Corporate Functions,Commercial Services Trading Services,Supplies and Services,Other Hired And Contracted Services,265,27-Jul-2012,1207-00487,802.50,R,Asbestos Sample Analysis Limited
http://statistics.data.gov.uk/doc/local-authority/00DA,Leeds City Council,Central & Corporate Functions,Commercial Services Trading Services,Supplies and Services,Other Hired And Contracted Services,265,27-Jul-2012,1207-00488,810.00,R,Asbestos Sample Analysis Limited
http://statistics.data.gov.uk/doc/local-authority/00DA,Leeds City Council,Childrens Services,Learning Skills & Universal,Third Party Payments,Services Rendered By Voluntary Sector,505,26-Jul-2012,1207-00489,1509.60,R,Asha Neighbourhood Project
http://statistics.data.gov.uk/doc/local-authority/00DA,Leeds City Council,Childrens Services,Learning Skills & Universal,Third Party Payments,Services Rendered By Other Organisations,511,06-Jul-2012,1207-00490,1223.48,R,Asha Neighbourhood Project
http://statistics.data.gov.uk/doc/local-authority/00DA,Leeds City Council,Adult Social Care,Services For Older People - 65 And Over,Third Party Payments,Residential,580,05-Jul-2012,1207-00491,583.24,R,Ashbourne House
http://statistics.data.gov.uk/doc/local-authority/00DA,Leeds City Council,Adult Social Care,Services For Older People - 65 And Over,Third Party Payments,Residential,580,04-Jul-2012,1207-00492,5996.48,R,Ashcroft House Residential Home
http://statistics.data.gov.uk/doc/local-authority/00DA,Leeds City Council,Adult Social Care,Services For Older People - 65 And Over,Third Party Payments,Nursing Home,570,04-Jul-2012,1207-00493,1191.24,R,Ashcroft Nursing Home
http://statistics.data.gov.uk/doc/local-authority/00DA,Leeds City Council,Adult Social Care,Services For Older People - 65 And Over,Third Party Payments,Nursing Home,570,04-Jul-2012,1207-00494,2636.84,R,Ashcroft Nursing Home
http://statistics.data.gov.uk/doc/local-authority/00DA,Leeds City Council,Adult Social Care,Services For Older People - 65 And Over,Third Party Payments,Residential Care Dementia,571,04-Jul-2012,1207-00495,761.52,R,Ashcroft Nursing Home
http://statistics.data.gov.uk/doc/local-authority/00DA,Leeds City Council,Adult Social Care,Services For Adults Under 65 Mental/Dis,Third Party Payments,Residential,580,04-Jul-2012,1207-00496,2318.40,R,Ashfield Nursing Home
http://statistics.data.gov.uk/doc/local-authority/00DA,Leeds City Council,Adult Social Care,Services For Older People - 65 And Over,Third Party Payments,Nursing Home,570,04-Jul-2012,1207-00497,13390.30,R,Ashfield Nursing Home
http://statistics.data.gov.uk/doc/local-authority/00DA,Leeds City Council,Adult Social Care,Services For Older People - 65 And Over,Third Party Payments,Residential,580,04-Jul-2012,1207-00498,1390.76,R,Ashfield Nursing Home
http://statistics.data.gov.uk/doc/local-authority/00DA,Leeds City Council,Adult Social Care,Services For Older People - 65 And Over,Third Party Payments,Nursing Home,570,04-Jul-2012,1207-00499,1504.00,R,Ashley Care Ltd
http://statistics.data.gov.uk/doc/local-authority/00DA,Leeds City Council,Central & Corporate Functions,Commercial Services Trading Services,Supplies and Services,Other Hired And Contracted Services,265,03-Jul-2012,1207-00500,637.74,R,Ashtead Plant Hire Company Ltd
http://statistics.data.gov.uk/doc/local-authority/00DA,Leeds City Council,Central & Corporate Functions,Commercial Services Trading Services,Supplies and Services,Other Hired And Contracted Services,265,11-Jul-2012,1207-00501,782.00,R,Ashtead Plant Hire Company Ltd
http://statistics.data.gov.uk/doc/local-authority/00DA,Leeds City Council,Central & Corporate Functions,Commercial Services Trading Services,Supplies and Services,Other Hired And Contracted Services,265,11-Jul-2012,1207-00502,840.65,R,Ashtead Plant Hire Company Ltd
http://statistics.data.gov.uk/doc/local-authority/00DA,Leeds City Council,City Development,Highways,Transport,Plant Hire - By Directorate,305,11-Jul-2012,1207-00503,-704.80,R,Ashtead Plant Hire Company Ltd
http://statistics.data.gov.uk/doc/local-authority/00DA,Leeds City Council,City Development,Highways,Transport,Plant Hire - By Directorate,305,11-Jul-2012,1207-00504,-693.00,R,Ashtead Plant Hire Company Ltd
http://statistics.data.gov.uk/doc/local-authority/00DA,Leeds City Council,City Development,Highways,Transport,Plant Hire - By Directorate,305,11-Jul-2012,1207-00505,667.00,R,Ashtead Plant Hire Company Ltd
http://statistics.data.gov.uk/doc/local-authority/00DA,Leeds City Council,City Development,Highways,Transport,Plant Hire - By Directorate,305,11-Jul-2012,1207-00506,667.00,R,Ashtead Plant Hire Company Ltd
http://statistics.data.gov.uk/doc/local-authority/00DA,Leeds City Council,City Development,Highways,Transport,Plant Hire - By Directorate,305,11-Jul-2012,1207-00507,667.00,R,Ashtead Plant Hire Company Ltd
http://statistics.data.gov.uk/doc/local-authority/00DA,Leeds City Council,City Development,Highways,Transport,Plant Hire - By Directorate,305,11-Jul-2012,1207-00508,667.00,R,Ashtead Plant Hire Company Ltd
http://statistics.data.gov.uk/doc/local-authority/00DA,Leeds City Council,City Development,Highways,Transport,Plant Hire - By Directorate,305,11-Jul-2012,1207-00509,667.00,R,Ashtead Plant Hire Company Ltd
http://statistics.data.gov.uk/doc/local-authority/00DA,Leeds City Council,City Development,Highways,Transport,Plant Hire - By Directorate,305,11-Jul-2012,1207-00510,667.00,R,Ashtead Plant Hire Company Ltd
http://statistics.data.gov.uk/doc/local-authority/00DA,Leeds City Council,City Development,Highways,Transport,Plant Hire - By Directorate,305,11-Jul-2012,1207-00511,667.00,R,Ashtead Plant Hire Company Ltd
http://statistics.data.gov.uk/doc/local-authority/00DA,Leeds City Council,City Development,Highways,Transport,Plant Hire - By Directorate,305,11-Jul-2012,1207-00512,667.00,R,Ashtead Plant Hire Company Ltd
http://statistics.data.gov.uk/doc/local-authority/00DA,Leeds City Council,City Development,Highways,Transport,Plant Hire - By Directorate,305,11-Jul-2012,1207-00513,667.00,R,Ashtead Plant Hire Company Ltd
http://statistics.data.gov.uk/doc/local-authority/00DA,Leeds City Council,City Development,Highways,Transport,Plant Hire - By Directorate,305,11-Jul-2012,1207-00514,667.00,R,Ashtead Plant Hire Company Ltd
http://statistics.data.gov.uk/doc/local-authority/00DA,Leeds City Council,City Development,Highways,Transport,Plant Hire - By Directorate,305,11-Jul-2012,1207-00515,667.00,R,Ashtead Plant Hire Company Ltd
http://statistics.data.gov.uk/doc/local-authority/00DA,Leeds City Council,City Development,Highways,Transport,Plant Hire - By Directorate,305,11-Jul-2012,1207-00516,667.00,R,Ashtead Plant Hire Company Ltd
http://statistics.data.gov.uk/doc/local-authority/00DA,Leeds City Council,City Development,Highways,Transport,Plant Hire - By Directorate,305,11-Jul-2012,1207-00517,667.00,R,Ashtead Plant Hire Company Ltd
http://statistics.data.gov.uk/doc/local-authority/00DA,Leeds City Council,City Development,Highways,Transport,Plant Hire - By Directorate,305,11-Jul-2012,1207-00518,667.00,R,Ashtead Plant Hire Company Ltd
http://statistics.data.gov.uk/doc/local-authority/00DA,Leeds City Council,City Development,Highways,Transport,Plant Hire - By Directorate,305,11-Jul-2012,1207-00519,667.00,R,Ashtead Plant Hire Company Ltd
http://statistics.data.gov.uk/doc/local-authority/00DA,Leeds City Council,City Development,Highways,Transport,Plant Hire - By Directorate,305,11-Jul-2012,1207-00520,667.00,R,Ashtead Plant Hire Company Ltd
http://statistics.data.gov.uk/doc/local-authority/00DA,Leeds City Council,City Development,Highways,Transport,Plant Hire - By Directorate,305,11-Jul-2012,1207-00521,667.00,R,Ashtead Plant Hire Company Ltd
http://statistics.data.gov.uk/doc/local-authority/00DA,Leeds City Council,City Development,Highways,Transport,Plant Hire - By Directorate,305,11-Jul-2012,1207-00522,690.00,R,Ashtead Plant Hire Company Ltd
http://statistics.data.gov.uk/doc/local-authority/00DA,Leeds City Council,City Development,Highways,Transport,Plant Hire - By Directorate,305,11-Jul-2012,1207-00523,693.00,R,Ashtead Plant Hire Company Ltd
http://statistics.data.gov.uk/doc/local-authority/00DA,Leeds City Council,City Development,Highways,Transport,Plant Hire - By Directorate,305,11-Jul-2012,1207-00524,708.20,R,Ashtead Plant Hire Company Ltd
http://statistics.data.gov.uk/doc/local-authority/00DA,Leeds City Council,City Development,Highways,Transport,Plant Hire - By Directorate,305,11-Jul-2012,1207-00525,719.00,R,Ashtead Plant Hire Company Ltd
http://statistics.data.gov.uk/doc/local-authority/00DA,Leeds City Council,City Development,Highways,Transport,Plant Hire - By Directorate,305,11-Jul-2012,1207-00526,792.00,R,Ashtead Plant Hire Company Ltd
http://statistics.data.gov.uk/doc/local-authority/00DA,Leeds City Council,City Development,Highways,Transport,Plant Hire - By Directorate,305,11-Jul-2012,1207-00527,920.00,R,Ashtead Plant Hire Company Ltd
http://statistics.data.gov.uk/doc/local-authority/00DA,Leeds City Council,City Development,Highways,Transport,Plant Hire - By Directorate,305,11-Jul-2012,1207-00528,1115.00,R,Ashtead Plant Hire Company Ltd
http://statistics.data.gov.uk/doc/local-authority/00DA,Leeds City Council,City Development,Recreation,Transport,Hire Of Movable Plant & Machinery,315,20-Jul-2012,1207-00529,473.10,R,Ashtead Plant Hire Company Ltd
http://statistics.data.gov.uk/doc/local-authority/00DA,Leeds City Council,City Development,Recreation,Transport,Hire Of Movable Plant & Machinery,315,11-Jul-2012,1207-00530,518.70,R,Ashtead Plant Hire Company Ltd
http://statistics.data.gov.uk/doc/local-authority/00DA,Leeds City Council,City Development,Recreation,Transport,Hire Of Movable Plant & Machinery,315,11-Jul-2012,1207-00531,543.40,R,Ashtead Plant Hire Company Ltd
http://statistics.data.gov.uk/doc/local-authority/00DA,Leeds City Council,City Development,Recreation,Transport,Hire Of Movable Plant & Machinery,315,11-Jul-2012,1207-00532,568.10,R,Ashtead Plant Hire Company Ltd
http://statistics.data.gov.uk/doc/local-authority/00DA,Leeds City Council,City Development,Recreation,Transport,Hire Of Movable Plant & Machinery,315,11-Jul-2012,1207-00533,966.81,R,Ashtead Plant Hire Company Ltd
http://statistics.data.gov.uk/doc/local-authority/00DA,Leeds City Council,Adult Social Care,Services For Older People - 65 And Over,Third Party Payments,Residential Care Dementia,571,04-Jul-2012,1207-00534,871.40,R,Ashville Care Home
http://statistics.data.gov.uk/doc/local-authority/00DA,Leeds City Council,Adult Social Care,Services For Older People - 65 And Over,Third Party Payments,Residential Care Dementia,571,04-Jul-2012,1207-00535,1221.92,R,Ashworth Grange
http://statistics.data.gov.uk/doc/local-authority/00DA,Leeds City Council,Adult Social Care,Services For Older People - 65 And Over,Third Party Payments,Residential,580,04-Jul-2012,1207-00536,1178.28,R,Ashworth Grange
http://statistics.data.gov.uk/doc/local-authority/00DA,Leeds City Council,City Development,Libraries  Arts & Heritage,Supplies and Services,Operational Materials,205,20-Jul-2012,1207-00537,755.13,R,Askews & Holts Library Services Ltd
http://statistics.data.gov.uk/doc/local-authority/00DA,Leeds City Council,City Development,Libraries  Arts & Heritage,Supplies and Services,Books & Audio-Visual Materials,206,25-Jul-2012,1207-00538,504.90,R,Askews & Holts Library Services Ltd
http://statistics.data.gov.uk/doc/local-authority/00DA,Leeds City Council,City Development,Libraries  Arts & Heritage,Supplies and Services,Books & Audio-Visual Materials,206,17-Jul-2012,1207-00539,566.16,R,Askews & Holts Library Services Ltd
http://statistics.data.gov.uk/doc/local-authority/00DA,Leeds City Council,City Development,Libraries  Arts & Heritage,Supplies and Services,Books & Audio-Visual Materials,206,23-Jul-2012,1207-00540,872.99,R,Askews & Holts Library Services Ltd
http://statistics.data.gov.uk/doc/local-authority/00DA,Leeds City Council,City Development,Libraries  Arts & Heritage,Supplies and Services,Books & Audio-Visual Materials,206,10-Jul-2012,1207-00541,1115.89,R,Askews & Holts Library Services Ltd
http://statistics.data.gov.uk/doc/local-authority/00DA,Leeds City Council,City Development,Libraries  Arts & Heritage,Supplies and Services,Books & Audio-Visual Materials,206,31-Jul-2012,1207-00542,2296.74,R,Askews & Holts Library Services Ltd
http://statistics.data.gov.uk/doc/local-authority/00DA,Leeds City Council,City Development,Libraries  Arts & Heritage,Supplies and Services,Books & Audio-Visual Materials,206,23-Jul-2012,1207-00543,2535.03,R,Askews & Holts Library Services Ltd
http://statistics.data.gov.uk/doc/local-authority/00DA,Leeds City Council,City Development,Libraries  Arts & Heritage,Supplies and Services,Books & Audio-Visual Materials,206,31-Jul-2012,1207-00544,3047.51,R,Askews & Holts Library Services Ltd
http://statistics.data.gov.uk/doc/local-authority/00DA,Leeds City Council,City Development,Libraries  Arts & Heritage,Supplies and Services,Books & Audio-Visual Materials,206,12-Jul-2012,1207-00545,3266.79,R,Askews & Holts Library Services Ltd
http://statistics.data.gov.uk/doc/local-authority/00DA,Leeds City Council,City Development,Libraries  Arts & Heritage,Supplies and Services,Books & Audio-Visual Materials,206,23-Jul-2012,1207-00546,3704.94,R,Askews & Holts Library Services Ltd
http://statistics.data.gov.uk/doc/local-authority/00DA,Leeds City Council,City Development,Libraries  Arts & Heritage,Supplies and Services,Books & Audio-Visual Materials,206,10-Jul-2012,1207-00547,4022.76,R,Askews & Holts Library Services Ltd
http://statistics.data.gov.uk/doc/local-authority/00DA,Leeds City Council,City Development,Libraries  Arts & Heritage,Supplies and Services,Books & Audio-Visual Materials,206,31-Jul-2012,1207-00548,6006.90,R,Askews & Holts Library Services Ltd
http://statistics.data.gov.uk/doc/local-authority/00DA,Leeds City Council,City Development,Libraries  Arts & Heritage,Supplies and Services,Books & Audio-Visual Materials,206,17-Jul-2012,1207-00549,6441.80,R,Askews & Holts Library Services Ltd
http://statistics.data.gov.uk/doc/local-authority/00DA,Leeds City Council,City Development,Libraries  Arts & Heritage,Supplies and Services,Books & Audio-Visual Materials,206,31-Jul-2012,1207-00550,29685.18,R,Askews & Holts Library Services Ltd
http://statistics.data.gov.uk/doc/local-authority/00DA,Leeds City Council,City Development,Libraries  Arts & Heritage,Supplies and Services,Other Hired And Contracted Services,265,11-Jul-2012,1207-00551,2000.00,R,REDACTED COMMERCIAL CONFIDENTIALITY
http://statistics.data.gov.uk/doc/local-authority/00DA,Leeds City Council,Childrens Services,Learning Skills & Universal,Premises,Maintenance Of Buildings,101,11-Jul-2012,1207-00552,538.50,R,Aspect Building Solutions
http://statistics.data.gov.uk/doc/local-authority/00DA,Leeds City Council,City Development,Highways,Transport,Plant Hire - By Directorate,305,06-Jul-2012,1207-00553,650.00,R,Asphalt Pavers
http://statistics.data.gov.uk/doc/local-authority/00DA,Leeds City Council,City Development,Highways,Transport,Plant Hire - By Directorate,305,06-Jul-2012,1207-00554,720.00,R,Asphalt Pavers
http://statistics.data.gov.uk/doc/local-authority/00DA,Leeds City Council,City Development,Highways,Transport,Plant Hire - By Directorate,305,27-Jul-2012,1207-00555,790.00,R,Asphalt Pavers
http://statistics.data.gov.uk/doc/local-authority/00DA,Leeds City Council,City Development,Highways,Transport,Plant Hire - By Directorate,305,27-Jul-2012,1207-00556,790.00,R,Asphalt Pavers
http://statistics.data.gov.uk/doc/local-authority/00DA,Leeds City Council,City Development,Highways,Transport,Plant Hire - By Directorate,305,13-Jul-2012,1207-00557,790.00,R,Asphalt Pavers
http://statistics.data.gov.uk/doc/local-authority/00DA,Leeds City Council,City Development,Highways,Transport,Plant Hire - By Directorate,305,06-Jul-2012,1207-00558,790.00,R,Asphalt Pavers
http://statistics.data.gov.uk/doc/local-authority/00DA,Leeds City Council,City Development,Highways,Transport,Plant Hire - By Directorate,305,20-Jul-2012,1207-00559,825.00,R,Asphalt Pavers
http://statistics.data.gov.uk/doc/local-authority/00DA,Leeds City Council,City Development,Highways,Transport,Plant Hire - By Directorate,305,06-Jul-2012,1207-00560,842.50,R,Asphalt Pavers
http://statistics.data.gov.uk/doc/local-authority/00DA,Leeds City Council,City Development,Highways,Transport,Plant Hire - By Directorate,305,06-Jul-2012,1207-00561,1064.00,R,Asphalt Pavers
http://statistics.data.gov.uk/doc/local-authority/00DA,Leeds City Council,City Development,Highways,Transport,Plant Hire - By Directorate,305,13-Jul-2012,1207-00562,1160.00,R,Asphalt Pavers
http://statistics.data.gov.uk/doc/local-authority/00DA,Leeds City Council,City Development,Highways,Transport,Plant Hire - By Directorate,305,06-Jul-2012,1207-00563,1300.00,R,Asphalt Pavers
http://statistics.data.gov.uk/doc/local-authority/00DA,Leeds City Council,City Development,Highways,Transport,Plant Hire - By Directorate,305,06-Jul-2012,1207-00564,1531.00,R,Asphalt Pavers
http://statistics.data.gov.uk/doc/local-authority/00DA,Leeds City Council,City Development,Highways,Transport,Plant Hire - By Directorate,305,06-Jul-2012,1207-00565,1576.00,R,Asphalt Pavers
http://statistics.data.gov.uk/doc/local-authority/00DA,Leeds City Council,City Development,Highways,Transport,Plant Hire - By Directorate,305,11-Jul-2012,1207-00566,2411.00,R,Asphalt Pavers
http://statistics.data.gov.uk/doc/local-authority/00DA,Leeds City Council,Adult Social Care,Services For Adults Under 65 Learn/Dis,Supplies and Services,Computer Software & Equipment,214,10-Jul-2012,1207-00567,505.53,R,Aspirico
http://statistics.data.gov.uk/doc/local-authority/00DA,Leeds City Council,Childrens Services,Learning Skills & Universal,Third Party Payments,Services Rendered By Other Organisations,511,26-Jul-2012,1207-00568,5335.40,R,Asquith Court Nursery
http://statistics.data.gov.uk/doc/local-authority/00DA,Leeds City Council,Childrens Services,Learning Skills & Universal,Third Party Payments,Services Rendered By Other Organisations,511,06-Jul-2012,1207-00569,447.11,R,Asquith Nurseries Ltd
http://statistics.data.gov.uk/doc/local-authority/00DA,Leeds City Council,Childrens Services,Learning Skills & Universal,Third Party Payments,Services Rendered By Other Organisations,511,26-Jul-2012,1207-00570,3227.88,R,Asquith Nurseries Ltd
http://statistics.data.gov.uk/doc/local-authority/00DA,Leeds City Council,Central & Corporate Functions,Commercial Services Trading Services Total,Premises,Removal Of Refuse,126,15-Jun-2012,1207-00571,3970.80,R,Associated Waste Manag
http://statistics.data.gov.uk/doc/local-authority/00DA,Leeds City Council,Central & Corporate Functions,Support And Facilities General Fund Total,Premises,Removal Of Refuse,126,13-Jun-2012,1207-00572,537.60,R,Associated Waste Manag
http://statistics.data.gov.uk/doc/local-authority/00DA,Leeds City Council,Central & Corporate Functions,Support And Facilities General Fund Total,Premises,Removal Of Refuse,126,06-Jun-2012,1207-00573,582.04,R,Associated Waste Manag
http://statistics.data.gov.uk/doc/local-authority/00DA,Leeds City Council,Central & Corporate Functions,Support And Facilities General Fund Total,Premises,Removal Of Refuse,126,19-Jun-2012,1207-00574,642.74,R,Associated Waste Manag
http://statistics.data.gov.uk/doc/local-authority/00DA,Leeds City Council,Central & Corporate Functions,Support And Facilities General Fund Total,Premises,Removal Of Refuse,126,13-Jun-2012,1207-00575,762.00,R,Associated Waste Manag
http://statistics.data.gov.uk/doc/local-authority/00DA,Leeds City Council,Central & Corporate Functions,Support And Facilities General Fund Total,Premises,Removal Of Refuse,126,01-Jun-2012,1207-00576,1264.90,R,Associated Waste Manag
http://statistics.data.gov.uk/doc/local-authority/00DA,Leeds City Council,Central & Corporate Functions,Commercial Services Trading Services,Premises,Removal Of Workplace Waste,126,23-Jul-2012,1207-00577,-668.16,R,Associated Waste Management Limited
http://statistics.data.gov.uk/doc/local-authority/00DA,Leeds City Council,City Development,Highways,Supplies and Services,Recycling & Reuse Charges,234,11-Jul-2012,1207-00578,622.77,R,Associated Waste Management Limited
http://statistics.data.gov.uk/doc/local-authority/00DA,Leeds City Council,City Development,Recreation,Premises,Removal Of Workplace Waste,126,24-Jul-2012,1207-00579,424.00,R,Associated Waste Management Limited
http://statistics.data.gov.uk/doc/local-authority/00DA,Leeds City Council,City Development,Recreation,Premises,Removal Of Workplace Waste,126,24-Jul-2012,1207-00580,424.00,R,Associated Waste Management Limited
http://statistics.data.gov.uk/doc/local-authority/00DA,Leeds City Council,City Development,Recreation,Premises,Removal Of Workplace Waste,126,19-Jul-2012,1207-00581,424.00,R,Associated Waste Management Limited
http://statistics.data.gov.uk/doc/local-authority/00DA,Leeds City Council,City Development,Recreation,Premises,Removal Of Workplace Waste,126,18-Jul-2012,1207-00582,424.00,R,Associated Waste Management Limited
http://statistics.data.gov.uk/doc/local-authority/00DA,Leeds City Council,City Development,Recreation,Premises,Removal Of Workplace Waste,126,06-Jul-2012,1207-00583,424.00,R,Associated Waste Management Limited
http://statistics.data.gov.uk/doc/local-authority/00DA,Leeds City Council,City Development,Recreation,Premises,Removal Of Workplace Waste,126,03-Jul-2012,1207-00584,424.00,R,Associated Waste Management Limited
http://statistics.data.gov.uk/doc/local-authority/00DA,Leeds City Council,City Development,Recreation,Premises,Removal Of Workplace Waste,126,03-Jul-2012,1207-00585,424.00,R,Associated Waste Management Limited
http://statistics.data.gov.uk/doc/local-authority/00DA,Leeds City Council,City Development,Recreation,Premises,Removal Of Workplace Waste,126,12-Jul-2012,1207-00586,424.00,R,Associated Waste Management Limited
http://statistics.data.gov.uk/doc/local-authority/00DA,Leeds City Council,City Development,Recreation,Premises,Removal Of Workplace Waste,126,06-Jul-2012,1207-00587,426.00,R,Associated Waste Management Limited
http://statistics.data.gov.uk/doc/local-authority/00DA,Leeds City Council,City Development,Recreation,Premises,Removal Of Workplace Waste,126,20-Jul-2012,1207-00588,435.00,R,Associated Waste Management Limited
http://statistics.data.gov.uk/doc/local-authority/00DA,Leeds City Council,City Development,Recreation,Premises,Removal Of Workplace Waste,126,20-Jul-2012,1207-00589,435.00,R,Associated Waste Management Limited
http://statistics.data.gov.uk/doc/local-authority/00DA,Leeds City Council,City Development,Recreation,Premises,Removal Of Workplace Waste,126,05-Jul-2012,1207-00590,435.00,R,Associated Waste Management Limited
http://statistics.data.gov.uk/doc/local-authority/00DA,Leeds City Council,City Development,Recreation,Premises,Removal Of Workplace Waste,126,12-Jul-2012,1207-00591,501.00,R,Associated Waste Management Limited
http://statistics.data.gov.uk/doc/local-authority/00DA,Leeds City Council,City Development,Recreation,Premises,Removal Of Workplace Waste,126,13-Jul-2012,1207-00592,568.00,R,Associated Waste Management Limited
http://statistics.data.gov.uk/doc/local-authority/00DA,Leeds City Council,City Development,Recreation,Premises,Removal Of Workplace Waste,126,05-Jul-2012,1207-00593,767.60,R,Associated Waste Management Limited
http://statistics.data.gov.uk/doc/local-authority/00DA,Leeds City Council,City Development,Recreation,Premises,Removal Of Workplace Waste,126,20-Jul-2012,1207-00594,835.51,R,Associated Waste Management Limited
http://statistics.data.gov.uk/doc/local-authority/00DA,Leeds City Council,City Development,Recreation,Premises,Removal Of Workplace Waste,126,03-Jul-2012,1207-00595,1071.16,R,Associated Waste Management Limited
http://statistics.data.gov.uk/doc/local-authority/00DA,Leeds City Council,City Development,Recreation,Premises,Removal Of Workplace Waste,126,06-Jul-2012,1207-00596,1294.67,R,Associated Waste Management Limited
http://statistics.data.gov.uk/doc/local-authority/00DA,Leeds City Council,City Development,Recreation,Premises,Removal Of Workplace Waste,126,16-Jul-2012,1207-00597,1794.22,R,Associated Waste Management Limited
http://statistics.data.gov.uk/doc/local-authority/00DA,Leeds City Council,City Development,Support Services,Premises,Removal Of Workplace Waste,126,24-Jul-2012,1207-00598,5399.85,R,Associated Waste Management Limited
http://statistics.data.gov.uk/doc/local-authority/00DA,Leeds City Council,Environment & Neighbourhoods,Streetscene Environmental Services,Supplies and Services,Recycling & Reuse Charges,234,24-Jul-2012,1207-00599,7551.73,R,Associated Waste Management Limited
http://statistics.data.gov.uk/doc/local-authority/00DA,Leeds City Council,Environment & Neighbourhoods,Streetscene Environmental Services,Supplies and Services,Recycling & Reuse Charges,234,12-Jul-2012,1207-00600,9068.08,R,Associated Waste Management Limited
http://statistics.data.gov.uk/doc/local-authority/00DA,Leeds City Council,Environment & Neighbourhoods,Streetscene Environmental Services,Supplies and Services,Recycling & Reuse Charges,234,27-Jul-2012,1207-00601,9373.48,R,Associated Waste Management Limited
http://statistics.data.gov.uk/doc/local-authority/00DA,Leeds City Council,Environment & Neighbourhoods,Streetscene Environmental Services,Supplies and Services,Recycling & Reuse Charges,234,03-Jul-2012,1207-00602,10705.22,R,Associated Waste Management Limited
http://statistics.data.gov.uk/doc/local-authority/00DA,Leeds City Council,Environment & Neighbourhoods,Streetscene Environmental Services,Supplies and Services,Recycling & Reuse Charges,234,03-Jul-2012,1207-00603,11162.66,R,Associated Waste Management Limited
http://statistics.data.gov.uk/doc/local-authority/00DA,Leeds City Council,Environment & Neighbourhoods,Streetscene Environmental Services,Supplies and Services,Recycling & Reuse Charges,234,26-Jul-2012,1207-00604,11445.86,R,Associated Waste Management Limited
http://statistics.data.gov.uk/doc/local-authority/00DA,Leeds City Council,Environment & Neighbourhoods,Streetscene Environmental Services,Supplies and Services,Recycling & Reuse Charges,234,03-Jul-2012,1207-00605,11466.21,R,Associated Waste Management Limited
http://statistics.data.gov.uk/doc/local-authority/00DA,Leeds City Council,Environment & Neighbourhoods,Streetscene Environmental Services,Supplies and Services,Recycling & Reuse Charges,234,24-Jul-2012,1207-00606,11791.79,R,Associated Waste Management Limited
http://statistics.data.gov.uk/doc/local-authority/00DA,Leeds City Council,Environment & Neighbourhoods,Streetscene Environmental Services,Supplies and Services,Recycling & Reuse Charges,234,24-Jul-2012,1207-00607,11829.81,R,Associated Waste Management Limited
http://statistics.data.gov.uk/doc/local-authority/00DA,Leeds City Council,Environment & Neighbourhoods,Streetscene Environmental Services,Supplies and Services,Recycling & Reuse Charges,234,25-Jul-2012,1207-00608,12006.58,R,Associated Waste Management Limited
http://statistics.data.gov.uk/doc/local-authority/00DA,Leeds City Council,Environment & Neighbourhoods,Streetscene Environmental Services,Supplies and Services,Waste Disposal Charges,236,24-Jul-2012,1207-00609,43775.32,R,Associated Waste Management Limited
http://statistics.data.gov.uk/doc/local-authority/00DA,Leeds City Council,Environment & Neighbourhoods,Streetscene Environmental Services,Supplies and Services,Waste Disposal Charges,236,12-Jul-2012,1207-00610,52565.11,R,Associated Waste Management Limited
http://statistics.data.gov.uk/doc/local-authority/00DA,Leeds City Council,Environment & Neighbourhoods,Streetscene Environmental Services,Supplies and Services,Waste Disposal Charges,236,27-Jul-2012,1207-00611,53813.83,R,Associated Waste Management Limited
http://statistics.data.gov.uk/doc/local-authority/00DA,Leeds City Council,Environment & Neighbourhoods,Streetscene Environmental Services,Supplies and Services,Waste Disposal Charges,236,03-Jul-2012,1207-00612,62055.20,R,Associated Waste Management Limited
http://statistics.data.gov.uk/doc/local-authority/00DA,Leeds City Council,Environment & Neighbourhoods,Streetscene Environmental Services,Supplies and Services,Waste Disposal Charges,236,03-Jul-2012,1207-00613,64706.83,R,Associated Waste Management Limited
http://statistics.data.gov.uk/doc/local-authority/00DA,Leeds City Council,Environment & Neighbourhoods,Streetscene Environmental Services,Supplies and Services,Waste Disposal Charges,236,26-Jul-2012,1207-00614,66348.54,R,Associated Waste Management Limited
http://statistics.data.gov.uk/doc/local-authority/00DA,Leeds City Council,Environment & Neighbourhoods,Streetscene Environmental Services,Supplies and Services,Waste Disposal Charges,236,03-Jul-2012,1207-00615,66464.52,R,Associated Waste Management Limited
http://statistics.data.gov.uk/doc/local-authority/00DA,Leeds City Council,Environment & Neighbourhoods,Streetscene Environmental Services,Supplies and Services,Waste Disposal Charges,236,24-Jul-2012,1207-00616,68353.76,R,Associated Waste Management Limited
http://statistics.data.gov.uk/doc/local-authority/00DA,Leeds City Council,Environment & Neighbourhoods,Streetscene Environmental Services,Supplies and Services,Waste Disposal Charges,236,25-Jul-2012,1207-00617,68516.49,R,Associated Waste Management Limited
http://statistics.data.gov.uk/doc/local-authority/00DA,Leeds City Council,Environment & Neighbourhoods,Streetscene Environmental Services,Supplies and Services,Waste Disposal Charges,236,24-Jul-2012,1207-00618,68574.11,R,Associated Waste Management Limited
http://statistics.data.gov.uk/doc/local-authority/00DA,Leeds City Council,City Development,Economic Development,Supplies and Services,Conference Meetings,253,13-Jul-2012,1207-00619,425.00,R,Association Of Town Centre Management
http://statistics.data.gov.uk/doc/local-authority/00DA,Leeds City Council,Central & Corporate Functions,Executive Support,Supplies and Services,Well Being Small Grants Projects,228,24-Jul-2012,1207-00620,500.00,R,Asyabi Uk
http://statistics.data.gov.uk/doc/local-authority/00DA,Leeds City Council,Adult Social Care,Services For Older People - 65 And Over,Third Party Payments,Nursing Home,570,04-Jul-2012,1207-00621,2979.82,R,Atkinson Court
http://statistics.data.gov.uk/doc/local-authority/00DA,Leeds City Council,Adult Social Care,Services For Older People - 65 And Over,Third Party Payments,Nursing Care Dementia,574,04-Jul-2012,1207-00622,5341.10,R,Atkinson Court
http://statistics.data.gov.uk/doc/local-authority/00DA,Leeds City Council,Central & Corporate Functions,Commercial Services Trading Services,Supplies and Services,Other Hired And Contracted Services,265,24-Jul-2012,1207-00623,600.00,R,Atlas Lift Hydraulics
http://statistics.data.gov.uk/doc/local-authority/00DA,Leeds City Council,Central & Corporate Functions,Commercial Services Trading Services,Supplies and Services,Other Hired And Contracted Services,265,30-Jul-2012,1207-00624,1030.90,R,Atlas Lift Hydraulics
http://statistics.data.gov.uk/doc/local-authority/00DA,Leeds City Council,Adult Social Care,Services For Older People - 65 And Over,Third Party Payments,Nursing Care Dementia,574,04-Jul-2012,1207-00625,1125.32,R,Attlee Court
http://statistics.data.gov.uk/doc/local-authority/00DA,Leeds City Council,City Development,Libraries  Arts & Heritage,Supplies and Services,Books & Audio-Visual Materials,206,27-Jul-2012,1207-00626,430.72,R,Audiogo Ltd
http://statistics.data.gov.uk/doc/local-authority/00DA,Leeds City Council,City Development,Libraries  Arts & Heritage,Supplies and Services,Books & Audio-Visual Materials,206,20-Jul-2012,1207-00627,539.25,R,Audiogo Ltd
http://statistics.data.gov.uk/doc/local-authority/00DA,Leeds City Council,City Development,Libraries  Arts & Heritage,Supplies and Services,Books & Audio-Visual Materials,206,18-Jul-2012,1207-00628,637.06,R,Audiogo Ltd
http://statistics.data.gov.uk/doc/local-authority/00DA,Leeds City Council,City Development,Libraries  Arts & Heritage,Supplies and Services,Books & Audio-Visual Materials,206,27-Jul-2012,1207-00629,761.90,R,Audiogo Ltd
http://statistics.data.gov.uk/doc/local-authority/00DA,Leeds City Council,City Development,Libraries  Arts & Heritage,Supplies and Services,Books & Audio-Visual Materials,206,06-Jul-2012,1207-00630,764.25,R,Audiogo Ltd
http://statistics.data.gov.uk/doc/local-authority/00DA,Leeds City Council,City Development,Libraries  Arts & Heritage,Supplies and Services,Books & Audio-Visual Materials,206,27-Jul-2012,1207-00631,805.38,R,Audiogo Ltd
http://statistics.data.gov.uk/doc/local-authority/00DA,Leeds City Council,Central & Corporate Functions,Information Technology,Supplies and Services,Software - Expenditure,080,19-Jul-2012,1207-00632,895.00,R,Auditware Systems Ltd
http://statistics.data.gov.uk/doc/local-authority/00DA,Leeds City Council,Adult Social Care,Services For Older People Under 65 P/Dis,Transfer Payments,Personalised Budgets,627,04-Jul-2012,1207-00633,602.72,R,REDACTED PERSONAL DATA
http://statistics.data.gov.uk/doc/local-authority/00DA,Leeds City Council as Accountable Body,Social Services Pooled Budgets,Jcs For People With Learning Disabilitie,Third Party Payments,Residential,580,04-Jul-2012,1207-00634,8217.00,R,Autism Care (Uk) Ltd
http://statistics.data.gov.uk/doc/local-authority/00DA,Leeds City Council,Childrens Services,Safeguarding Targeted & Specialist,Third Party Payments,Services Rendered By Other Organisations,511,23-Jul-2012,1207-00635,429.00,R,Autism Partnership Uk Ltd
http://statistics.data.gov.uk/doc/local-authority/00DA,Leeds City Council,Childrens Services,Safeguarding Targeted & Specialist,Third Party Payments,Services Rendered By Other Organisations,511,18-Jul-2012,1207-00636,556.50,R,Autism Partnership Uk Ltd
http://statistics.data.gov.uk/doc/local-authority/00DA,Leeds City Council,Childrens Services,Safeguarding Targeted & Specialist,Third Party Payments,Services Rendered By Other Organisations,511,18-Jul-2012,1207-00637,1134.00,R,Autism Partnership Uk Ltd
http://statistics.data.gov.uk/doc/local-authority/00DA,Leeds City Council,Childrens Services,Safeguarding Targeted & Specialist,Third Party Payments,Services Rendered By Other Organisations,511,23-Jul-2012,1207-00638,1298.00,R,Autism Partnership Uk Ltd
http://statistics.data.gov.uk/doc/local-authority/00DA,Leeds City Council,Childrens Services,Safeguarding Targeted & Specialist,Third Party Payments,Services Rendered By Other Organisations,511,23-Jul-2012,1207-00639,1796.39,R,Autism Partnership Uk Ltd
http://statistics.data.gov.uk/doc/local-authority/00DA,Leeds City Council,Childrens Services,Safeguarding Targeted & Specialist,Third Party Payments,Services Rendered By Other Organisations,511,23-Jul-2012,1207-00640,1875.43,R,Autism Partnership Uk Ltd
http://statistics.data.gov.uk/doc/local-authority/00DA,Leeds City Council,Childrens Services,Safeguarding Targeted & Specialist,Third Party Payments,Services Rendered By Other Organisations,511,23-Jul-2012,1207-00641,1934.03,R,Autism Partnership Uk Ltd
http://statistics.data.gov.uk/doc/local-authority/00DA,Leeds City Council,Childrens Services,Safeguarding Targeted & Specialist,Third Party Payments,Services Rendered By Other Organisations,511,18-Jul-2012,1207-00642,2441.82,R,Autism Partnership Uk Ltd
http://statistics.data.gov.uk/doc/local-authority/00DA,Leeds City Council,Childrens Services,Safeguarding Targeted & Specialist,Third Party Payments,Services Rendered By Other Organisations,511,24-Jul-2012,1207-00643,3118.46,R,Autism Partnership Uk Ltd
http://statistics.data.gov.uk/doc/local-authority/00DA,Leeds City Council,City Development,Recreation,Supplies and Services,Food & Drink,231,13-Jul-2012,1207-00644,503.77,R,Autobar Uk Ltd
http://statistics.data.gov.uk/doc/local-authority/00DA,Leeds City Council,City Development,Libraries  Arts & Heritage,Supplies and Services,Other Hired And Contracted Services,265,02-Jul-2012,1207-00645,600.00,R,Avalon Promotions Limited
http://statistics.data.gov.uk/doc/local-authority/00DA,Leeds City Council as Accountable Body,Social Services Pooled Budgets,Jcs For People With Learning Disabilitie,Third Party Payments,Residential,580,12-Jul-2012,1207-00646,4642.20,R,Avens Ltd
http://statistics.data.gov.uk/doc/local-authority/00DA,East - North East                    ,East - North East,Construction Services,Supplies and Services,Other Materials,205,13-Jul-2012,1207-00647,1005.00,R,Avocet Hardware (Uk) Ltd
http://statistics.data.gov.uk/doc/local-authority/00DA,East - North East                    ,East - North East,Construction Services,Supplies and Services,Other Materials,205,06-Jul-2012,1207-00648,1131.50,R,Avocet Hardware (Uk) Ltd
http://statistics.data.gov.uk/doc/local-authority/00DA,East - North East                    ,East - North East,Construction Services,Supplies and Services,Other Materials,205,06-Jul-2012,1207-00649,2010.00,R,Avocet Hardware (Uk) Ltd
http://statistics.data.gov.uk/doc/local-authority/00DA,East - North East                    ,East - North East,Construction Services,Supplies and Services,Other Materials,205,06-Jul-2012,1207-00650,2278.00,R,Avocet Hardware (Uk) Ltd
http://statistics.data.gov.uk/doc/local-authority/00DA,Leeds City Council as Accountable Body,Social Services Pooled Budgets,Jcs For People With Learning Disabilitie,Third Party Payments,Residential,580,04-Jul-2012,1207-00651,4126.92,R,Avon Lodge
http://statistics.data.gov.uk/doc/local-authority/00DA,Leeds City Council,Adult Social Care,Services For Older People - 65 And Over,Third Party Payments,Nursing Care Dementia,574,05-Jul-2012,1207-00652,1471.40,R,Avondale Care Home
http://statistics.data.gov.uk/doc/local-authority/00DA,Leeds City Council,City Development,Libraries  Arts & Heritage,Supplies and Services,Art Galleries Total Stores,003,05-Jul-2012,1207-00653,500.00,R,Aw Hainsworth & Sons Ltd
http://statistics.data.gov.uk/doc/local-authority/00DA,Leeds City Council,Childrens Services,Learning Skills & Universal,Supplies and Services,Books & Audio-Visual Materials,206,25-Jul-2012,1207-00654,4816.67,R,Award Scheme Ltd
http://statistics.data.gov.uk/doc/local-authority/00DA,Leeds City Council,City Development,Recreation Total,Supplies and Services,Other Materials,205,26-Jun-2012,1207-00655,882.48,R,Awards Centre V/t
http://statistics.data.gov.uk/doc/local-authority/00DA,Leeds City Council as Accountable Body,Social Services Pooled Budgets,Jcs For People With Learning Disabilitie,Third Party Payments,Sheltered Accommodation,569,04-Jul-2012,1207-00656,18640.64,R,Ayersome Terrace
http://statistics.data.gov.uk/doc/local-authority/00DA,Leeds City Council as Accountable Body,Social Services Pooled Budgets,Jcs For People With Learning Disabilitie,Third Party Payments,Residential,580,04-Jul-2012,1207-00657,55260.32,R,Ayersome Terrace
http://statistics.data.gov.uk/doc/local-authority/00DA,Leeds City Council,Adult Social Care,Services For Older People - 65 And Over,Third Party Payments,Nursing Home,570,04-Jul-2012,1207-00658,1221.00,R,Ayresome Court Residential
http://statistics.data.gov.uk/doc/local-authority/00DA,Leeds City Council,Adult Social Care,Services For Older People - 65 And Over,Transfer Payments,Direct Payments,626,04-Jul-2012,1207-00659,673.64,R,REDACTED PERSONAL DATA
http://statistics.data.gov.uk/doc/local-authority/00DA,Leeds City Council,Adult Social Care,Services For Older People Under 65 P/Dis,Transfer Payments,Direct Payments,626,04-Jul-2012,1207-00660,976.64,R,REDACTED PERSONAL DATA
http://statistics.data.gov.uk/doc/local-authority/00DA,Leeds City Council as Accountable Body,Social Services Pooled Budgets,Jcs For People With Learning Disabilitie,Transfer Payments,Personal Budgets,627,04-Jul-2012,1207-00661,487.52,R,REDACTED PERSONAL DATA
http://statistics.data.gov.uk/doc/local-authority/00DA,Leeds City Council,Environment & Neighbourhoods,Environmental Health,Capital,Construction,3,24-Jul-2012,1207-00662,1500.00,C,B & K Passmore
http://statistics.data.gov.uk/doc/local-authority/00DA,Leeds City Council,Environment & Neighbourhoods,Environmental Health,Capital,Construction,3,02-Jul-2012,1207-00663,1500.00,C,B & K Passmore
http://statistics.data.gov.uk/doc/local-authority/00DA,Leeds City Council,Environment & Neighbourhoods,Environmental Health,Capital,Construction,3,02-Jul-2012,1207-00664,2890.00,C,B & K Passmore
http://statistics.data.gov.uk/doc/local-authority/00DA,Leeds City Council,Environment & Neighbourhoods,Environmental Health,Capital,Construction,3,09-Jul-2012,1207-00665,3040.00,C,B & K Passmore
http://statistics.data.gov.uk/doc/local-authority/00DA,Leeds City Council,Environment & Neighbourhoods,Environmental Health,Capital,Construction,3,09-Jul-2012,1207-00666,4111.36,C,B & K Passmore
http://statistics.data.gov.uk/doc/local-authority/00DA,Leeds City Council,Environment & Neighbourhoods,Environmental Health,Capital,Construction,3,13-Jul-2012,1207-00667,4150.00,C,B & K Passmore
http://statistics.data.gov.uk/doc/local-authority/00DA,Leeds City Council,Environment & Neighbourhoods,Environmental Health,Capital,Construction,3,13-Jul-2012,1207-00668,4150.00,C,B & K Passmore
http://statistics.data.gov.uk/doc/local-authority/00DA,Leeds City Council,Environment & Neighbourhoods,Environmental Health,Capital,Construction,3,30-Jul-2012,1207-00669,4150.00,C,B & K Passmore
http://statistics.data.gov.uk/doc/local-authority/00DA,Leeds City Council,Environment & Neighbourhoods,Environmental Health,Capital,Construction,3,09-Jul-2012,1207-00670,4150.00,C,B & K Passmore
http://statistics.data.gov.uk/doc/local-authority/00DA,Leeds City Council,Environment & Neighbourhoods,Environmental Health,Capital,Construction,3,02-Jul-2012,1207-00671,4150.00,C,B & K Passmore
http://statistics.data.gov.uk/doc/local-authority/00DA,Leeds City Council,Environment & Neighbourhoods,Environmental Health,Capital,Construction,3,09-Jul-2012,1207-00672,4150.00,C,B & K Passmore
http://statistics.data.gov.uk/doc/local-authority/00DA,Leeds City Council,Environment & Neighbourhoods,Environmental Health,Capital,Construction,3,30-Jul-2012,1207-00673,4150.00,C,B & K Passmore
http://statistics.data.gov.uk/doc/local-authority/00DA,Leeds City Council,Environment & Neighbourhoods,Environmental Health,Capital,Construction,3,09-Jul-2012,1207-00674,4150.00,C,B & K Passmore
http://statistics.data.gov.uk/doc/local-authority/00DA,Leeds City Council,Environment & Neighbourhoods,Environmental Health,Capital,Construction,3,13-Jul-2012,1207-00675,4150.00,C,B & K Passmore
http://statistics.data.gov.uk/doc/local-authority/00DA,Leeds City Council,Environment & Neighbourhoods,Environmental Health,Capital,Construction,3,02-Jul-2012,1207-00676,4150.00,C,B & K Passmore
http://statistics.data.gov.uk/doc/local-authority/00DA,Leeds City Council,Environment & Neighbourhoods,Environmental Health,Capital,Construction,3,09-Jul-2012,1207-00677,4150.00,C,B & K Passmore
http://statistics.data.gov.uk/doc/local-authority/00DA,Leeds City Council,Environment & Neighbourhoods,Environmental Health,Capital,Construction,3,09-Jul-2012,1207-00678,4150.00,C,B & K Passmore
http://statistics.data.gov.uk/doc/local-authority/00DA,Leeds City Council,Environment & Neighbourhoods,Environmental Health,Capital,Construction,3,30-Jul-2012,1207-00679,4150.00,C,B & K Passmore
http://statistics.data.gov.uk/doc/local-authority/00DA,Leeds City Council,Environment & Neighbourhoods,Environmental Health,Capital,Construction,3,09-Jul-2012,1207-00680,4150.00,C,B & K Passmore
http://statistics.data.gov.uk/doc/local-authority/00DA,Leeds City Council,Environment & Neighbourhoods,Environmental Health,Capital,Construction,3,09-Jul-2012,1207-00681,4420.00,C,B & K Passmore
http://statistics.data.gov.uk/doc/local-authority/00DA,Leeds City Council,Environment & Neighbourhoods,Environmental Health,Capital,Construction,3,30-Jul-2012,1207-00682,4444.00,C,B & K Passmore
http://statistics.data.gov.uk/doc/local-authority/00DA,Leeds City Council,Environment & Neighbourhoods,Environmental Health,Capital,Construction,3,02-Jul-2012,1207-00683,4561.00,C,B & K Passmore
http://statistics.data.gov.uk/doc/local-authority/00DA,Leeds City Council,Environment & Neighbourhoods,Environmental Health,Capital,Construction,3,02-Jul-2012,1207-00684,4728.00,C,B & K Passmore
http://statistics.data.gov.uk/doc/local-authority/00DA,Leeds City Council,Environment & Neighbourhoods,Environmental Health,Capital,Construction,3,02-Jul-2012,1207-00685,4772.50,C,B & K Passmore
http://statistics.data.gov.uk/doc/local-authority/00DA,Leeds City Council,Environment & Neighbourhoods,Environmental Health,Capital,Construction,3,16-Jul-2012,1207-00686,8150.58,C,B & K Passmore
http://statistics.data.gov.uk/doc/local-authority/00DA,Leeds City Council,Environment & Neighbourhoods,Environmental Health,Capital,Construction,3,09-Jul-2012,1207-00687,12098.32,C,B & K Passmore
http://statistics.data.gov.uk/doc/local-authority/00DA,Leeds City Council,Environment & Neighbourhoods,Environmental Health,Capital,Construction,3,30-Jul-2012,1207-00688,28500.00,C,B & K Passmore
http://statistics.data.gov.uk/doc/local-authority/00DA,Leeds City Council,Environment & Neighbourhoods,Health & Environmental Action,Income,Admissions  Booking Fees & Ticket Sales,933,02-Jul-2012,1207-00689,-572.50,R,B & K Passmore
http://statistics.data.gov.uk/doc/local-authority/00DA,Leeds City Council,Childrens Services,Learning Skills & Universal,Supplies and Services,Printing,215,27-Jul-2012,1207-00690,2548.00,R,B And B Press (Parkgate) Limited
http://statistics.data.gov.uk/doc/local-authority/00DA,Leeds City Council,Environment & Neighbourhoods,Environmental Health,Supplies and Services,Publication And Promotion,267,12-Jul-2012,1207-00691,700.00,R,B&H Colour Change
http://statistics.data.gov.uk/doc/local-authority/00DA,Leeds City Council,Adult Social Care,Assessment And Care Management,Supplies and Services,Office Furniture & Equipment,201,20-Jul-2012,1207-00692,665.00,R,Back Care Solutions Ltd
http://statistics.data.gov.uk/doc/local-authority/00DA,Aire Valley Homes Leeds  ,Aire Valley Homes Leeds,Aire Valley Homes Leeds,Employees,Temporary Staff-Basic,009,18-Jul-2012,1207-00693,522.47,R,Badenoch & Clark Ltd
http://statistics.data.gov.uk/doc/local-authority/00DA,Aire Valley Homes Leeds  ,Aire Valley Homes Leeds,Aire Valley Homes Leeds,Employees,Temporary Staff-Basic,009,25-Jul-2012,1207-00694,723.02,R,Badenoch & Clark Ltd
http://statistics.data.gov.uk/doc/local-authority/00DA,Aire Valley Homes Leeds  ,Aire Valley Homes Leeds,Aire Valley Homes Leeds,Employees,Temporary Staff-Basic,009,27-Jul-2012,1207-00695,960.51,R,Badenoch & Clark Ltd
http://statistics.data.gov.uk/doc/local-authority/00DA,Aire Valley Homes Leeds  ,Aire Valley Homes Leeds,Aire Valley Homes Leeds,Employees,Temporary Staff-Basic,009,18-Jul-2012,1207-00696,1161.02,R,Badenoch & Clark Ltd
http://statistics.data.gov.uk/doc/local-authority/00DA,West - North West                    ,West - North West,Customer And Tenancy,Employees,Salaries & Wages - Basic Pay,001,06-Jul-2012,1207-00697,442.78,R,Badenoch & Clark Ltd
http://statistics.data.gov.uk/doc/local-authority/00DA,West - North West                    ,West - North West,Customer And Tenancy,Employees,Salaries & Wages - Basic Pay,001,20-Jul-2012,1207-00698,500.24,R,Badenoch & Clark Ltd
http://statistics.data.gov.uk/doc/local-authority/00DA,West - North West                    ,West - North West,Customer And Tenancy,Employees,Temporary Staff-Basic,009,13-Jul-2012,1207-00699,422.50,R,Badenoch & Clark Ltd
http://statistics.data.gov.uk/doc/local-authority/00DA,West - North West                    ,West - North West,Customer And Tenancy,Employees,Temporary Staff-Basic,009,20-Jul-2012,1207-00700,437.07,R,Badenoch & Clark Ltd
http://statistics.data.gov.uk/doc/local-authority/00DA,West - North West                    ,West - North West,Customer And Tenancy,Employees,Temporary Staff-Basic,009,06-Jul-2012,1207-00701,437.10,R,Badenoch & Clark Ltd
http://statistics.data.gov.uk/doc/local-authority/00DA,West - North West                    ,West - North West,Customer And Tenancy,Employees,Temporary Staff-Basic,009,20-Jul-2012,1207-00702,441.00,R,Badenoch & Clark Ltd
http://statistics.data.gov.uk/doc/local-authority/00DA,West - North West                    ,West - North West,Customer And Tenancy,Employees,Temporary Staff-Basic,009,20-Jul-2012,1207-00703,441.00,R,Badenoch & Clark Ltd
http://statistics.data.gov.uk/doc/local-authority/00DA,West - North West                    ,West - North West,Customer And Tenancy,Employees,Temporary Staff-Basic,009,27-Jul-2012,1207-00704,441.00,R,Badenoch & Clark Ltd
http://statistics.data.gov.uk/doc/local-authority/00DA,West - North West                    ,West - North West,Customer And Tenancy,Employees,Temporary Staff-Basic,009,06-Jul-2012,1207-00705,441.00,R,Badenoch & Clark Ltd
http://statistics.data.gov.uk/doc/local-authority/00DA,West - North West                    ,West - North West,Customer And Tenancy,Employees,Temporary Staff-Basic,009,06-Jul-2012,1207-00706,441.00,R,Badenoch & Clark Ltd
http://statistics.data.gov.uk/doc/local-authority/00DA,West - North West                    ,West - North West,Customer And Tenancy,Employees,Temporary Staff-Basic,009,27-Jul-2012,1207-00707,520.96,R,Badenoch & Clark Ltd
http://statistics.data.gov.uk/doc/local-authority/00DA,West - North West                    ,West - North West,Customer And Tenancy,Employees,Temporary Staff-Basic,009,20-Jul-2012,1207-00708,520.96,R,Badenoch & Clark Ltd
http://statistics.data.gov.uk/doc/local-authority/00DA,West - North West                    ,West - North West,Customer And Tenancy,Employees,Temporary Staff-Basic,009,20-Jul-2012,1207-00709,523.90,R,Badenoch & Clark Ltd
http://statistics.data.gov.uk/doc/local-authority/00DA,West - North West                    ,West - North West,Customer And Tenancy,Employees,Temporary Staff-Basic,009,20-Jul-2012,1207-00710,537.24,R,Badenoch & Clark Ltd
http://statistics.data.gov.uk/doc/local-authority/00DA,West - North West                    ,West - North West,Customer And Tenancy,Employees,Temporary Staff-Basic,009,20-Jul-2012,1207-00711,539.09,R,Badenoch & Clark Ltd
http://statistics.data.gov.uk/doc/local-authority/00DA,West - North West                    ,West - North West,Customer And Tenancy,Employees,Temporary Staff-Basic,009,27-Jul-2012,1207-00712,549.45,R,Badenoch & Clark Ltd
http://statistics.data.gov.uk/doc/local-authority/00DA,West - North West                    ,West - North West,Customer And Tenancy,Employees,Temporary Staff-Basic,009,06-Jul-2012,1207-00713,562.13,R,Badenoch & Clark Ltd
http://statistics.data.gov.uk/doc/local-authority/00DA,West - North West                    ,West - North West,Customer And Tenancy,Employees,Temporary Staff-Basic,009,06-Jul-2012,1207-00714,602.36,R,Badenoch & Clark Ltd
http://statistics.data.gov.uk/doc/local-authority/00DA,West - North West                    ,West - North West,Customer And Tenancy,Employees,Temporary Staff-Basic,009,27-Jul-2012,1207-00715,608.40,R,Badenoch & Clark Ltd
http://statistics.data.gov.uk/doc/local-authority/00DA,West - North West                    ,West - North West,Customer And Tenancy,Employees,Temporary Staff-Basic,009,06-Jul-2012,1207-00716,610.92,R,Badenoch & Clark Ltd
http://statistics.data.gov.uk/doc/local-authority/00DA,West - North West                    ,West - North West,Customer And Tenancy,Employees,Temporary Staff-Basic,009,20-Jul-2012,1207-00717,613.46,R,Badenoch & Clark Ltd
http://statistics.data.gov.uk/doc/local-authority/00DA,West - North West                    ,West - North West,Customer And Tenancy,Employees,Temporary Staff-Basic,009,27-Jul-2012,1207-00718,613.46,R,Badenoch & Clark Ltd
http://statistics.data.gov.uk/doc/local-authority/00DA,West - North West                    ,West - North West,Customer And Tenancy,Employees,Temporary Staff-Basic,009,06-Jul-2012,1207-00719,613.46,R,Badenoch & Clark Ltd
http://statistics.data.gov.uk/doc/local-authority/00DA,West - North West                    ,West - North West,Customer And Tenancy,Employees,Temporary Staff-Basic,009,20-Jul-2012,1207-00720,614.40,R,Badenoch & Clark Ltd
http://statistics.data.gov.uk/doc/local-authority/00DA,West - North West                    ,West - North West,Customer And Tenancy,Employees,Temporary Staff-Basic,009,27-Jul-2012,1207-00721,614.40,R,Badenoch & Clark Ltd
http://statistics.data.gov.uk/doc/local-authority/00DA,West - North West                    ,West - North West,Customer And Tenancy,Employees,Temporary Staff-Basic,009,06-Jul-2012,1207-00722,614.40,R,Badenoch & Clark Ltd
http://statistics.data.gov.uk/doc/local-authority/00DA,West - North West                    ,West - North West,Customer And Tenancy,Employees,Temporary Staff-Basic,009,13-Jul-2012,1207-00723,614.40,R,Badenoch & Clark Ltd
http://statistics.data.gov.uk/doc/local-authority/00DA,West - North West                    ,West - North West,Customer And Tenancy,Employees,Temporary Staff-Basic,009,20-Jul-2012,1207-00724,615.16,R,Badenoch & Clark Ltd
http://statistics.data.gov.uk/doc/local-authority/00DA,West - North West                    ,West - North West,Customer And Tenancy,Employees,Temporary Staff-Basic,009,27-Jul-2012,1207-00725,625.30,R,Badenoch & Clark Ltd
http://statistics.data.gov.uk/doc/local-authority/00DA,West - North West                    ,West - North West,Customer And Tenancy,Employees,Temporary Staff-Basic,009,06-Jul-2012,1207-00726,625.30,R,Badenoch & Clark Ltd
http://statistics.data.gov.uk/doc/local-authority/00DA,West - North West                    ,West - North West,Customer And Tenancy,Employees,Temporary Staff-Basic,009,27-Jul-2012,1207-00727,634.18,R,Badenoch & Clark Ltd
http://statistics.data.gov.uk/doc/local-authority/00DA,West - North West                    ,West - North West,Customer And Tenancy,Employees,Temporary Staff-Basic,009,13-Jul-2012,1207-00728,640.62,R,Badenoch & Clark Ltd
http://statistics.data.gov.uk/doc/local-authority/00DA,West - North West                    ,West - North West,Customer And Tenancy,Employees,Temporary Staff-Basic,009,06-Jul-2012,1207-00729,642.20,R,Badenoch & Clark Ltd
http://statistics.data.gov.uk/doc/local-authority/00DA,West - North West                    ,West - North West,Customer And Tenancy,Employees,Temporary Staff-Basic,009,27-Jul-2012,1207-00730,657.59,R,Badenoch & Clark Ltd
http://statistics.data.gov.uk/doc/local-authority/00DA,West - North West                    ,West - North West,Customer And Tenancy,Employees,Temporary Staff-Basic,009,20-Jul-2012,1207-00731,659.10,R,Badenoch & Clark Ltd
http://statistics.data.gov.uk/doc/local-authority/00DA,Leeds City Council,City Development,Libraries  Arts & Heritage,Supplies and Services,Art Galleries Total Stores,003,26-Jul-2012,1207-00732,542.68,R,Baker & Taylor (Uk) Ltd
http://statistics.data.gov.uk/doc/local-authority/00DA,Leeds City Council,City Development,Libraries  Arts & Heritage,Supplies and Services,Art Galleries Total Stores,003,26-Jul-2012,1207-00733,736.74,R,Baker & Taylor (Uk) Ltd
http://statistics.data.gov.uk/doc/local-authority/00DA,Leeds City Council,City Development,Recreation,Transport,Plant Spares,346,24-Jul-2012,1207-00734,798.60,R,Balmers Garden Machinery
http://statistics.data.gov.uk/doc/local-authority/00DA,Leeds City Council,City Development,Recreation,Transport,Plant Spares,346,31-Jul-2012,1207-00735,829.87,R,Balmers Garden Machinery
http://statistics.data.gov.uk/doc/local-authority/00DA,Leeds City Council,City Development,Asset Management Services,Capital,Construction,3,19-Jul-2012,1207-00736,2868193.00,C,Bam Construction Ltd
http://statistics.data.gov.uk/doc/local-authority/00DA,Leeds City Council,City Development,Libraries  Arts & Heritage,Capital,Construction,3,23-Jul-2012,1207-00737,115892.51,C,Bam Construction Ltd
http://statistics.data.gov.uk/doc/local-authority/00DA,Leeds City Council,Adult Social Care,Services For Older People - 65 And Over,Transfer Payments,Personalised Budgets,627,04-Jul-2012,1207-00738,579.00,R,REDACTED PERSONAL DATA
http://statistics.data.gov.uk/doc/local-authority/00DA,Leeds City Council,Central & Corporate Functions,Executive Support,Supplies and Services,'Well Being' Large Grants Projects,230,31-Jul-2012,1207-00739,16447.00,R,Barca Leeds
http://statistics.data.gov.uk/doc/local-authority/00DA,Leeds City Council,Childrens Services,Learning Skills & Universal,Third Party Payments,Services Rendered By Voluntary Sector,505,30-Jul-2012,1207-00740,6250.00,R,Barca Leeds
http://statistics.data.gov.uk/doc/local-authority/00DA,Leeds City Council,City Development,Recreation,Supplies and Services,Operational Materials,205,10-Jul-2012,1207-00741,1011.20,R,Barcham Trees Plc
http://statistics.data.gov.uk/doc/local-authority/00DA,Leeds City Council,Childrens Services,Learning Skills & Universal,Third Party Payments,Services Rendered By Voluntary Sector,505,26-Jul-2012,1207-00742,11746.02,R,Bardsey Nursery Group
http://statistics.data.gov.uk/doc/local-authority/00DA,Leeds City Council,Childrens Services,Safeguarding Targeted & Specialist,Third Party Payments,Services Rendered By Voluntary Sector,505,12-Jul-2012,1207-00743,22144.00,R,Barnardo Services Ltd
http://statistics.data.gov.uk/doc/local-authority/00DA,Leeds City Council,Childrens Services,Safeguarding Targeted & Specialist,Third Party Payments,Services Rendered By Voluntary Sector,505,13-Jul-2012,1207-00744,27060.00,R,Barnardos Yorkshire
http://statistics.data.gov.uk/doc/local-authority/00DA,Leeds City Council,Childrens Services,Safeguarding Targeted & Specialist,Third Party Payments,Independent Fostering Agencies,509,31-Jul-2012,1207-00745,3892.96,R,Barnardos Yorkshire
http://statistics.data.gov.uk/doc/local-authority/00DA,Leeds City Council,Childrens Services,Safeguarding Targeted & Specialist,Third Party Payments,Independent Fostering Agencies,509,04-Jul-2012,1207-00746,4027.20,R,Barnardos Yorkshire
http://statistics.data.gov.uk/doc/local-authority/00DA,Leeds City Council,Childrens Services,Safeguarding Targeted & Specialist,Third Party Payments,Independent Fostering Agencies,509,27-Jul-2012,1207-00747,4027.20,R,Barnardos Yorkshire
http://statistics.data.gov.uk/doc/local-authority/00DA,Leeds City Council,Childrens Services,Safeguarding Targeted & Specialist,Third Party Payments,Independent Fostering Agencies,509,12-Jul-2012,1207-00748,4161.44,R,Barnardos Yorkshire
http://statistics.data.gov.uk/doc/local-authority/00DA,Leeds City Council,Environment & Neighbourhoods,Statutory Housing,Supplies and Services,Non-Recurring Grants,227,11-Jul-2012,1207-00749,3750.00,R,Barnardos Yorkshire
http://statistics.data.gov.uk/doc/local-authority/00DA,Leeds City Council as Accountable Body,Social Services Pooled Budgets,Jcs For People With Learning Disabilitie,Third Party Payments,Home Care,568,19-Jul-2012,1207-00750,864.00,R,Barnardos Yorkshire
http://statistics.data.gov.uk/doc/local-authority/00DA,Leeds City Council,Strategic Accounts,Miscellaneous,Supplies and Services,Memberships,226,20-Jul-2012,1207-00751,1000.00,R,Barnsley Metropolitan Borough Council
http://statistics.data.gov.uk/doc/local-authority/00DA,Leeds City Council,Adult Social Care,Services For Older People Under 65 P/Dis,Transfer Payments,Personalised Budgets,627,04-Jul-2012,1207-00752,661.88,R,REDACTED PERSONAL DATA
http://statistics.data.gov.uk/doc/local-authority/00DA,Leeds City Council,Adult Social Care,Services For Older People - 65 And Over,Third Party Payments,Nursing Home,570,05-Jul-2012,1207-00753,1251.88,R,Batley Hall
http://statistics.data.gov.uk/doc/local-authority/00DA,Leeds City Council,City Development,Economic Development,Supplies and Services,Publication And Promotion,267,31-Jul-2012,1207-00754,6169.00,R,Bay Media Ltd
http://statistics.data.gov.uk/doc/local-authority/00DA,Leeds City Council,Central & Corporate Functions,Commercial Services Trading Services,Transport,Fuel (Non LCC Supplies),321,06-Jul-2012,1207-00755,-42480.20,R,Bayford Oil
http://statistics.data.gov.uk/doc/local-authority/00DA,Leeds City Council,Central & Corporate Functions,Commercial Services Trading Services,Transport,Fuel (Non LCC Supplies),321,13-Jul-2012,1207-00756,1340.64,R,Bayford Oil
http://statistics.data.gov.uk/doc/local-authority/00DA,Leeds City Council,Central & Corporate Functions,Commercial Services Trading Services,Transport,Fuel (Non LCC Supplies),321,13-Jul-2012,1207-00757,1591.00,R,Bayford Oil
http://statistics.data.gov.uk/doc/local-authority/00DA,Leeds City Council,Central & Corporate Functions,Commercial Services Trading Services,Transport,Fuel (Non LCC Supplies),321,13-Jul-2012,1207-00758,1909.20,R,Bayford Oil
http://statistics.data.gov.uk/doc/local-authority/00DA,Leeds City Council,Central & Corporate Functions,Commercial Services Trading Services,Transport,Fuel (Non LCC Supplies),321,06-Jul-2012,1207-00759,1960.50,R,Bayford Oil
http://statistics.data.gov.uk/doc/local-authority/00DA,Leeds City Council,Central & Corporate Functions,Commercial Services Trading Services,Transport,Fuel (Non LCC Supplies),321,20-Jul-2012,1207-00760,10907.00,R,Bayford Oil
http://statistics.data.gov.uk/doc/local-authority/00DA,Leeds City Council,Central & Corporate Functions,Commercial Services Trading Services,Transport,Fuel (Non LCC Supplies),321,20-Jul-2012,1207-00761,10976.74,R,Bayford Oil
http://statistics.data.gov.uk/doc/local-authority/00DA,Leeds City Council,Central & Corporate Functions,Commercial Services Trading Services,Transport,Fuel (Non LCC Supplies),321,11-Jul-2012,1207-00762,11242.38,R,Bayford Oil
http://statistics.data.gov.uk/doc/local-authority/00DA,Leeds City Council,Central & Corporate Functions,Commercial Services Trading Services,Transport,Fuel (Non LCC Supplies),321,26-Jul-2012,1207-00763,16345.50,R,Bayford Oil
http://statistics.data.gov.uk/doc/local-authority/00DA,Leeds City Council,Central & Corporate Functions,Commercial Services Trading Services,Transport,Fuel (Non LCC Supplies),321,06-Jul-2012,1207-00764,16743.00,R,Bayford Oil
http://statistics.data.gov.uk/doc/local-authority/00DA,Leeds City Council,Central & Corporate Functions,Commercial Services Trading Services,Transport,Fuel (Non LCC Supplies),321,20-Jul-2012,1207-00765,19647.00,R,Bayford Oil
http://statistics.data.gov.uk/doc/local-authority/00DA,Leeds City Council,Central & Corporate Functions,Commercial Services Trading Services,Transport,Fuel (Non LCC Supplies),321,11-Jul-2012,1207-00766,19886.40,R,Bayford Oil
http://statistics.data.gov.uk/doc/local-authority/00DA,Leeds City Council,Central & Corporate Functions,Commercial Services Trading Services,Transport,Fuel (Non LCC Supplies),321,25-Jul-2012,1207-00767,21472.97,R,Bayford Oil
http://statistics.data.gov.uk/doc/local-authority/00DA,Leeds City Council,Central & Corporate Functions,Commercial Services Trading Services,Transport,Fuel (Non LCC Supplies),321,13-Jul-2012,1207-00768,23969.00,R,Bayford Oil
http://statistics.data.gov.uk/doc/local-authority/00DA,Leeds City Council,Central & Corporate Functions,Commercial Services Trading Services,Transport,Fuel (Non LCC Supplies),321,06-Jul-2012,1207-00769,24468.40,R,Bayford Oil
http://statistics.data.gov.uk/doc/local-authority/00DA,Leeds City Council,Central & Corporate Functions,Commercial Services Trading Services,Transport,Fuel (Non LCC Supplies),321,20-Jul-2012,1207-00770,38542.35,R,Bayford Oil
http://statistics.data.gov.uk/doc/local-authority/00DA,Leeds City Council,Central & Corporate Functions,Commercial Services Trading Services,Transport,Fuel (Non LCC Supplies),321,13-Jul-2012,1207-00771,38668.00,R,Bayford Oil
http://statistics.data.gov.uk/doc/local-authority/00DA,Leeds City Council,Central & Corporate Functions,Commercial Services Trading Services,Transport,Fuel (Non LCC Supplies),321,27-Jul-2012,1207-00772,38674.80,R,Bayford Oil
http://statistics.data.gov.uk/doc/local-authority/00DA,Leeds City Council,Central & Corporate Functions,Commercial Services Trading Services,Transport,Fuel (Non LCC Supplies),321,11-Jul-2012,1207-00773,40347.68,R,Bayford Oil
http://statistics.data.gov.uk/doc/local-authority/00DA,Leeds City Council,Childrens Services,Learning Skills & Universal,Premises,Oil,122,17-Jul-2012,1207-00774,1477.29,R,Bayford Oil
http://statistics.data.gov.uk/doc/local-authority/00DA,Leeds City Council,Childrens Services,Learning Skills & Universal,Premises,Oil,122,17-Jul-2012,1207-00775,2016.90,R,Bayford Oil
http://statistics.data.gov.uk/doc/local-authority/00DA,Leeds City Council,City Development,Libraries  Arts & Heritage,Premises,Oil,122,10-Jul-2012,1207-00776,1248.56,R,Bayford Oil
http://statistics.data.gov.uk/doc/local-authority/00DA,Leeds City Council,City Development,Recreation,Transport,Fuel (Non LCC Supplies),321,20-Jul-2012,1207-00777,957.60,R,Bayford Oil
http://statistics.data.gov.uk/doc/local-authority/00DA,Leeds City Council,City Development,Recreation,Transport,Fuel (Non LCC Supplies),321,20-Jul-2012,1207-00778,1213.60,R,Bayford Oil
http://statistics.data.gov.uk/doc/local-authority/00DA,Leeds City Council,City Development,Recreation,Transport,Fuel (Non LCC Supplies),321,25-Jul-2012,1207-00779,1244.58,R,Bayford Oil
http://statistics.data.gov.uk/doc/local-authority/00DA,Leeds City Council,City Development,Recreation,Transport,Fuel (Non LCC Supplies),321,11-Jul-2012,1207-00780,1292.20,R,Bayford Oil
http://statistics.data.gov.uk/doc/local-authority/00DA,Leeds City Council,City Development,Recreation,Transport,Fuel (Non LCC Supplies),321,20-Jul-2012,1207-00781,3298.50,R,Bayford Oil
http://statistics.data.gov.uk/doc/local-authority/00DA,Leeds City Council,City Development,Recreation,Transport,Fuel (Non LCC Supplies),321,20-Jul-2012,1207-00782,4380.80,R,Bayford Oil
http://statistics.data.gov.uk/doc/local-authority/00DA,Leeds City Council,City Development,Recreation,Transport,Fuel (Non LCC Supplies),321,11-Jul-2012,1207-00783,12289.20,R,Bayford Oil
http://statistics.data.gov.uk/doc/local-authority/00DA,Leeds City Council,City Development,Recreation,Transport,Fuel (Non LCC Supplies),321,27-Jul-2012,1207-00784,17617.18,R,Bayford Oil
http://statistics.data.gov.uk/doc/local-authority/00DA,Leeds City Council,Environment & Neighbourhoods,Streetscene Environmental Services,Transport,Fuel (Non LCC Supplies),321,30-Jul-2012,1207-00785,871.64,R,Bayford Oil
http://statistics.data.gov.uk/doc/local-authority/00DA,Leeds City Council,Adult Social Care,Services For Older People Under 65 P/Dis,Third Party Payments,Residential,580,04-Jul-2012,1207-00786,7984.00,R,Baylis Place
http://statistics.data.gov.uk/doc/local-authority/00DA,Leeds City Council,City Development,Libraries  Arts & Heritage,Supplies and Services,Computer Software & Equipment,214,06-Jul-2012,1207-00787,465.01,R,Bdm Technology
http://statistics.data.gov.uk/doc/local-authority/00DA,East - North East                    ,East - North East,Corporate Directorate,Supplies and Services,Audit Fees,261,03-Jul-2012,1207-00788,2675.00,R,Bdo Llp
http://statistics.data.gov.uk/doc/local-authority/00DA,Leeds City Council,Central & Corporate Functions,Executive Support,Supplies and Services,Well Being Small Grants Projects,228,04-Jul-2012,1207-00789,500.00,R,Bea-Owls
http://statistics.data.gov.uk/doc/local-authority/00DA,Leeds City Council as Accountable Body,Social Services Pooled Budgets,Jcs For People With Learning Disabilitie,Third Party Payments,Home Care,568,20-Jul-2012,1207-00790,600.00,R,Beat It Music Cic
http://statistics.data.gov.uk/doc/local-authority/00DA,Leeds City Council,Adult Social Care,Services For Older People - 65 And Over,Third Party Payments,Residential,580,04-Jul-2012,1207-00791,1207.20,R,Beech Lodge Residential Home
http://statistics.data.gov.uk/doc/local-authority/00DA,Leeds City Council,Adult Social Care,Services For Older People - 65 And Over,Third Party Payments,Residential Care Dementia,571,04-Jul-2012,1207-00792,1007.52,R,Beechmount
http://statistics.data.gov.uk/doc/local-authority/00DA,Leeds City Council,Childrens Services,Learning Skills & Universal,Third Party Payments,Services Rendered By Other Organisations,511,06-Jul-2012,1207-00793,710.61,R,Beechtree Headingley Kindergarten
http://statistics.data.gov.uk/doc/local-authority/00DA,Leeds City Council,Childrens Services,Learning Skills & Universal,Third Party Payments,Services Rendered By Other Organisations,511,26-Jul-2012,1207-00794,3052.50,R,Beechtree Headingley Kindergarten
http://statistics.data.gov.uk/doc/local-authority/00DA,Leeds City Council,Childrens Services,Learning Skills & Universal,Third Party Payments,Services Rendered By Voluntary Sector,505,06-Jul-2012,1207-00795,1015.41,R,Beechtree Kindergarten
http://statistics.data.gov.uk/doc/local-authority/00DA,Leeds City Council,Childrens Services,Learning Skills & Universal,Third Party Payments,Services Rendered By Voluntary Sector,505,26-Jul-2012,1207-00796,3701.11,R,Beechtree Kindergarten
http://statistics.data.gov.uk/doc/local-authority/00DA,Leeds City Council as Accountable Body,Social Services Pooled Budgets,Jcs For People With Learning Disabilitie,Supplies and Services,Events,238,24-Jul-2012,1207-00797,1500.00,R,Beeston Action For Families
http://statistics.data.gov.uk/doc/local-authority/00DA,East - North East                    ,East - North East,Technical Services,Premises,H.R.A. - Repairs A To P,107,02-Jul-2012,1207-00798,16648.10,R,Bell Group Uk
http://statistics.data.gov.uk/doc/local-authority/00DA,Leeds City Council,Adult Social Care,Services For Older People - 65 And Over,Third Party Payments,Nursing Home,570,05-Jul-2012,1207-00799,1336.08,R,Belle Green Court Care Home
http://statistics.data.gov.uk/doc/local-authority/00DA,Leeds City Council,Environment & Neighbourhoods,Strategy & Commissioning,Third Party Payments,Supporting Ppl - Block Gross Chargeable,514,13-Jul-2012,1207-00800,1740.31,R,Belle Isle Tenant Management
http://statistics.data.gov.uk/doc/local-authority/00DA,Leeds City Council,Adult Social Care,Services For Older People - 65 And Over,Third Party Payments,Nursing Home,570,05-Jul-2012,1207-00801,1123.40,R,Belmont House
http://statistics.data.gov.uk/doc/local-authority/00DA,Leeds City Council,Adult Social Care,Services For Older People Under 65 P/Dis,Transfer Payments,Personalised Budgets,627,04-Jul-2012,1207-00802,506.04,R,REDACTED PERSONAL DATA
http://statistics.data.gov.uk/doc/local-authority/00DA,Leeds City Council,City Development,Libraries  Arts & Heritage,Supplies and Services,Bought In Professional Services,277,09-Jul-2012,1207-00803,1363.00,R,Ben Hall
http://statistics.data.gov.uk/doc/local-authority/00DA,Leeds City Council,Adult Social Care,Services For Older People Under 65 P/Dis,Transfer Payments,Personalised Budgets,627,04-Jul-2012,1207-00804,773.36,R,REDACTED PERSONAL DATA
http://statistics.data.gov.uk/doc/local-authority/00DA,Leeds City Council,Central & Corporate Functions,Commercial Services Trading Services,Transport,Vehicle Spares,345,05-Jul-2012,1207-00805,430.44,R,Benfield Ford Leeds (Parts Invs)
http://statistics.data.gov.uk/doc/local-authority/00DA,Leeds City Council,Adult Social Care,Services For Older People Under 65 P/Dis,Transfer Payments,Personalised Budgets,627,04-Jul-2012,1207-00806,7667.40,R,REDACTED PERSONAL DATA
http://statistics.data.gov.uk/doc/local-authority/00DA,Leeds City Council,Adult Social Care,Services For Older People - 65 And Over,Third Party Payments,Residential Care Dementia,571,04-Jul-2012,1207-00807,22309.16,R,Berkley Court
http://statistics.data.gov.uk/doc/local-authority/00DA,Leeds City Council,Adult Social Care,Services For Older People - 65 And Over,Third Party Payments,Residential,580,04-Jul-2012,1207-00808,19674.19,R,Berkley Court
http://statistics.data.gov.uk/doc/local-authority/00DA,Leeds City Council,City Development,Asset Management Services,Premises,Maintenance Of Buildings,101,16-Jul-2012,1207-00809,11821.79,R,Bermar Building Company Ltd
http://statistics.data.gov.uk/doc/local-authority/00DA,Leeds City Council,City Development,Asset Management Services,Transfer Payments,Transfer To/From General Reserves,601,16-Jul-2012,1207-00810,72823.12,R,Bermar Building Company Ltd
http://statistics.data.gov.uk/doc/local-authority/00DA,Leeds City Council,City Development,Recreation,Capital,Construction,3,17-Jul-2012,1207-00811,99314.49,C,Bermar Building Company Ltd
http://statistics.data.gov.uk/doc/local-authority/00DA,Leeds City Council,City Development,Asset Management Services,Premises,Rents,141,24-Jul-2012,1207-00812,13130.00,R,Bernard Faber
http://statistics.data.gov.uk/doc/local-authority/00DA,Leeds City Council,Adult Social Care,Services For Older People - 65 And Over,Transfer Payments,Direct Payments,626,04-Jul-2012,1207-00813,599.52,R,REDACTED PERSONAL DATA
http://statistics.data.gov.uk/doc/local-authority/00DA,Leeds City Council,Childrens Services,Safeguarding Targeted & Specialist,Employees,Agency Staff,008,20-Jul-2012,1207-00814,2100.00,R,Berrybrown Ltd
http://statistics.data.gov.uk/doc/local-authority/00DA,Leeds City Council,Childrens Services,Safeguarding Targeted & Specialist,Employees,Agency Staff,008,20-Jul-2012,1207-00815,2100.00,R,Berrybrown Ltd
http://statistics.data.gov.uk/doc/local-authority/00DA,Leeds City Council as Accountable Body,Social Services Pooled Budgets,Jcs For People With Learning Disabilitie,Third Party Payments,Residential,580,05-Jul-2012,1207-00816,482.32,R,REDACTED PERSONAL DATA
http://statistics.data.gov.uk/doc/local-authority/00DA,Leeds City Council,Adult Social Care,Services For Older People - 65 And Over,Transfer Payments,Direct Payments,626,04-Jul-2012,1207-00817,657.36,R,REDACTED PERSONAL DATA
http://statistics.data.gov.uk/doc/local-authority/00DA,Leeds City Council,Childrens Services,Learning Skills & Universal,Third Party Payments,Services Rendered By Other Organisations,511,10-Jul-2012,1207-00818,620.07,R,Best Childcare Nursery
http://statistics.data.gov.uk/doc/local-authority/00DA,Leeds City Council,Childrens Services,Learning Skills & Universal,Third Party Payments,Services Rendered By Other Organisations,511,26-Jul-2012,1207-00819,741.10,R,Best Childcare Nursery
http://statistics.data.gov.uk/doc/local-authority/00DA,Leeds City Council,Adult Social Care,Services For Older People - 65 And Over,Third Party Payments,Residential Care Dementia,571,04-Jul-2012,1207-00820,1760.92,R,Bethel House
http://statistics.data.gov.uk/doc/local-authority/00DA,Leeds City Council,Adult Social Care,Services For Older People - 65 And Over,Transfer Payments,Direct Payments,626,04-Jul-2012,1207-00821,936.76,R,REDACTED PERSONAL DATA
http://statistics.data.gov.uk/doc/local-authority/00DA,Leeds City Council,Adult Social Care,Services For Older People - 65 And Over,Transfer Payments,Personalised Budgets,627,04-Jul-2012,1207-00822,506.04,R,REDACTED PERSONAL DATA
http://statistics.data.gov.uk/doc/local-authority/00DA,Leeds City Council,Adult Social Care,Services For Older People - 65 And Over,Transfer Payments,Direct Payments,626,04-Jul-2012,1207-00823,435.84,R,REDACTED PERSONAL DATA
http://statistics.data.gov.uk/doc/local-authority/00DA,Leeds City Council,Central & Corporate Functions,Commercial Services Trading Services,Supplies and Services,Food & Drink,231,30-Jul-2012,1207-00824,542.01,R,Beverages Direct Ltd
http://statistics.data.gov.uk/doc/local-authority/00DA,Leeds City Council,Adult Social Care,Services For Older People Under 65 P/Dis,Transfer Payments,Personalised Budgets,627,04-Jul-2012,1207-00825,991.40,R,REDACTED PERSONAL DATA
http://statistics.data.gov.uk/doc/local-authority/00DA,Leeds City Council as Accountable Body,Social Services Pooled Budgets,Jcs For People With Learning Disabilitie,Transfer Payments,Personal Budgets,627,04-Jul-2012,1207-00826,1856.44,R,REDACTED PERSONAL DATA
http://statistics.data.gov.uk/doc/local-authority/00DA,Leeds City Council,Environment & Neighbourhoods,Statutory Housing,Supplies and Services,Other Hired And Contracted Services,265,03-Jul-2012,1207-00827,450.00,R,Beverly Jackson
http://statistics.data.gov.uk/doc/local-authority/00DA,Leeds City Council,Adult Social Care,Services For Older People - 65 And Over,Third Party Payments,Nursing Care Dementia,574,04-Jul-2012,1207-00828,1728.00,R,Bewick Lodge
http://statistics.data.gov.uk/doc/local-authority/00DA,Leeds City Council,City Development,Economic Development,Premises,Removal Of Workplace Waste,126,24-Jul-2012,1207-00829,470.99,R,Biffa Waste Services Ltd
http://statistics.data.gov.uk/doc/local-authority/00DA,Leeds City Council,Environment & Neighbourhoods,Streetscene Environmental Services,Supplies and Services,Recycling & Reuse Charges,234,31-Jul-2012,1207-00830,770.60,R,Biffa Waste Services Ltd
http://statistics.data.gov.uk/doc/local-authority/00DA,Leeds City Council,Environment & Neighbourhoods,Streetscene Environmental Services,Supplies and Services,Recycling & Reuse Charges,234,17-Jul-2012,1207-00831,962.10,R,Biffa Waste Services Ltd
http://statistics.data.gov.uk/doc/local-authority/00DA,Leeds City Council,Environment & Neighbourhoods,Streetscene Environmental Services,Supplies and Services,Recycling & Reuse Charges,234,06-Jul-2012,1207-00832,1234.89,R,Biffa Waste Services Ltd
http://statistics.data.gov.uk/doc/local-authority/00DA,Leeds City Council,Environment & Neighbourhoods,Streetscene Environmental Services,Supplies and Services,Recycling & Reuse Charges,234,20-Jul-2012,1207-00833,2026.09,R,Biffa Waste Services Ltd
http://statistics.data.gov.uk/doc/local-authority/00DA,Leeds City Council,Environment & Neighbourhoods,Streetscene Environmental Services,Supplies and Services,Recycling & Reuse Charges,234,06-Jul-2012,1207-00834,2197.83,R,Biffa Waste Services Ltd
http://statistics.data.gov.uk/doc/local-authority/00DA,Leeds City Council,Environment & Neighbourhoods,Streetscene Environmental Services,Supplies and Services,Recycling & Reuse Charges,234,06-Jul-2012,1207-00835,2398.98,R,Biffa Waste Services Ltd
http://statistics.data.gov.uk/doc/local-authority/00DA,Leeds City Council,Environment & Neighbourhoods,Streetscene Environmental Services,Supplies and Services,Recycling & Reuse Charges,234,06-Jul-2012,1207-00836,2520.00,R,Biffa Waste Services Ltd
http://statistics.data.gov.uk/doc/local-authority/00DA,Leeds City Council,Environment & Neighbourhoods,Streetscene Environmental Services,Supplies and Services,Recycling & Reuse Charges,234,10-Jul-2012,1207-00837,2627.85,R,Biffa Waste Services Ltd
http://statistics.data.gov.uk/doc/local-authority/00DA,Leeds City Council,Environment & Neighbourhoods,Streetscene Environmental Services,Supplies and Services,Waste Disposal Charges,236,13-Jul-2012,1207-00838,2737.87,R,Biffa Waste Services Ltd
http://statistics.data.gov.uk/doc/local-authority/00DA,Leeds City Council,Environment & Neighbourhoods,Streetscene Environmental Services,Supplies and Services,Waste Disposal Charges,236,31-Jul-2012,1207-00839,2967.09,R,Biffa Waste Services Ltd
http://statistics.data.gov.uk/doc/local-authority/00DA,Leeds City Council,Environment & Neighbourhoods,Streetscene Environmental Services,Supplies and Services,Waste Disposal Charges,236,13-Jul-2012,1207-00840,3028.46,R,Biffa Waste Services Ltd
http://statistics.data.gov.uk/doc/local-authority/00DA,Leeds City Council,Environment & Neighbourhoods,Streetscene Environmental Services,Supplies and Services,Waste Disposal Charges,236,10-Jul-2012,1207-00841,32510.86,R,Biffa Waste Services Ltd
http://statistics.data.gov.uk/doc/local-authority/00DA,Leeds City Council,Environment & Neighbourhoods,Streetscene Environmental Services,Supplies and Services,Waste Disposal Charges,236,06-Jul-2012,1207-00842,53342.12,R,Biffa Waste Services Ltd
http://statistics.data.gov.uk/doc/local-authority/00DA,Leeds City Council,Environment & Neighbourhoods,Streetscene Environmental Services,Supplies and Services,Waste Disposal Charges,236,06-Jul-2012,1207-00843,68655.78,R,Biffa Waste Services Ltd
http://statistics.data.gov.uk/doc/local-authority/00DA,Leeds City Council,Environment & Neighbourhoods,Streetscene Environmental Services,Supplies and Services,Waste Disposal Charges,236,06-Jul-2012,1207-00844,79353.53,R,Biffa Waste Services Ltd
http://statistics.data.gov.uk/doc/local-authority/00DA,Leeds City Council,Environment & Neighbourhoods,Streetscene Environmental Services,Supplies and Services,Waste Disposal Charges,236,06-Jul-2012,1207-00845,94798.99,R,Biffa Waste Services Ltd
http://statistics.data.gov.uk/doc/local-authority/00DA,Leeds City Council,Environment & Neighbourhoods,Streetscene Environmental Services,Supplies and Services,Waste Disposal Charges,236,31-Jul-2012,1207-00846,109791.45,R,Biffa Waste Services Ltd
http://statistics.data.gov.uk/doc/local-authority/00DA,Leeds City Council,Environment & Neighbourhoods,Streetscene Environmental Services,Supplies and Services,Waste Disposal Charges,236,20-Jul-2012,1207-00847,126713.60,R,Biffa Waste Services Ltd
http://statistics.data.gov.uk/doc/local-authority/00DA,Leeds City Council,Environment & Neighbourhoods,Streetscene Environmental Services,Supplies and Services,Waste Disposal Charges,236,17-Jul-2012,1207-00848,130042.10,R,Biffa Waste Services Ltd
http://statistics.data.gov.uk/doc/local-authority/00DA,Leeds City Council,Environment & Neighbourhoods,Streetscene Environmental Services,Supplies and Services,Waste Disposal Charges,237,06-Jul-2012,1207-00849,25523.54,R,Biffa Waste Services Ltd
http://statistics.data.gov.uk/doc/local-authority/00DA,Leeds City Council,Environment & Neighbourhoods,Streetscene Environmental Services,Supplies and Services,Waste Disposal Charges,237,31-Jul-2012,1207-00850,27695.12,R,Biffa Waste Services Ltd
http://statistics.data.gov.uk/doc/local-authority/00DA,Leeds City Council,Environment & Neighbourhoods,Streetscene Environmental Services,Supplies and Services,Waste Disposal Charges,237,20-Jul-2012,1207-00851,31913.09,R,Biffa Waste Services Ltd
http://statistics.data.gov.uk/doc/local-authority/00DA,Leeds City Council,Environment & Neighbourhoods,Streetscene Environmental Services,Supplies and Services,Waste Disposal Charges,237,17-Jul-2012,1207-00852,33172.10,R,Biffa Waste Services Ltd
http://statistics.data.gov.uk/doc/local-authority/00DA,Leeds City Council,Environment & Neighbourhoods,Streetscene Environmental Services,Supplies and Services,Waste Disposal Charges,237,06-Jul-2012,1207-00853,46285.56,R,Biffa Waste Services Ltd
http://statistics.data.gov.uk/doc/local-authority/00DA,Leeds City Council,Environment & Neighbourhoods,Streetscene Environmental Services,Supplies and Services,Waste Disposal Charges,237,06-Jul-2012,1207-00854,83877.82,R,Biffa Waste Services Ltd
http://statistics.data.gov.uk/doc/local-authority/00DA,Leeds City Council,Environment & Neighbourhoods,Streetscene Environmental Services,Supplies and Services,Waste Disposal Charges,237,06-Jul-2012,1207-00855,89587.68,R,Biffa Waste Services Ltd
http://statistics.data.gov.uk/doc/local-authority/00DA,Leeds City Council,Environment & Neighbourhoods,Streetscene Environmental Services,Supplies and Services,Waste Disposal Charges,237,10-Jul-2012,1207-00856,118726.62,R,Biffa Waste Services Ltd
http://statistics.data.gov.uk/doc/local-authority/00DA,East - North East                    ,East - North East,Construction Services,Supplies and Services,Other Materials,205,17-Jul-2012,1207-00857,601.20,R,Bilbeck (Merchants) Ltd
http://statistics.data.gov.uk/doc/local-authority/00DA,East - North East                    ,East - North East,Construction Services,Supplies and Services,Other Materials,205,13-Jul-2012,1207-00858,631.52,R,Bilbeck (Merchants) Ltd
http://statistics.data.gov.uk/doc/local-authority/00DA,East - North East                    ,East - North East,Construction Services,Supplies and Services,Other Materials,205,06-Jul-2012,1207-00859,649.58,R,Bilbeck (Merchants) Ltd
http://statistics.data.gov.uk/doc/local-authority/00DA,East - North East                    ,East - North East,Construction Services,Supplies and Services,Other Materials,205,27-Jul-2012,1207-00860,675.05,R,Bilbeck (Merchants) Ltd
http://statistics.data.gov.uk/doc/local-authority/00DA,East - North East                    ,East - North East,Construction Services,Supplies and Services,Other Materials,205,13-Jul-2012,1207-00861,695.50,R,Bilbeck (Merchants) Ltd
http://statistics.data.gov.uk/doc/local-authority/00DA,East - North East                    ,East - North East,Construction Services,Supplies and Services,Other Materials,205,06-Jul-2012,1207-00862,764.80,R,Bilbeck (Merchants) Ltd
